Service Area Categorisation,Service Division Categorisation,Responsible Unit,Unit Code,Expenses Type,Expenses Sub Type,Expense  Code,Detailed Expenses Type,Amount,Invoice Date,Capital/Revenue,Supplier Name
Central Services,SupS Chief Execs,Local Involvement Network               ,A01039,Supplies & Services           ,Services                      ,DF32,Customer Survey,"2,000.00",27/02/2013,R,LONDON BOROUGH OF HOUNSLOW    
Central Services,SupS Chief Execs,Local Involvement Network               ,A01039,Third Party Payments          ,Private Contractors           ,EH10,Contract Payments,"8,342.91",01/03/2013,R,MERTON VOLUNTARY SERV COUNCIL 
Central Services,SupS Chief Execs,Local Involvement Network               ,A01039,Third Party Payments          ,Private Contractors           ,EH10,Contract Payments,"8,342.99",07/03/2013,R,MERTON VOLUNTARY SERV COUNCIL 
Cultural Env Reg&Plan Services,Comm Safety (Crime Reduction),CCTV                                    ,A01200,Supplies & Services           ,Equip Furniture/Materials     ,DA01,Equipment - R & M,"10,146.65",07/03/2013,R,EUROVIA INFRASTRUCTURE LTD    
Cultural Env Reg&Plan Services,Comm Safety (Crime Reduction),CCTV                                    ,A01200,Supplies & Services           ,Equip Furniture/Materials     ,DA01,Equipment - R & M,"8,840.77",11/03/2013,R,EUROVIA INFRASTRUCTURE LTD    
Cultural Env Reg&Plan Services,Comm Safety (Crime Reduction),CCTV                                    ,A01200,Supplies & Services           ,Comms and Computing           ,DG15,Network Maintenance,"10,833.36",01/02/2013,R,BT REDCARE                    
Cultural Env Reg&Plan Services,Comm Safety (Crime Reduction),CCTV                                    ,A01200,Supplies & Services           ,Comms and Computing           ,DG15,Network Maintenance,941.85,01/03/2013,R,BT REDCARE                    
Adult Social Care,Substance Abuse (Addictions),Retention in Drug Treatmt Srvs          ,A01303,Third Party Payments          ,Private Contractors           ,EH02,Miscellaneous Hired Services,"47,194.00",26/02/2013,R,SW LONDON ST GEORGES NHS TRUST
Adult Social Care,Substance Abuse (Addictions),Retention in Drug Treatmt Srvs          ,A01303,Third Party Payments          ,Private Contractors           ,EH02,Miscellaneous Hired Services,"5,000.00",22/08/2012,R,REDACTED
Adult Social Care,Substance Abuse (Addictions),Retention in Drug Treatmt Srvs          ,A01303,Third Party Payments          ,Private Contractors           ,EH02,Miscellaneous Hired Services,900,15/03/2013,R,CIDARIS CONSULTING LIMITED    
Adult Social Care,Substance Abuse (Addictions),Retention in Drug Treatmt Srvs          ,A01303,Third Party Payments          ,Private Contractors           ,EH02,Miscellaneous Hired Services,"5,100.00",15/03/2013,R,CIDARIS CONSULTING LIMITED    
Central Services,SupS Chief Execs,NON-STATUTORY MARKETING & COMM ,A02019,Supplies & Services           ,Prntng Stnry Gen Off Exp      ,DE22,Marketing,"4,742.00",20/03/2013,R,ENGAGE GROUP LTD              
Central Services,SupS Chief Execs,NON-STATUTORY MARKETING & COMM ,A02019,Supplies & Services           ,Services                      ,DF02,Misc Advertising/Publicity,500,28/01/2013,R,KEEP THE FAITH                
Central Services,SupS Chief Execs,NON-STATUTORY MARKETING & COMM ,A02019,Supplies & Services           ,Services                      ,DF35,Graphic Design,656.31,27/02/2013,R,PANACEA SOFTWARE LTD          
Central Services,SupS Chief Execs,NON-STATUTORY MARKETING & COMM ,A02019,Supplies & Services           ,Services                      ,DF35,Graphic Design,"4,005.00",04/03/2013,R,THE BIG IDEA
Central Services,SupS Chief Execs,NON-STATUTORY MARKETING & COMM ,A02019,Supplies & Services           ,Services                      ,DF35,Graphic Design,"3,285.00",21/03/2013,R,THE BIG IDEA
Central Services,SupS Chief Execs,Democratic Services                     ,A02023,Employees                     ,Direct Employee Expenses      ,AA17,Agency Staff & Casual Paymts,985.5,10/02/2013,R,REDACTED
Central Services,SupS Chief Execs,Democratic Services                     ,A02023,Transport Related Expenditure ,Direct Transport Costs        ,CA50,Mayoral Exps Car,"1,878.60",13/03/2013,R,BMW INSURED WARRANTY SERVICES 
Central Services,SupS Chief Execs,Democratic Services                     ,A02023,Transport Related Expenditure ,Direct Transport Costs        ,CA50,Mayoral Exps Car,844,22/02/2013,R,MORDEN TYRE SERVICES LTD      
Central Services,SupS Chief Execs,Democratic Services                     ,A02023,Transport Related Expenditure ,Direct Transport Costs        ,CA50,Mayoral Exps Car,695.96,25/03/2013,R,BMW FINANCIAL SERVICES        
Central Services,SupS Chief Execs,Democratic Services                     ,A02023,Supplies & Services           ,Comms and Computing           ,DG50,Other IT Expenditure,"13,851.00",14/02/2013,R,PUBLIC-I GROUP LTD            
Central Services,SupS Chief Execs,Press and Public Relations.             ,A02026,Employees                     ,Direct Employee Expenses      ,AA17,Agency Staff & Casual Paymts,"1,130.00",22/02/2013,R,HAYS RECRUITING EXPERTS       
Central Services,SupS Chief Execs,Press and Public Relations.             ,A02026,Employees                     ,Direct Employee Expenses      ,AA17,Agency Staff & Casual Paymts,"1,130.00",28/02/2013,R,HAYS RECRUITING EXPERTS       
Central Services,SupS Chief Execs,Press and Public Relations.             ,A02026,Employees                     ,Direct Employee Expenses      ,AA17,Agency Staff & Casual Paymts,"1,130.00",04/03/2013,R,HAYS RECRUITING EXPERTS       
Central Services,SupS Chief Execs,Press and Public Relations.             ,A02026,Employees                     ,Direct Employee Expenses      ,AA17,Agency Staff & Casual Paymts,"1,130.00",11/03/2013,R,HAYS RECRUITING EXPERTS       
Central Services,SupS Chief Execs,Press and Public Relations.             ,A02026,Employees                     ,Direct Employee Expenses      ,AA17,Agency Staff & Casual Paymts,980,21/03/2013,R,HAYS RECRUITING EXPERTS       
Central Services,SupS Chief Execs,Press and Public Relations.             ,A02026,Supplies & Services           ,Prntng Stnry Gen Off Exp      ,DE20,Council Magazine,"18,971.00",20/03/2013,R,ENGAGE GROUP LTD              
Central Services,SupS Chief Execs,Press and Public Relations.             ,A02026,Supplies & Services           ,Expenses                      ,DH21,Christma Lights               ,767.88,18/02/2013,R,MAY GURNEY LTD T/A CARTLEDGE  
Central Services,SupS Chief Execs,Press and Public Relations.             ,A02026,Supplies & Services           ,Grants and Subscriptions      ,DJ04,Subscriptions,600,28/02/2013,R,FLAME LIMITED                 
Central Services,SupS Chief Execs,Press and Public Relations.             ,A02026,Supplies & Services           ,Grants and Subscriptions      ,DJ04,Subscriptions,"6,138.00",13/03/2013,R,ACCESS INTEL. MEDIA & COM LTD 
Central Services,SupS Chief Execs,Press and Public Relations.             ,A02026,Supplies & Services           ,Grants and Subscriptions      ,DJ04,Subscriptions,"2,375.00",25/03/2013,R,ENGAGE GROUP LTD              
CS -Oth Operating Inc & Expend,T/A Corporate Services,Prtng Jobs - Ext Agncy                  ,A03041,Supplies & Services           ,Prntng Stnry Gen Off Exp      ,DE01,External Printing,"1,188.00",27/02/2013,R,CLIFFE ENTERPRISE             
CS -Oth Operating Inc & Expend,T/A Corporate Services,Prtng Jobs - Ext Agncy                  ,A03041,Supplies & Services           ,Prntng Stnry Gen Off Exp      ,DE01,External Printing,"1,577.00",13/02/2013,R,CLIFFE ENTERPRISE             
CS -Oth Operating Inc & Expend,T/A Corporate Services,Prtng Jobs - Ext Agncy                  ,A03041,Supplies & Services           ,Prntng Stnry Gen Off Exp      ,DE01,External Printing,"3,298.00",13/03/2013,R,MWL PRINT GROUP               
CS -Oth Operating Inc & Expend,T/A Corporate Services,Prtng Jobs - Ext Agncy                  ,A03041,Supplies & Services           ,Prntng Stnry Gen Off Exp      ,DE01,External Printing,"1,125.45",12/03/2013,R,TAURUS PRINT & DESIGN LTD     
CS -Oth Operating Inc & Expend,T/A Corporate Services,Prtng Jobs - Ext Agncy                  ,A03041,Supplies & Services           ,Prntng Stnry Gen Off Exp      ,DE01,External Printing,"8,508.00",08/02/2013,R,ULTIMATE INVOICE FINANCE LTD  
CS -Oth Operating Inc & Expend,T/A Corporate Services,Prtng Jobs - Ext Agncy                  ,A03041,Supplies & Services           ,Prntng Stnry Gen Off Exp      ,DE01,External Printing,757,20/03/2013,R,IMPRESS PRINT SERVICES LTD    
CS -Oth Operating Inc & Expend,T/A Corporate Services,Prtng Jobs - Ext Agncy                  ,A03041,Supplies & Services           ,Prntng Stnry Gen Off Exp      ,DE01,External Printing,"1,165.00",19/03/2013,R,SEFTON TRANSMAIL              
CS -Oth Operating Inc & Expend,T/A Corporate Services,PrintUnit-HighVolPhtcopying             ,A03042,Supplies & Services           ,Equip Furniture/Materials     ,DA01,Equipment - R & M,"1,750.00",05/03/2013,R,PARAGON GROUP UK LIMITED      
CS -Oth Operating Inc & Expend,T/A Corporate Services,PrintUnit-HighVolPhtcopying             ,A03042,Supplies & Services           ,Equip Furniture/Materials     ,DA06,Paper-Internal Print Jobs,"5,500.00",07/03/2013,R,RAINBOW OFFICE SUPPLIES LTD   
CS -Oth Operating Inc & Expend,T/A Corporate Services,PrintUnit-HighVolPhtcopying             ,A03042,Supplies & Services           ,Prntng Stnry Gen Off Exp      ,DE03,Stationery,"1,398.00",28/02/2013,R,TOMPLA UK LTD                 
CS -Oth Operating Inc & Expend,T/A Corporate Services,PrintUnit-HighVolPhtcopying             ,A03042,Supplies & Services           ,Prntng Stnry Gen Off Exp      ,DE03,Stationery,699,07/03/2013,R,TOMPLA UK LTD                 
CS -Oth Operating Inc & Expend,T/A Corporate Services,PrintUnit-HighVolPhtcopying             ,A03042,Supplies & Services           ,Prntng Stnry Gen Off Exp      ,DE03,Stationery,701.8,12/03/2013,R,TOMPLA UK LTD                 
CS -Oth Operating Inc & Expend,T/A Corporate Services,PrintUnit-HighVolPhtcopying             ,A03042,Supplies & Services           ,Prntng Stnry Gen Off Exp      ,DE03,Stationery,512,14/03/2013,R,TOMPLA UK LTD                 
CS -Oth Operating Inc & Expend,T/A Corporate Services,PrintUnit-HighVolPhtcopying             ,A03042,Supplies & Services           ,Prntng Stnry Gen Off Exp      ,DE03,Stationery,603.94,27/03/2013,R,TOMPLA UK LTD                 
CS -Oth Operating Inc & Expend,T/A Corporate Services,PrintUnit-HighVolPhtcopying             ,A03042,Third Party Payments          ,Private Contractors           ,EH02,Miscellaneous Hired Services,"5,119.78",01/03/2013,R,OCE (UK) LTD                  
Central Services,SupS Comm and Member Services,COMMUNITY ENGAGAMENT                    ,A04057,Supplies & Services           ,Services                      ,DF32,Customer Survey,"2,600.00",20/02/2013,R,TNS UK LTD                    
Central Services,SupS Comm and Member Services,COMMUNITY ENGAGAMENT                    ,A04057,Supplies & Services           ,Services                      ,DF32,Customer Survey,"19,475.00",20/02/2013,R,TNS UK LTD                    
CS -Oth Operating Inc & Expend,T/A Corporate Services,Translation Services                    ,A04060,Supplies & Services           ,Services                      ,DF45,Payment of Sessional workers,612,19/02/2013,R,REDACTED
Central Services,SupS Best Value,Merton Link                             ,A04070,Supplies & Services           ,Comms and Computing           ,DG15,Network Maintenance,936.05,01/03/2013,R,NORTHGATE  INFORMATION SOLUT. 
Central Services,SupS Best Value,Merton Link                             ,A04070,Supplies & Services           ,Comms and Computing           ,DG50,Other IT Expenditure,840,22/01/2013,R,CIVICA UK LIMITED             
Central Services,SupS Best Value,Merton Link                             ,A04070,Supplies & Services           ,Comms and Computing           ,DG50,Other IT Expenditure,"12,704.00",27/03/2013,R,NETCALL TELECOM LIMITED       
Central Services,SupS Best Value,Merton Link                             ,A04070,Supplies & Services           ,Comms and Computing           ,DG50,Other IT Expenditure,"6,375.00",27/03/2013,R,NETCALL TELECOM LIMITED       
Central Services,SupS Comm and Member Services,Local Strategic Partnership             ,A04080,Supplies & Services           ,Services                      ,DF04,Miscellaneous Expenses,"6,976.88",12/03/2013,R,MERTON VOLUNTARY SERV COUNCIL 
Central Services,SupS Comm and Member Services,Local Strategic Partnership             ,A04080,Supplies & Services           ,Grants and Subscriptions      ,DJ01,Grants,"125,884.00",06/03/2013,R,MERTON VOLUNTARY SERV COUNCIL 
Central Services,Members allowances & expenses,PERFORMANCE REWARD GRANT            ,A04081,Supplies & Services           ,Grants and Subscriptions      ,DJ01,Grants,"26,126.00",19/03/2013,R,MERTON VOLUNTARY SERV COUNCIL 
Central Services,SupS Comm and Member Services,COMMERICIAL SERVICES                    ,A04085,Employees                     ,Direct Employee Expenses      ,AA17,Agency Staff & Casual Paymts,"3,390.00",13/02/2013,R,HAYS RECRUITING EXPERTS       
Central Services,SupS Comm and Member Services,COMMERICIAL SERVICES                    ,A04085,Employees                     ,Direct Employee Expenses      ,AA17,Agency Staff & Casual Paymts,"3,390.00",21/02/2013,R,HAYS RECRUITING EXPERTS       
Central Services,SupS Comm and Member Services,COMMERICIAL SERVICES                    ,A04085,Employees                     ,Direct Employee Expenses      ,AA17,Agency Staff & Casual Paymts,"3,390.00",28/02/2013,R,HAYS RECRUITING EXPERTS       
Central Services,SupS Comm and Member Services,COMMERICIAL SERVICES                    ,A04085,Employees                     ,Direct Employee Expenses      ,AA17,Agency Staff & Casual Paymts,"3,390.00",07/03/2013,R,HAYS RECRUITING EXPERTS       
Central Services,SupS Comm and Member Services,COMMERICIAL SERVICES                    ,A04085,Employees                     ,Direct Employee Expenses      ,AA17,Agency Staff & Casual Paymts,"3,390.00",13/03/2013,R,HAYS RECRUITING EXPERTS       
Central Services,SupS Comm and Member Services,COMMERICIAL SERVICES                    ,A04085,Employees                     ,Direct Employee Expenses      ,AA17,Agency Staff & Casual Paymts,"3,390.00",21/03/2013,R,HAYS RECRUITING EXPERTS       
Central Services,SupS Comm and Member Services,Policy and Strategy                     ,A04086,Employees                     ,Direct Employee Expenses      ,AA96,SALARY SACRIFICE (TEACHERS),828.52,06/08/2012,R,F.W.EVANS CYCLES (UK) LTD.    
Central Services,Registn Birth/Death/Marriage,Reg of B. Deaths & Ms                   ,B06143,Premises Related Expenditure  ,RepairsAlterations&MtceOfBldgs,BA11,Floral Decorations,"1,270.00",01/03/2013,R,TREES INC                     
CS -Oth Operating Inc & Expend,T/A Corporate Services,CHAS Scheme                             ,B06150,Supplies & Services           ,Prntng Stnry Gen Off Exp      ,DE06,Multi-Functional Printers     ,"3,098.00",25/02/2013,R,REDACTED
CS -Oth Operating Inc & Expend,T/A Corporate Services,CHAS Scheme                             ,B06150,Supplies & Services           ,Services                      ,DF11,Counsel's fees,903.5,28/02/2013,R,WEIGHTMANS LLP                
CS -Oth Operating Inc & Expend,T/A Corporate Services,CHAS Scheme                             ,B06150,Supplies & Services           ,Services                      ,DF88,Assessor Fees,936,31/01/2013,R,REDACTED
CS -Oth Operating Inc & Expend,T/A Corporate Services,CHAS Scheme                             ,B06150,Supplies & Services           ,Services                      ,DF88,Assessor Fees,649,18/02/2013,R,REDACTED
CS -Oth Operating Inc & Expend,T/A Corporate Services,CHAS Scheme                             ,B06150,Supplies & Services           ,Services                      ,DF88,Assessor Fees,"2,025.00",20/02/2013,R,REDACTED
CS -Oth Operating Inc & Expend,T/A Corporate Services,CHAS Scheme                             ,B06150,Supplies & Services           ,Services                      ,DF88,Assessor Fees,"1,237.00",18/02/2013,R,TERN ASSOCIATES LTD           
CS -Oth Operating Inc & Expend,T/A Corporate Services,CHAS Scheme                             ,B06150,Supplies & Services           ,Services                      ,DF88,Assessor Fees,"1,277.00",15/02/2013,R,REDACTED
CS -Oth Operating Inc & Expend,T/A Corporate Services,CHAS Scheme                             ,B06150,Supplies & Services           ,Services                      ,DF88,Assessor Fees,"1,491.00",18/02/2013,R,REDACTED
CS -Oth Operating Inc & Expend,T/A Corporate Services,CHAS Scheme                             ,B06150,Supplies & Services           ,Services                      ,DF88,Assessor Fees,"2,721.00",22/02/2013,R,ALIMOR SAFETY LTD             
CS -Oth Operating Inc & Expend,T/A Corporate Services,CHAS Scheme                             ,B06150,Supplies & Services           ,Services                      ,DF88,Assessor Fees,"4,824.90",20/02/2013,R,REDACTED
CS -Oth Operating Inc & Expend,T/A Corporate Services,CHAS Scheme                             ,B06150,Supplies & Services           ,Services                      ,DF88,Assessor Fees,769,20/02/2013,R,REDACTED
CS -Oth Operating Inc & Expend,T/A Corporate Services,CHAS Scheme                             ,B06150,Supplies & Services           ,Services                      ,DF88,Assessor Fees,"2,146.00",30/12/2012,R,REDACTED
CS -Oth Operating Inc & Expend,T/A Corporate Services,CHAS Scheme                             ,B06150,Supplies & Services           ,Services                      ,DF88,Assessor Fees,783,12/02/2013,R,REDACTED
CS -Oth Operating Inc & Expend,T/A Corporate Services,CHAS Scheme                             ,B06150,Supplies & Services           ,Services                      ,DF88,Assessor Fees,769,28/02/2013,R,REDACTED
CS -Oth Operating Inc & Expend,T/A Corporate Services,CHAS Scheme                             ,B06150,Supplies & Services           ,Services                      ,DF88,Assessor Fees,896,01/03/2013,R,REDACTED
CS -Oth Operating Inc & Expend,T/A Corporate Services,CHAS Scheme                             ,B06150,Supplies & Services           ,Services                      ,DF88,Assessor Fees,"2,039.00",28/02/2013,R,REDACTED
CS -Oth Operating Inc & Expend,T/A Corporate Services,CHAS Scheme                             ,B06150,Supplies & Services           ,Services                      ,DF88,Assessor Fees,929,28/02/2013,R,2ND NATURE SAFETY SOLUTIONS UK
CS -Oth Operating Inc & Expend,T/A Corporate Services,CHAS Scheme                             ,B06150,Supplies & Services           ,Services                      ,DF88,Assessor Fees,682,28/02/2013,R,REDACTED
CS -Oth Operating Inc & Expend,T/A Corporate Services,CHAS Scheme                             ,B06150,Supplies & Services           ,Services                      ,DF88,Assessor Fees,856,28/02/2013,R,REDACTED
CS -Oth Operating Inc & Expend,T/A Corporate Services,CHAS Scheme                             ,B06150,Supplies & Services           ,Services                      ,DF88,Assessor Fees,"1,564.00",28/02/2013,R,WOODS CONSULTANCY SERVICES LTD
CS -Oth Operating Inc & Expend,T/A Corporate Services,CHAS Scheme                             ,B06150,Supplies & Services           ,Services                      ,DF88,Assessor Fees,"1,063.00",28/02/2013,R,REDACTED
CS -Oth Operating Inc & Expend,T/A Corporate Services,CHAS Scheme                             ,B06150,Supplies & Services           ,Services                      ,DF88,Assessor Fees,990,28/02/2013,R,REDACTED
CS -Oth Operating Inc & Expend,T/A Corporate Services,CHAS Scheme                             ,B06150,Supplies & Services           ,Services                      ,DF88,Assessor Fees,"1,685.85",28/02/2013,R,REDACTED
CS -Oth Operating Inc & Expend,T/A Corporate Services,CHAS Scheme                             ,B06150,Supplies & Services           ,Services                      ,DF88,Assessor Fees,"3,904.00",28/02/2013,R,SOUTH EAST HEALTH & SAFETY LTD
CS -Oth Operating Inc & Expend,T/A Corporate Services,CHAS Scheme                             ,B06150,Supplies & Services           ,Services                      ,DF88,Assessor Fees,515,28/02/2013,R,REDACTED
CS -Oth Operating Inc & Expend,T/A Corporate Services,CHAS Scheme                             ,B06150,Supplies & Services           ,Services                      ,DF88,Assessor Fees,"1,318.85",28/02/2013,R,REDACTED
CS -Oth Operating Inc & Expend,T/A Corporate Services,CHAS Scheme                             ,B06150,Supplies & Services           ,Services                      ,DF88,Assessor Fees,"1,701.00",28/02/2013,R,REDACTED
CS -Oth Operating Inc & Expend,T/A Corporate Services,CHAS Scheme                             ,B06150,Supplies & Services           ,Services                      ,DF88,Assessor Fees,816,27/02/2013,R,REDACTED
CS -Oth Operating Inc & Expend,T/A Corporate Services,CHAS Scheme                             ,B06150,Supplies & Services           ,Services                      ,DF88,Assessor Fees,"2,293.00",18/02/2013,R,REDACTED
CS -Oth Operating Inc & Expend,T/A Corporate Services,CHAS Scheme                             ,B06150,Supplies & Services           ,Services                      ,DF88,Assessor Fees,"1,190.00",28/02/2013,R,WEST WALES SAFETY SERVICES    
CS -Oth Operating Inc & Expend,T/A Corporate Services,CHAS Scheme                             ,B06150,Supplies & Services           ,Services                      ,DF88,Assessor Fees,"1,103.00",03/03/2013,R,REDACTED
CS -Oth Operating Inc & Expend,T/A Corporate Services,CHAS Scheme                             ,B06150,Supplies & Services           ,Services                      ,DF88,Assessor Fees,555,28/02/2013,R,REDACTED
CS -Oth Operating Inc & Expend,T/A Corporate Services,CHAS Scheme                             ,B06150,Supplies & Services           ,Services                      ,DF88,Assessor Fees,595,03/03/2013,R,REDACTED
CS -Oth Operating Inc & Expend,T/A Corporate Services,CHAS Scheme                             ,B06150,Supplies & Services           ,Services                      ,DF88,Assessor Fees,"1,049.00",03/03/2013,R,REDACTED
CS -Oth Operating Inc & Expend,T/A Corporate Services,CHAS Scheme                             ,B06150,Supplies & Services           ,Services                      ,DF88,Assessor Fees,"4,017.00",27/02/2013,R,REDACTED
CS -Oth Operating Inc & Expend,T/A Corporate Services,CHAS Scheme                             ,B06150,Supplies & Services           ,Services                      ,DF88,Assessor Fees,896,28/02/2013,R,REDACTED
CS -Oth Operating Inc & Expend,T/A Corporate Services,CHAS Scheme                             ,B06150,Supplies & Services           ,Services                      ,DF88,Assessor Fees,515,01/03/2013,R,REDACTED
CS -Oth Operating Inc & Expend,T/A Corporate Services,CHAS Scheme                             ,B06150,Supplies & Services           ,Services                      ,DF88,Assessor Fees,689,28/02/2013,R,REDACTED
CS -Oth Operating Inc & Expend,T/A Corporate Services,CHAS Scheme                             ,B06150,Supplies & Services           ,Services                      ,DF88,Assessor Fees,"1,070.00",01/03/2013,R,REDACTED
CS -Oth Operating Inc & Expend,T/A Corporate Services,CHAS Scheme                             ,B06150,Supplies & Services           ,Services                      ,DF88,Assessor Fees,"2,427.00",03/03/2013,R,MGW SAFETY SERVICES           
CS -Oth Operating Inc & Expend,T/A Corporate Services,CHAS Scheme                             ,B06150,Supplies & Services           ,Services                      ,DF88,Assessor Fees,"1,483.00",01/03/2013,R,ARC ASSOCIATES (UK)           
CS -Oth Operating Inc & Expend,T/A Corporate Services,CHAS Scheme                             ,B06150,Supplies & Services           ,Services                      ,DF88,Assessor Fees,682,05/03/2013,R,REDACTED
CS -Oth Operating Inc & Expend,T/A Corporate Services,CHAS Scheme                             ,B06150,Supplies & Services           ,Services                      ,DF88,Assessor Fees,"3,218.00",01/03/2013,R,ARC ASSOCIATES (UK)           
CS -Oth Operating Inc & Expend,T/A Corporate Services,CHAS Scheme                             ,B06150,Supplies & Services           ,Services                      ,DF88,Assessor Fees,"2,455.00",28/02/2013,R,REDACTED
CS -Oth Operating Inc & Expend,T/A Corporate Services,CHAS Scheme                             ,B06150,Supplies & Services           ,Services                      ,DF88,Assessor Fees,950,11/03/2013,R,REDACTED
CS -Oth Operating Inc & Expend,T/A Corporate Services,CHAS Scheme                             ,B06150,Supplies & Services           ,Services                      ,DF88,Assessor Fees,"1,484.00",12/03/2013,R,REDACTED
CS -Oth Operating Inc & Expend,T/A Corporate Services,CHAS Scheme                             ,B06150,Supplies & Services           ,Services                      ,DF88,Assessor Fees,515,07/03/2013,R,REDACTED
CS -Oth Operating Inc & Expend,T/A Corporate Services,CHAS Scheme                             ,B06150,Supplies & Services           ,Services                      ,DF88,Assessor Fees,"2,408.45",28/02/2013,R,REDACTED
CS -Oth Operating Inc & Expend,T/A Corporate Services,CHAS Scheme                             ,B06150,Supplies & Services           ,Services                      ,DF88,Assessor Fees,508,03/03/2013,R,REDACTED
CS -Oth Operating Inc & Expend,T/A Corporate Services,CHAS Scheme                             ,B06150,Supplies & Services           ,Services                      ,DF88,Assessor Fees,642,11/03/2013,R,REDACTED
CS -Oth Operating Inc & Expend,T/A Corporate Services,CHAS Scheme                             ,B06150,Supplies & Services           ,Services                      ,DF88,Assessor Fees,"2,013.00",05/03/2013,R,REDACTED
CS -Oth Operating Inc & Expend,T/A Corporate Services,CHAS Scheme                             ,B06150,Supplies & Services           ,Services                      ,DF88,Assessor Fees,"2,053.00",04/03/2013,R,REDACTED
CS -Oth Operating Inc & Expend,T/A Corporate Services,CHAS Scheme                             ,B06150,Supplies & Services           ,Services                      ,DF88,Assessor Fees,715,28/02/2013,R,REDACTED
CS -Oth Operating Inc & Expend,T/A Corporate Services,CHAS Scheme                             ,B06150,Supplies & Services           ,Services                      ,DF88,Assessor Fees,"3,309.00",12/03/2013,R,HOLLYGLADE LTD T/A BEACONRISK 
CS -Oth Operating Inc & Expend,T/A Corporate Services,CHAS Scheme                             ,B06150,Supplies & Services           ,Services                      ,DF88,Assessor Fees,541,28/02/2013,R,REDACTED
CS -Oth Operating Inc & Expend,T/A Corporate Services,CHAS Scheme                             ,B06150,Supplies & Services           ,Services                      ,DF88,Assessor Fees,515,04/03/2013,R,REDACTED
CS -Oth Operating Inc & Expend,T/A Corporate Services,CHAS Scheme                             ,B06150,Supplies & Services           ,Services                      ,DF88,Assessor Fees,"3,679.00",28/02/2013,R,STALLARD KANE ASSOCIATES LTD  
CS -Oth Operating Inc & Expend,T/A Corporate Services,CHAS Scheme                             ,B06150,Supplies & Services           ,Services                      ,DF88,Assessor Fees,"3,710.00",27/02/2013,R,EQUITY & GENERAL INSURANCE LTD
CS -Oth Operating Inc & Expend,T/A Corporate Services,CHAS Scheme                             ,B06150,Supplies & Services           ,Services                      ,DF88,Assessor Fees,"3,276.00",22/03/2013,R,ARC ASSOCIATES (UK)           
CS -Oth Operating Inc & Expend,T/A Corporate Services,CHAS Scheme                             ,B06150,Supplies & Services           ,Services                      ,DF88,Assessor Fees,"3,558.00",22/03/2013,R,ALIMOR SAFETY LTD             
CS -Oth Operating Inc & Expend,T/A Corporate Services,CHAS Scheme                             ,B06150,Supplies & Services           ,Services                      ,DF88,Assessor Fees,"2,119.00",22/03/2013,R,HOLLYGLADE LTD T/A BEACONRISK 
CS -Oth Operating Inc & Expend,T/A Corporate Services,CHAS Scheme                             ,B06150,Supplies & Services           ,Services                      ,DF88,Assessor Fees,628,21/03/2013,R,WEST WALES SAFETY SERVICES    
CS -Oth Operating Inc & Expend,T/A Corporate Services,CHAS Scheme                             ,B06150,Supplies & Services           ,Services                      ,DF88,Assessor Fees,"1,818.00",20/03/2013,R,REDACTED
CS -Oth Operating Inc & Expend,T/A Corporate Services,CHAS Scheme                             ,B06150,Supplies & Services           ,Services                      ,DF88,Assessor Fees,"2,289.00",01/03/2013,R,REDACTED
CS -Oth Operating Inc & Expend,T/A Corporate Services,CHAS Scheme                             ,B06150,Supplies & Services           ,Services                      ,DF88,Assessor Fees,501,21/03/2013,R,REDACTED
CS -Oth Operating Inc & Expend,T/A Corporate Services,CHAS Scheme                             ,B06150,Supplies & Services           ,Services                      ,DF88,Assessor Fees,"4,271.00",14/03/2013,R,REDACTED
CS -Oth Operating Inc & Expend,T/A Corporate Services,CHAS Scheme                             ,B06150,Supplies & Services           ,Services                      ,DF88,Assessor Fees,"3,163.00",03/03/2013,R,REDACTED
CS -Oth Operating Inc & Expend,T/A Corporate Services,CHAS Scheme                             ,B06150,Supplies & Services           ,Services                      ,DF88,Assessor Fees,"2,347.00",22/03/2013,R,REDACTED
CS -Oth Operating Inc & Expend,T/A Corporate Services,CHAS Scheme                             ,B06150,Supplies & Services           ,Services                      ,DF88,Assessor Fees,"1,350.00",20/03/2013,R,2ND NATURE SAFETY SOLUTIONS UK
CS -Oth Operating Inc & Expend,T/A Corporate Services,CHAS Scheme                             ,B06150,Supplies & Services           ,Services                      ,DF88,Assessor Fees,729,18/03/2013,R,REDACTED
CS -Oth Operating Inc & Expend,T/A Corporate Services,CHAS Scheme                             ,B06150,Supplies & Services           ,Services                      ,DF88,Assessor Fees,"1,458.00",13/03/2013,R,REDACTED
CS -Oth Operating Inc & Expend,T/A Corporate Services,CHAS Scheme                             ,B06150,Supplies & Services           ,Services                      ,DF88,Assessor Fees,"1,477.00",01/03/2013,R,SOUTH EAST HEALTH & SAFETY LTD
CS -Oth Operating Inc & Expend,T/A Corporate Services,CHAS Scheme                             ,B06150,Supplies & Services           ,Services                      ,DF88,Assessor Fees,515,22/03/2013,R,REDACTED
CS -Oth Operating Inc & Expend,T/A Corporate Services,CHAS Scheme                             ,B06150,Supplies & Services           ,Services                      ,DF88,Assessor Fees,"1,825.00",28/02/2013,R,REDACTED
CS -Oth Operating Inc & Expend,T/A Corporate Services,CHAS Scheme                             ,B06150,Supplies & Services           ,Services                      ,DF88,Assessor Fees,816,22/03/2013,R,REDACTED
CS -Oth Operating Inc & Expend,T/A Corporate Services,CHAS Scheme                             ,B06150,Supplies & Services           ,Services                      ,DF88,Assessor Fees,816,21/03/2013,R,REDACTED
CS -Oth Operating Inc & Expend,T/A Corporate Services,CHAS Scheme                             ,B06150,Supplies & Services           ,Services                      ,DF88,Assessor Fees,642,22/03/2013,R,REDACTED
CS -Oth Operating Inc & Expend,T/A Corporate Services,CHAS Scheme                             ,B06150,Supplies & Services           ,Services                      ,DF88,Assessor Fees,762,22/03/2013,R,REDACTED
CS -Oth Operating Inc & Expend,T/A Corporate Services,CHAS Scheme                             ,B06150,Supplies & Services           ,Services                      ,DF88,Assessor Fees,"3,860.00",22/03/2013,R,REDACTED
CS -Oth Operating Inc & Expend,T/A Corporate Services,CHAS Scheme                             ,B06150,Supplies & Services           ,Services                      ,DF88,Assessor Fees,"1,597.00",17/03/2013,R,REDACTED
CS -Oth Operating Inc & Expend,T/A Corporate Services,CHAS Scheme                             ,B06150,Supplies & Services           ,Services                      ,DF88,Assessor Fees,"1,852.00",19/03/2013,R,REDACTED
CS -Oth Operating Inc & Expend,T/A Corporate Services,CHAS Scheme                             ,B06150,Supplies & Services           ,Services                      ,DF88,Assessor Fees,"1,187.00",28/02/2013,R,REDACTED
CS -Oth Operating Inc & Expend,T/A Corporate Services,CHAS Scheme                             ,B06150,Supplies & Services           ,Services                      ,DF88,Assessor Fees,649,22/03/2013,R,REDACTED
CS -Oth Operating Inc & Expend,T/A Corporate Services,CHAS Scheme                             ,B06150,Supplies & Services           ,Services                      ,DF88,Assessor Fees,602,21/03/2013,R,REDACTED
CS -Oth Operating Inc & Expend,T/A Corporate Services,CHAS Scheme                             ,B06150,Supplies & Services           ,Services                      ,DF88,Assessor Fees,"1,987.00",07/03/2013,R,REDACTED
CS -Oth Operating Inc & Expend,T/A Corporate Services,CHAS Scheme                             ,B06150,Supplies & Services           ,Services                      ,DF88,Assessor Fees,"1,672.00",22/03/2013,R,WOODS CONSULTANCY SERVICES LTD
CS -Oth Operating Inc & Expend,T/A Corporate Services,CHAS Scheme                             ,B06150,Supplies & Services           ,Services                      ,DF88,Assessor Fees,889,14/03/2013,R,REDACTED
CS -Oth Operating Inc & Expend,T/A Corporate Services,CHAS Scheme                             ,B06150,Supplies & Services           ,Services                      ,DF88,Assessor Fees,729,21/03/2013,R,REDACTED
CS -Oth Operating Inc & Expend,T/A Corporate Services,CHAS Scheme                             ,B06150,Supplies & Services           ,Services                      ,DF88,Assessor Fees,"1,070.00",12/03/2013,R,REDACTED
CS -Oth Operating Inc & Expend,T/A Corporate Services,CHAS Scheme                             ,B06150,Supplies & Services           ,Services                      ,DF88,Assessor Fees,"1,188.00",22/03/2013,R,REDACTED
CS -Oth Operating Inc & Expend,T/A Corporate Services,CHAS Scheme                             ,B06150,Supplies & Services           ,Services                      ,DF88,Assessor Fees,541,28/02/2013,R,REDACTED
CS -Oth Operating Inc & Expend,T/A Corporate Services,CHAS Scheme                             ,B06150,Supplies & Services           ,Services                      ,DF88,Assessor Fees,541,02/03/2013,R,REDACTED
CS -Oth Operating Inc & Expend,T/A Corporate Services,CHAS Scheme                             ,B06150,Supplies & Services           ,Services                      ,DF88,Assessor Fees,910,21/03/2013,R,REDACTED
CS -Oth Operating Inc & Expend,T/A Corporate Services,CHAS Scheme                             ,B06150,Supplies & Services           ,Services                      ,DF88,Assessor Fees,548,07/03/2013,R,SELECT SAFETY LIMITED         
CS -Oth Operating Inc & Expend,T/A Corporate Services,CHAS Scheme                             ,B06150,Supplies & Services           ,Services                      ,DF88,Assessor Fees,"2,608.00",13/03/2013,R,REDACTED
CS -Oth Operating Inc & Expend,T/A Corporate Services,CHAS Scheme                             ,B06150,Supplies & Services           ,Services                      ,DF88,Assessor Fees,737,11/03/2013,R,REDACTED
CS -Oth Operating Inc & Expend,T/A Corporate Services,CHAS Scheme                             ,B06150,Supplies & Services           ,Services                      ,DF88,Assessor Fees,"1,371.00",12/03/2013,R,REDACTED
CS -Oth Operating Inc & Expend,T/A Corporate Services,CHAS Scheme                             ,B06150,Supplies & Services           ,Services                      ,DF88,Assessor Fees,951.55,19/03/2013,R,REDACTED
CS -Oth Operating Inc & Expend,T/A Corporate Services,CHAS Scheme                             ,B06150,Supplies & Services           ,Services                      ,DF88,Assessor Fees,682,22/03/2013,R,REDACTED
CS -Oth Operating Inc & Expend,T/A Corporate Services,CHAS Scheme                             ,B06150,Supplies & Services           ,Services                      ,DF88,Assessor Fees,"1,879.00",20/03/2013,R,MGW SAFETY SERVICES           
,,Birches Close                           ,CC014RA,Other Capital Expenditure,,E1,Grants,"111,622.05",28/02/2013,C,ABILITY HOUSING ASSOCIATION   
,,Birches Close                           ,CC014RA,Other Capital Expenditure,,E1,Grants,"3,858.99",28/02/2013,C,ABILITY HOUSING ASSOCIATION   
,,Laptops for Social Care Mngrs           ,CC018EA,Vehicles Plant Equipment and Machinery,,D3,Equipment,"1,728.44",08/03/2013,C,T MOBILE (UK)                 
,,Laptops for Social Care Mngrs           ,CC018EA,Vehicles Plant Equipment and Machinery,,D3,Equipment,"7,275.36",11/03/2013,C,SPECIALIST COMPUTER CENT. PLC 
,,Laptops for Social Care Mngrs           ,CC018EA,Vehicles Plant Equipment and Machinery,,D3,Equipment,"2,800.20",11/03/2013,C,SPECIALIST COMPUTER CENT. PLC 
,,JMC LD Day Centre                       ,CC042AA,New Construction Conversion and Renovation,,B4,Site Works - Contractor,"9,446.95",14/03/2013,C,SALTASH ENTERPRISES LTD       
,,JMC LD Day Centre                       ,CC042AA,New Construction Conversion and Renovation,,B4,Site Works - Contractor,"3,189.64",14/03/2013,C,SALTASH ENTERPRISES LTD       
,,JMC LD Day Centre                       ,CC042AA,New Construction Conversion and Renovation,,B4,Site Works - Contractor,"5,128.30",18/03/2013,C,COFELY LIMITED                
,,JMC LD Day Centre                       ,CC042AA,New Construction Conversion and Renovation,,B4,Site Works - Contractor,"3,696.03",20/03/2013,C,HILL-ROM LTD                  
,,CCTV (match funding)                    ,CE002EA,New Construction Conversion and Renovation,,B1,Design and Supervision - Consultants Fee,"1,683.64",21/02/2013,C,GOODWILL ASSOCIATES LIMITED   
,,Disabled Facilities Grant DCLG          ,CE004RA,Other Capital Expenditure,,E1,Grants,"1,000.00",05/03/2013,C,ZAIMAJ CONSTRUCTION           
,,Disabled Facilities Grant DCLG          ,CE004RA,Other Capital Expenditure,,E1,Grants,"2,239.60",05/03/2013,C,CBS ADAPTATION                
,,Disabled Facilities Grant DCLG          ,CE004RA,Other Capital Expenditure,,E1,Grants,623.16,05/03/2013,C,STAYING FIRST                 
,,Disabled Facilities Grant DCLG          ,CE004RA,Other Capital Expenditure,,E1,Grants,"3,782.56",07/03/2013,C,CBS ADAPTATION                
,,Disabled Facilities Grant DCLG          ,CE004RA,Other Capital Expenditure,,E1,Grants,"5,835.00",07/03/2013,C,VISTA SCAPES                  
,,Disabled Facilities Grant DCLG          ,CE004RA,Other Capital Expenditure,,E1,Grants,"2,137.20",11/03/2013,C,UK POWER NETWORKS (OPERATIONS)
,,Disabled Facilities Grant DCLG          ,CE004RA,Other Capital Expenditure,,E1,Grants,"2,240.00",11/03/2013,C,KINGKRAFT LTD                 
,,Disabled Facilities Grant DCLG          ,CE004RA,Other Capital Expenditure,,E1,Grants,"5,225.00",15/03/2013,C,EXCEL INTERIOR REFURBISHMENT  
,,Disabled Facilities Grant DCLG          ,CE004RA,Other Capital Expenditure,,E1,Grants,"1,794.00",15/03/2013,C,TLC STAIRLIFTS                
,,Disabled Facilities Grant DCLG          ,CE004RA,Other Capital Expenditure,,E1,Grants,"3,424.12",15/03/2013,C,CBS ADAPTATION                
,,Disabled Facilities Grant DCLG          ,CE004RA,Other Capital Expenditure,,E1,Grants,"21,907.00",15/03/2013,C,F G KEEN LIMITED              
,,Disabled Facilities Grant DCLG          ,CE004RA,Other Capital Expenditure,,E1,Grants,"1,581.48",15/03/2013,C,STAYING FIRST                 
,,Disabled Facilities Grant DCLG          ,CE004RA,Other Capital Expenditure,,E1,Grants,"5,436.00",16/03/2013,C,TBS ADAPTATIONS LTD           
,,Disabled Facilities Grant DCLG          ,CE004RA,Other Capital Expenditure,,E1,Grants,"5,346.00",21/03/2013,C,STANNAH LIFTS SERVICE LTD     
,,Disabled Facilities Grant DCLG          ,CE004RA,Other Capital Expenditure,,E1,Grants,"2,065.58",21/03/2013,C,REDACTED
,,Disabled Facilities Grant DCLG          ,CE004RA,Other Capital Expenditure,,E1,Grants,577.77,21/03/2013,C,SUTTON STAYING PUT            
,,Disabled Facilities Grant DCLG          ,CE004RA,Other Capital Expenditure,,E1,Grants,"2,643.00",21/03/2013,C,ASCENDIT LIFTS LTD            
,,Disabled Facilities Grant DCLG          ,CE004RA,Other Capital Expenditure,,E1,Grants,"5,490.00",25/03/2013,C,REDACTED
,,Disabled Facilities Grant DCLG          ,CE004RA,Other Capital Expenditure,,E1,Grants,569.52,27/03/2013,C,REDACTED
,,Disabled Facilities Grant DCLG          ,CE004RA,Other Capital Expenditure,,E1,Grants,"5,665.00",27/03/2013,C,EXCEL INTERIOR REFURBISHMENT  
,,Disabled Facilities Grant DCLG          ,CE004RA,Other Capital Expenditure,,E1,Grants,"2,167.60",27/03/2013,C,STAYING FIRST                 
,,Small Repairs Grant                     ,CE005RA,Other Capital Expenditure,,E1,Grants,"3,891.27",07/03/2013,C,S&S CONSTRUCTION              
,,Small Repairs Grant                     ,CE005RA,Other Capital Expenditure,,E1,Grants,"2,150.00",27/03/2013,C,REDACTED
,,Small Repairs Grant                     ,CE005RA,Other Capital Expenditure,,E1,Grants,"1,850.00",27/03/2013,C,SOUTHERN ROOFING & GUTTERING  
,,Small Repairs Grant                     ,CE005RA,Other Capital Expenditure,,E1,Grants,"2,380.00",27/03/2013,C,REDACTED
,,WCA investment                          ,CE007BA,New Construction Conversion and Renovation,,B2,Design and Supervision - Site Surveys,"2,260.00",10/01/2013,C,AIR SURVEYS  LIMITED          
,,Access Paths Cannizaro Park             ,CE007CA,New Construction Conversion and Renovation,,B4,Site Works - Contractor,"1,150.00",19/03/2013,C,TAYLOR BUILDING COMPANY LTD   
,,Wim Pk Tennis Crt re-surfacing          ,CE009BA,New Construction Conversion and Renovation,,B4,Site Works - Contractor,"5,405.53",20/12/2012,C,THOMAS SINDEN CONSTRUCTION LTD
,,B487 Landscape Ravensbury Park          ,CE009CA,New Construction Conversion and Renovation,,B4,Site Works - Contractor,"3,736.00",27/02/2013,C,REDACTED
,,B487 Landscape Ravensbury Park          ,CE009CA,New Construction Conversion and Renovation,,B4,Site Works - Contractor,"4,227.00",19/03/2013,C,REDACTED
,,B487 Landscape Ravensbury Park          ,CE009CA,New Construction Conversion and Renovation,,B4,Site Works - Contractor,"7,675.00",11/03/2013,C,REDACTED
,,Wimbledon Park Drainage Improv          ,CE017CA,New Construction Conversion and Renovation,,B4,Site Works - Contractor,"5,435.00",18/03/2013,C,MORTON FAIRVIEW ELEC SERVICES 
,,Wimbledon Park Drainage Improv          ,CE017CA,New Construction Conversion and Renovation,,B4,Site Works - Contractor,"9,560.00",18/03/2013,C,MORTON FAIRVIEW ELEC SERVICES 
,,WimPrk Electric and refurbish           ,CE017CC,New Construction Conversion and Renovation,,B4,Site Works - Contractor,"1,140.00",19/03/2013,C,TAYLOR BUILDING COMPANY LTD   
,,Waterfall Project Wimbledn Prk          ,CE017CE,New Construction Conversion and Renovation,,B4,Site Works - Contractor,"4,460.00",21/03/2013,C,TAYLOR BUILDING COMPANY LTD   
,,Trees for Cities                        ,CE020SA,Acquisition of Land and Existing Buildings,,A4,Other Acquisition Costs,"3,167.00",12/11/2012,C,TREELINE SERVICES LTD         
,,Trees for Cities                        ,CE020SA,Acquisition of Land and Existing Buildings,,A4,Other Acquisition Costs,"1,928.20",18/03/2013,C,TRANSF'M L/SCAPE DESIGN & CONS
,,Rock Terrace rec (B523)                 ,CE024CA,New Construction Conversion and Renovation,,B4,Site Works - Contractor,"2,700.00",09/03/2013,C,REDACTED
,,Rock Terrace rec (B523)                 ,CE024CA,New Construction Conversion and Renovation,,B4,Site Works - Contractor,"2,300.00",19/03/2013,C,TAYLOR BUILDING COMPANY LTD   
,,Surface Water Drainage                  ,CE024FA,New Construction Conversion and Renovation,,B4,Site Works - Contractor,"10,000.00",01/03/2013,C,FM CONWAY LTD                 
,,Surface Water Drainage                  ,CE024FA,New Construction Conversion and Renovation,,B4,Site Works - Contractor,"19,000.00",22/03/2013,C,FM CONWAY LTD                 
,,Highways bridges & structures           ,CE025FA,New Construction Conversion and Renovation,,B1,Design and Supervision - Consultants Fee,"10,567.29",22/02/2013,C,AECOM LIMITED                 
,,Highways bridges & structures           ,CE025FA,New Construction Conversion and Renovation,,B1,Design and Supervision - Consultants Fee,820,25/03/2013,C,AECOM LIMITED                 
,,Highways bridges & structures           ,CE025FA,New Construction Conversion and Renovation,,B4,Site Works - Contractor,"8,834.17",28/02/2013,C,FM CONWAY LTD                 
,,Highways bridges & structures           ,CE025FA,New Construction Conversion and Renovation,,B4,Site Works - Contractor,"8,000.00",21/03/2013,C,FM CONWAY LTD                 
,,Highways bridges & structures           ,CE025FA,New Construction Conversion and Renovation,,B4,Site Works - Contractor,"15,145.00",31/01/2013,C,FM CONWAY LTD                 
,,Borough Roads Maintenance               ,CE026FA,New Construction Conversion and Renovation,,B4,Site Works - Contractor,"14,776.84",26/02/2013,C,FM CONWAY LTD                 
,,Borough Roads Maintenance               ,CE026FA,New Construction Conversion and Renovation,,B4,Site Works - Contractor,"104,359.64",01/03/2013,C,FM CONWAY LTD                 
,,Borough Roads Maintenance               ,CE026FA,New Construction Conversion and Renovation,,B4,Site Works - Contractor,"1,658.86",11/03/2013,C,FM CONWAY LTD                 
,,Borough Roads Maintenance               ,CE026FA,New Construction Conversion and Renovation,,B4,Site Works - Contractor,"11,648.67",12/03/2013,C,FM CONWAY LTD                 
,,Borough Roads Maintenance               ,CE026FA,New Construction Conversion and Renovation,,B4,Site Works - Contractor,"104,482.36",04/03/2013,C,FM CONWAY LTD                 
,,Borough Roads Maintenance               ,CE026FA,New Construction Conversion and Renovation,,B4,Site Works - Contractor,"8,423.89",21/03/2013,C,FM CONWAY LTD                 
,,Borough Roads Maintenance               ,CE026FA,New Construction Conversion and Renovation,,B4,Site Works - Contractor,"75,000.00",25/03/2013,C,FM CONWAY LTD                 
,,Borough Roads Maintenance               ,CE026FA,New Construction Conversion and Renovation,,B4,Site Works - Contractor,"122,000.00",25/03/2013,C,FM CONWAY LTD                 
,,Borough Roads Maintenance               ,CE026FA,New Construction Conversion and Renovation,,B4,Site Works - Contractor,"29,000.00",25/03/2013,C,FM CONWAY LTD                 
,,Borough Roads Maintenance               ,CE026FA,New Construction Conversion and Renovation,,B4,Site Works - Contractor,"32,000.00",27/03/2013,C,FM CONWAY LTD                 
,,Repairs to Footways                     ,CE029FA,New Construction Conversion and Renovation,,B4,Site Works - Contractor,"70,000.00",01/03/2013,C,FM CONWAY LTD                 
,,Repairs to Footways                     ,CE029FA,New Construction Conversion and Renovation,,B4,Site Works - Contractor,"41,000.00",22/03/2013,C,FM CONWAY LTD                 
,,Repairs to Footways                     ,CE029FA,New Construction Conversion and Renovation,,B4,Site Works - Contractor,"13,836.70",21/03/2013,C,FM CONWAY LTD                 
,,Repairs to Footways                     ,CE029FA,New Construction Conversion and Renovation,,B6,Site Works - Other Costs,513,05/03/2013,C,UK POWER NETWORKS (OPERATIONS)
,,Repairs to Footways                     ,CE029FA,New Construction Conversion and Renovation,,B6,Site Works - Other Costs,513,05/03/2013,C,UK POWER NETWORKS (OPERATIONS)
,,Repairs to Footways                     ,CE029FA,New Construction Conversion and Renovation,,B6,Site Works - Other Costs,513,05/03/2013,C,UK POWER NETWORKS (OPERATIONS)
,,Wimbledon Park Watersport Cent          ,CE030SB,Vehicles Plant Equipment and Machinery,,D3,Equipment,"1,200.00",25/02/2013,C,KINGSBRIDGE CONSTRUCTION (UK) 
,,Wimbledon Park Watersport Cent          ,CE030SB,Vehicles Plant Equipment and Machinery,,D3,Equipment,"3,372.00",08/02/2013,C,TRIDENT-UK                    
,,Wimbledon Park Watersport Cent          ,CE030SB,Vehicles Plant Equipment and Machinery,,D3,Equipment,"1,124.17",08/02/2013,C,TRIDENT-UK                    
,,Wimbledon Park Watersport Cent          ,CE030SB,Vehicles Plant Equipment and Machinery,,D3,Equipment,"2,375.00",08/02/2013,C,TRIDENT-UK                    
,,Wimbledon Park Watersport Cent          ,CE030SB,Vehicles Plant Equipment and Machinery,,D3,Equipment,"6,375.00",08/02/2013,C,TRIDENT-UK                    
,,Wimbledon Park Watersport Cent          ,CE030SB,Vehicles Plant Equipment and Machinery,,D3,Equipment,"6,375.00",08/02/2013,C,TRIDENT-UK                    
,,Wimbledon Park Watersport Cent          ,CE030SB,Vehicles Plant Equipment and Machinery,,D3,Equipment,"4,780.00",08/02/2013,C,TRIDENT-UK                    
,,Wimbledon Park Watersport Cent          ,CE030SB,Vehicles Plant Equipment and Machinery,,D3,Equipment,"4,780.00",08/02/2013,C,TRIDENT-UK                    
,,Wimbledon Park Watersport Cent          ,CE030SB,Vehicles Plant Equipment and Machinery,,D3,Equipment,"3,372.00",08/02/2013,C,TRIDENT-UK                    
,,Leisure Centre Plant & Machine          ,CE038MA,New Construction Conversion and Renovation,,B4,Site Works - Contractor,"298,000.00",26/02/2013,C,GREENWICH LEISURE LTD         
,,Leisure Centre Plant & Machine          ,CE038MA,New Construction Conversion and Renovation,,B4,Site Works - Contractor,"22,060.18",13/03/2013,C,SALTASH ENTERPRISES LTD       
,,Garth Rd Workshop                       ,CE041AA,Acquisition of Land and Existing Buildings,,A4,Other Acquisition Costs,806.09,14/03/2013,C,NEWPOINT GROUP LIMITED        
,,Garth Rd Workshop                       ,CE041AA,New Construction Conversion and Renovation,,B4,Site Works - Contractor,"1,500.00",31/01/2013,C,BUXTON ASSOCS (CONS) ENG.LTD  
,,Garth Rd Workshop                       ,CE041AA,New Construction Conversion and Renovation,,B4,Site Works - Contractor,"48,491.18",18/02/2013,C,FARNRISE CONSTRUCTION LTD     
,,Garth Rd Workshop                       ,CE041AA,New Construction Conversion and Renovation,,B4,Site Works - Contractor,"67,665.41",19/03/2013,C,FARNRISE CONSTRUCTION LTD     
,,Ryns Pk & Wim ftpath/cyclepath          ,CE050FD,New Construction Conversion and Renovation,,B4,Site Works - Contractor,"2,950.00",25/03/2013,C,FM CONWAY LTD                 
,,Climate Change Initiatives              ,CE052MA,New Construction Conversion and Renovation,,B2,Design and Supervision - Site Surveys,"3,429.32",22/02/2013,C,MPM                           
,,Climate Change Initiatives              ,CE052MA,New Construction Conversion and Renovation,,B2,Design and Supervision - Site Surveys,"1,417.76",22/02/2013,C,MPM                           
,,Climate Change Initiatives              ,CE052MA,New Construction Conversion and Renovation,,B2,Design and Supervision - Site Surveys,"4,121.20",22/02/2013,C,MPM                           
,,Climate Change Initiatives              ,CE052MA,New Construction Conversion and Renovation,,B2,Design and Supervision - Site Surveys,"18,265.06",29/01/2013,C,SALTASH ENTERPRISES LTD       
,,East Merton Investment                  ,CE058FA,New Construction Conversion and Renovation,,B1,Design and Supervision - Consultants Fee,"6,500.00",20/03/2013,C,HYDER CONSULTING (UK) LTD     
,,East Merton Investment                  ,CE058FA,New Construction Conversion and Renovation,,B4,Site Works - Contractor,"30,000.00",01/03/2013,C,FM CONWAY LTD                 
,,East Merton Investment                  ,CE058FA,New Construction Conversion and Renovation,,B4,Site Works - Contractor,"4,500.00",22/03/2013,C,FM CONWAY LTD                 
,,East Merton Investment                  ,CE058FA,New Construction Conversion and Renovation,,B4,Site Works - Contractor,"23,500.00",22/03/2013,C,FM CONWAY LTD                 
,,East Merton Investment                  ,CE058FA,New Construction Conversion and Renovation,,B6,Site Works - Other Costs,"2,000.00",18/03/2013,C,TRANSPORT FOR LONDON          
,,Town Centre Investment                  ,CE061FB,New Construction Conversion and Renovation,,B3,Design and Supervision - Other Expenses,"2,500.00",21/03/2013,C,STUDIO WEAVE LTD              
,,Town Centre Investment                  ,CE061FB,New Construction Conversion and Renovation,,B3,Design and Supervision - Other Expenses,"4,500.00",27/03/2013,C,STUDIO WEAVE LTD              
,,Improve markings & road signs           ,CE066EA,New Construction Conversion and Renovation,,B4,Site Works - Contractor,"3,987.84",11/03/2013,C,FM CONWAY LTD                 
,,Improve markings & road signs           ,CE066EA,New Construction Conversion and Renovation,,B4,Site Works - Contractor,"1,962.93",11/03/2013,C,FM CONWAY LTD                 
,,Improve markings & road signs           ,CE066EA,New Construction Conversion and Renovation,,B4,Site Works - Contractor,"1,504.09",11/03/2013,C,FM CONWAY LTD                 
,,Improve markings & road signs           ,CE066EA,New Construction Conversion and Renovation,,B4,Site Works - Contractor,"1,000.00",11/03/2013,C,FM CONWAY LTD                 
,,Improve markings & road signs           ,CE066EA,New Construction Conversion and Renovation,,B4,Site Works - Contractor,"3,000.00",11/03/2013,C,FM CONWAY LTD                 
,,Improve markings & road signs           ,CE066EA,New Construction Conversion and Renovation,,B4,Site Works - Contractor,"7,000.00",21/03/2013,C,MAY GURNEY LTD T/A CARTLEDGE  
,,Improve markings & road signs           ,CE066EA,New Construction Conversion and Renovation,,B4,Site Works - Contractor,"25,000.00",21/03/2013,C,MAY GURNEY LTD T/A CARTLEDGE  
,,Improve markings & road signs           ,CE066EA,New Construction Conversion and Renovation,,B4,Site Works - Contractor,"15,000.00",21/03/2013,C,MAY GURNEY LTD T/A CARTLEDGE  
,,Improve markings & road signs           ,CE066EA,New Construction Conversion and Renovation,,B4,Site Works - Contractor,"8,000.00",21/03/2013,C,MAY GURNEY LTD T/A CARTLEDGE  
,,Improve markings & road signs           ,CE066EA,New Construction Conversion and Renovation,,B4,Site Works - Contractor,"1,786.23",21/03/2013,C,MAY GURNEY LTD T/A CARTLEDGE  
,,Improve markings & road signs           ,CE066EA,New Construction Conversion and Renovation,,B4,Site Works - Contractor,"5,950.61",22/03/2013,C,FM CONWAY LTD                 
,,Improve markings & road signs           ,CE066EA,New Construction Conversion and Renovation,,B4,Site Works - Contractor,"3,157.44",25/03/2013,C,FM CONWAY LTD                 
,,Improve markings & road signs           ,CE066EA,New Construction Conversion and Renovation,,B4,Site Works - Contractor,"15,000.00",27/03/2013,C,FM CONWAY LTD                 
,,Improve markings & road signs           ,CE066EA,New Construction Conversion and Renovation,,B4,Site Works - Contractor,"3,415.01",27/03/2013,C,FM CONWAY LTD                 
,,Street scene enhancements               ,CE066FE,Acquisition of Land and Existing Buildings,,A1,Purchase,"5,558.00",15/03/2013,C,SANTANDER ASSET FINANCE PLC   
,,Street scene enhancements               ,CE066FE,New Construction Conversion and Renovation,,B4,Site Works - Contractor,"2,247.82",20/12/2013,C,AMB SPORTS LTD                
,,Street scene enhancements               ,CE066FE,New Construction Conversion and Renovation,,B4,Site Works - Contractor,"8,090.00",09/03/2013,C,REDACTED
,,Street scene enhancements               ,CE066FE,New Construction Conversion and Renovation,,B4,Site Works - Contractor,"4,400.00",20/03/2013,C,MORTON FAIRVIEW ELEC SERVICES 
,,Street scene enhancements               ,CE066FE,New Construction Conversion and Renovation,,B4,Site Works - Contractor,"1,050.00",09/03/2013,C,REDACTED
,,Street scene enhancements               ,CE066FE,New Construction Conversion and Renovation,,B4,Site Works - Contractor,"1,050.00",09/03/2013,C,REDACTED
,,Street scene enhancements               ,CE066FE,New Construction Conversion and Renovation,,B4,Site Works - Contractor,"3,200.00",09/03/2013,C,REDACTED
,,Street scene enhancements               ,CE066FE,New Construction Conversion and Renovation,,B4,Site Works - Contractor,"5,988.00",09/03/2013,C,REDACTED
,,Street scene enhancements               ,CE066FE,New Construction Conversion and Renovation,,B4,Site Works - Contractor,850,09/03/2013,C,REDACTED
,,Street scene enhancements               ,CE066FE,New Construction Conversion and Renovation,,B4,Site Works - Contractor,595,20/03/2013,C,MORTON FAIRVIEW ELEC SERVICES 
,,Street scene enhancements               ,CE066FE,New Construction Conversion and Renovation,,B4,Site Works - Contractor,"11,205.00",14/03/2013,C,TAYLOR BUILDING COMPANY LTD   
,,Street scene enhancements               ,CE066FE,New Construction Conversion and Renovation,,B4,Site Works - Contractor,"9,125.00",19/03/2013,C,THE CRESCENT FENCING CO.      
,,Street scene enhancements               ,CE066FE,New Construction Conversion and Renovation,,B4,Site Works - Contractor,"3,280.00",26/03/2013,C,JUST METAL UK LTD             
,,Street Tree Programme                   ,CE067FA,New Construction Conversion and Renovation,,B4,Site Works - Contractor,"20,000.00",01/03/2013,C,FM CONWAY LTD                 
,,Street Tree Programme                   ,CE067FA,New Construction Conversion and Renovation,,B4,Site Works - Contractor,"29,000.00",22/03/2013,C,FM CONWAY LTD                 
,,Street Lighting Replacement Pr          ,CE068FA,New Construction Conversion and Renovation,,B4,Site Works - Contractor,690.91,20/02/2013,C,MAY GURNEY LTD T/A CARTLEDGE  
,,Street Lighting Replacement Pr          ,CE068FA,New Construction Conversion and Renovation,,B4,Site Works - Contractor,"140,000.00",20/02/2013,C,MAY GURNEY LTD T/A CARTLEDGE  
,,Street Lighting Replacement Pr          ,CE068FA,New Construction Conversion and Renovation,,B4,Site Works - Contractor,"10,000.00",22/02/2013,C,MAY GURNEY LTD T/A CARTLEDGE  
,,Street Lighting Replacement Pr          ,CE068FA,New Construction Conversion and Renovation,,B4,Site Works - Contractor,"4,349.25",01/03/2013,C,FM CONWAY LTD                 
,,Street Lighting Replacement Pr          ,CE068FA,New Construction Conversion and Renovation,,B4,Site Works - Contractor,"41,206.69",11/03/2013,C,MAY GURNEY LTD T/A CARTLEDGE  
,,Street Lighting Replacement Pr          ,CE068FA,New Construction Conversion and Renovation,,B4,Site Works - Contractor,849,11/03/2013,C,MAY GURNEY LTD T/A CARTLEDGE  
,,Street Lighting Replacement Pr          ,CE068FA,New Construction Conversion and Renovation,,B4,Site Works - Contractor,"4,000.00",19/03/2013,C,MAY GURNEY LTD T/A CARTLEDGE  
,,Street Lighting Replacement Pr          ,CE068FA,New Construction Conversion and Renovation,,B4,Site Works - Contractor,"2,368.73",15/03/2013,C,MAY GURNEY LTD T/A CARTLEDGE  
,,Street Lighting Replacement Pr          ,CE068FA,New Construction Conversion and Renovation,,B4,Site Works - Contractor,"4,251.26",15/03/2013,C,MAY GURNEY LTD T/A CARTLEDGE  
,,Street Lighting Replacement Pr          ,CE068FA,New Construction Conversion and Renovation,,B4,Site Works - Contractor,"2,843.02",21/03/2013,C,MAY GURNEY LTD T/A CARTLEDGE  
,,Street Lighting Replacement Pr          ,CE068FA,New Construction Conversion and Renovation,,B4,Site Works - Contractor,"1,636.33",15/03/2013,C,MAY GURNEY LTD T/A CARTLEDGE  
,,Street Lighting Replacement Pr          ,CE068FA,New Construction Conversion and Renovation,,B4,Site Works - Contractor,"137,156.98",21/03/2013,C,MAY GURNEY LTD T/A CARTLEDGE  
,,Street Lighting Replacement Pr          ,CE068FA,New Construction Conversion and Renovation,,B4,Site Works - Contractor,"11,000.00",21/03/2013,C,MAY GURNEY LTD T/A CARTLEDGE  
,,Street Lighting Replacement Pr          ,CE068FA,New Construction Conversion and Renovation,,B4,Site Works - Contractor,"4,400.55",15/03/2013,C,MAY GURNEY LTD T/A CARTLEDGE  
,,Street Lighting Replacement Pr          ,CE068FA,New Construction Conversion and Renovation,,B4,Site Works - Contractor,"8,767.14",21/03/2013,C,MAY GURNEY LTD T/A CARTLEDGE  
,,Street Lighting Replacement Pr          ,CE068FA,New Construction Conversion and Renovation,,B4,Site Works - Contractor,"34,915.86",21/03/2013,C,MAY GURNEY LTD T/A CARTLEDGE  
,,Street Lighting Replacement Pr          ,CE068FA,New Construction Conversion and Renovation,,B4,Site Works - Contractor,"5,692.00",25/03/2013,C,MAY GURNEY LTD T/A CARTLEDGE  
,,Street Lighting Replacement Pr          ,CE068FA,New Construction Conversion and Renovation,,B4,Site Works - Contractor,"22,000.00",25/03/2013,C,FM CONWAY LTD                 
,,Street Lighting Replacement Pr          ,CE068FA,New Construction Conversion and Renovation,,B4,Site Works - Contractor,"19,000.00",22/03/2013,C,FM CONWAY LTD                 
,,Street Lighting Replacement Pr          ,CE068FA,New Construction Conversion and Renovation,,B4,Site Works - Contractor,"15,000.00",21/03/2013,C,MAY GURNEY LTD T/A CARTLEDGE  
,,Street Lighting Replacement Pr          ,CE068FA,New Construction Conversion and Renovation,,B4,Site Works - Contractor,"35,000.00",21/03/2013,C,MAY GURNEY LTD T/A CARTLEDGE  
,,Street Lighting Replacement Pr          ,CE068FA,New Construction Conversion and Renovation,,B4,Site Works - Contractor,"8,000.00",25/03/2013,C,MAY GURNEY LTD T/A CARTLEDGE  
,,Replacement of Fleet Vehicles           ,CE082EA,Vehicles Plant Equipment and Machinery,,D1,Vehicles,"12,693.00",27/02/2013,C,CITROEN LONDON WEST           
,,Replacement of Fleet Vehicles           ,CE082EA,Vehicles Plant Equipment and Machinery,,D1,Vehicles,"23,655.40",08/03/2013,C,KENT COUNTY COUNCIL           
,,Replacement of Fleet Vehicles           ,CE082EA,Vehicles Plant Equipment and Machinery,,D1,Vehicles,"23,655.40",08/03/2013,C,KENT COUNTY COUNCIL           
,,Replacement of Fleet Vehicles           ,CE082EA,Vehicles Plant Equipment and Machinery,,D1,Vehicles,"23,655.40",08/03/2013,C,KENT COUNTY COUNCIL           
,,Re-use/recycling Site Maintena          ,CE090SA,New Construction Conversion and Renovation,,B6,Site Works - Other Costs,"20,000.00",28/02/2013,C,SMARTSTREETS                  
,,Waste Phase B - Replace RCVs            ,CE092EA,New Construction Conversion and Renovation,,B4,Site Works - Contractor,"1,247.39",18/03/2013,C,FM CONWAY LTD                 
,,Waste Phase B - Replace RCVs            ,CE092EA,New Construction Conversion and Renovation,,B4,Site Works - Contractor,"6,778.00",21/03/2013,C,SALTASH ENTERPRISES LTD       
,,Elec Vehic/Scooter Infrastruct          ,CE104FA,Other Capital Expenditure,,E4,TFL Other,745,26/02/2013,C,BASEPOINT DATA LIMITED        
,,Strategic corridor Mitcham              ,CE104FB,New Construction Conversion and Renovation,,B1,Design and Supervision - Consultants Fee,"23,004.61",28/02/2013,C,HYDER CONSULTING (UK) LTD     
,,Strategic corridor Mitcham              ,CE104FB,New Construction Conversion and Renovation,,B2,Design and Supervision - Site Surveys,"3,650.00",15/03/2013,C,LASER SURVEYS                 
,,Strategic corridor Mitcham              ,CE104FB,New Construction Conversion and Renovation,,B2,Design and Supervision - Site Surveys,"2,450.00",15/03/2013,C,LASER SURVEYS                 
,,Strategic corridor Mitcham              ,CE104FB,New Construction Conversion and Renovation,,B4,Site Works - Contractor,"14,000.00",19/03/2013,C,FM CONWAY LTD                 
,,Strategic corridor Mitcham              ,CE104FB,New Construction Conversion and Renovation,,B4,Site Works - Contractor,"9,000.00",20/03/2013,C,FM CONWAY LTD                 
,,Strategic corridor Mitcham              ,CE104FB,New Construction Conversion and Renovation,,B4,Site Works - Contractor,"49,000.00",18/03/2013,C,FM CONWAY LTD                 
,,Strategic corridor Mitcham              ,CE104FB,New Construction Conversion and Renovation,,B5,Site Works - Suppliers,"18,506.00",28/02/2013,C,WOOD & WOOD SIGNS             
,,Strategic corridor Mitcham              ,CE104FB,Vehicles Plant Equipment and Machinery,,D5,Software,"1,155.00",12/03/2013,C,LONDON LETTERBOX MARKETING    
,,Strategic corridor Mitcham              ,CE104FB,Other Capital Expenditure,,E4,TFL Other,"2,300.00",25/02/2013,C,THE CENTRE FOR ACCESSIBLE ENV.
,,Strategic corridor Mitcham              ,CE104FB,Other Capital Expenditure,,E4,TFL Other,"3,437.50",26/02/2013,C,STUDIO WEAVE LTD              
,,Kingston/Hartfield Rd StratCor          ,CE104FC,New Construction Conversion and Renovation,,B4,Site Works - Contractor,"66,000.00",21/03/2013,C,FM CONWAY LTD                 
,,Accesibility Programme                  ,CE104FD,New Construction Conversion and Renovation,,B4,Site Works - Contractor,"4,000.00",18/02/2013,C,MAY GURNEY LTD T/A CARTLEDGE  
,,Accesibility Programme                  ,CE104FD,New Construction Conversion and Renovation,,B4,Site Works - Contractor,688.77,18/02/2013,C,MAY GURNEY LTD T/A CARTLEDGE  
,,Accesibility Programme                  ,CE104FD,New Construction Conversion and Renovation,,B4,Site Works - Contractor,"3,664.72",11/03/2013,C,FM CONWAY LTD                 
,,Accesibility Programme                  ,CE104FD,New Construction Conversion and Renovation,,B4,Site Works - Contractor,"40,000.00",01/03/2013,C,FM CONWAY LTD                 
,,Accesibility Programme                  ,CE104FD,New Construction Conversion and Renovation,,B4,Site Works - Contractor,"1,697.37",12/03/2013,C,FM CONWAY LTD                 
,,Accesibility Programme                  ,CE104FD,New Construction Conversion and Renovation,,B4,Site Works - Contractor,507.55,04/03/2013,C,FM CONWAY LTD                 
,,Accesibility Programme                  ,CE104FD,New Construction Conversion and Renovation,,B4,Site Works - Contractor,579.71,15/03/2013,C,MAY GURNEY LTD T/A CARTLEDGE  
,,Accesibility Programme                  ,CE104FD,New Construction Conversion and Renovation,,B4,Site Works - Contractor,"40,000.00",21/03/2013,C,FM CONWAY LTD                 
,,Accesibility Programme                  ,CE104FD,New Construction Conversion and Renovation,,B4,Site Works - Contractor,"29,000.00",22/03/2013,C,FM CONWAY LTD                 
,,Cycle access/parking                    ,CE104FG,New Construction Conversion and Renovation,,B4,Site Works - Contractor,"13,428.94",21/03/2013,C,MAY GURNEY LTD T/A CARTLEDGE  
,,Cycle access/parking                    ,CE104FG,New Construction Conversion and Renovation,,B4,Site Works - Contractor,"21,000.00",27/03/2013,C,FM CONWAY LTD                 
,,Morden Town Centre                      ,CE104FK,New Construction Conversion and Renovation,,B1,Design and Supervision - Consultants Fee,"30,000.00",07/03/2013,C,HYDER CONSULTING (UK) LTD     
,,Casualty Reduction & Schools            ,CE104RA,New Construction Conversion and Renovation,,B4,Site Works - Contractor,"10,000.00",12/03/2013,C,FM CONWAY LTD                 
,,Casualty Reduction & Schools            ,CE104RA,New Construction Conversion and Renovation,,B4,Site Works - Contractor,"18,000.00",12/03/2013,C,FM CONWAY LTD                 
,,Casualty Reduction & Schools            ,CE104RA,New Construction Conversion and Renovation,,B4,Site Works - Contractor,"50,000.00",12/03/2013,C,FM CONWAY LTD                 
,,Casualty Reduction & Schools            ,CE104RA,New Construction Conversion and Renovation,,B4,Site Works - Contractor,"3,145.08",15/03/2013,C,MAY GURNEY LTD T/A CARTLEDGE  
,,Casualty Reduction & Schools            ,CE104RA,New Construction Conversion and Renovation,,B4,Site Works - Contractor,"3,100.50",15/03/2013,C,MAY GURNEY LTD T/A CARTLEDGE  
,,Casualty Reduction & Schools            ,CE104RA,New Construction Conversion and Renovation,,B4,Site Works - Contractor,"5,867.12",22/03/2013,C,FM CONWAY LTD                 
,,Casualty Reduction & Schools            ,CE104RA,New Construction Conversion and Renovation,,B6,Site Works - Other Costs,513,27/02/2013,C,UK POWER NETWORKS (OPERATIONS)
,,Casualty Reduction & Schools            ,CE104RA,New Construction Conversion and Renovation,,B6,Site Works - Other Costs,513,27/02/2013,C,UK POWER NETWORKS (OPERATIONS)
,,School & Road Safety Campaigns          ,CE104RC,Other Capital Expenditure,,E4,TFL Other,"4,952.00",15/03/2013,C,RED ZULU LIMITED              
,,School & Road Safety Campaigns          ,CE104RC,Other Capital Expenditure,,E4,TFL Other,"1,000.00",13/03/2013,C,BLAKES DRIVER TRAINING        
,,Bikeability cycle training Pro          ,CE104RG,Other Capital Expenditure,,E4,TFL Other,800,05/03/2013,C,BLAKES DRIVER TRAINING        
,,Bikeability cycle training Pro          ,CE104RG,Other Capital Expenditure,,E4,TFL Other,584,15/03/2013,C,RED ZULU LIMITED              
,,Mobility Scooter Training               ,CE104RH,Other Capital Expenditure,,E4,TFL Other,"15,000.00",27/02/2013,C,MERTON COMMUNITY TRANSPORT    
,,Cycle Improvements                      ,CE104RM,New Construction Conversion and Renovation,,B4,Site Works - Contractor,"1,598.00",19/03/2013,C,MAY GURNEY LTD T/A CARTLEDGE  
,,Cycle Improvements                      ,CE104RM,New Construction Conversion and Renovation,,B4,Site Works - Contractor,"31,655.20",21/03/2013,C,MAY GURNEY LTD T/A CARTLEDGE  
,,Cycle Improvements                      ,CE104RM,New Construction Conversion and Renovation,,B4,Site Works - Contractor,"5,551.94",25/03/2013,C,FM CONWAY LTD                 
,,Cycle Improvements                      ,CE104RM,New Construction Conversion and Renovation,,B4,Site Works - Contractor,"20,000.00",27/03/2013,C,FM CONWAY LTD                 
,,Developing the Tram                     ,CE104RN,Other Capital Expenditure,,E4,TFL Other,"5,000.00",26/02/2013,C,BASEPOINT DATA LIMITED        
,,Commonside West                         ,CE105FG,New Construction Conversion and Renovation,,B4,Site Works - Contractor,"40,000.00",11/03/2013,C,FM CONWAY LTD                 
,,Merton High Street                      ,CE105FH,New Construction Conversion and Renovation,,B4,Site Works - Contractor,"75,000.00",04/03/2013,C,FM CONWAY LTD                 
,,Merton High Street                      ,CE105FH,New Construction Conversion and Renovation,,B4,Site Works - Contractor,"1,778.96",21/03/2013,C,FM CONWAY LTD                 
,,Wim TC Accessibility & Streets          ,CE106FA,New Construction Conversion and Renovation,,B4,Site Works - Contractor,"1,285.75",21/03/2013,C,FM CONWAY LTD                 
,,Wim TC Accessibility & Streets          ,CE106FA,New Construction Conversion and Renovation,,B4,Site Works - Contractor,"25,000.00",22/03/2013,C,FM CONWAY LTD                 
,,Wim TC Accessibility & Streets          ,CE106FA,New Construction Conversion and Renovation,,B4,Site Works - Contractor,"35,000.00",22/03/2013,C,FM CONWAY LTD                 
,,Wim TC Accessibility & Streets          ,CE106FA,New Construction Conversion and Renovation,,B5,Site Works - Suppliers,"2,370.36",27/03/2013,C,SIGNWAY SUPPLIES              
,,Wim TC Accessibility & Streets          ,CE106FA,New Construction Conversion and Renovation,,B6,Site Works - Other Costs,"3,405.98",22/03/2013,C,TRANSPORT FOR LONDON          
,,Wim TC Accessibility & Streets          ,CE106FA,Vehicles Plant Equipment and Machinery,,D5,Software,"1,500.00",25/02/2013,C,JCDECAUX UNITED KINGDOM       
,,Bushey Rd Bridge Special Insp           ,CE111FE,New Construction Conversion and Renovation,,B1,Design and Supervision - Consultants Fee,"2,250.00",20/03/2013,C,ATKINS LIMITED                
,,Biking Borough Project                  ,CE128FA,New Construction Conversion and Renovation,,B4,Site Works - Contractor,"34,000.00",21/03/2013,C,FM CONWAY LTD                 
,,Biking Borough Programme                ,CE128RA,New Construction Conversion and Renovation,,B4,Site Works - Contractor,"9,000.00",27/03/2013,C,FM CONWAY LTD                 
,,New Traffic Schemes                     ,CE135SA,New Construction Conversion and Renovation,,B4,Site Works - Contractor,"2,629.98",04/03/2013,C,FM CONWAY LTD                 
,,New Traffic Schemes                     ,CE135SA,New Construction Conversion and Renovation,,B4,Site Works - Contractor,"25,000.00",04/03/2013,C,FM CONWAY LTD                 
,,New Traffic Schemes                     ,CE135SA,New Construction Conversion and Renovation,,B4,Site Works - Contractor,"5,961.18",14/03/2013,C,FM CONWAY LTD                 
,,New Traffic Schemes                     ,CE135SA,New Construction Conversion and Renovation,,B4,Site Works - Contractor,"60,000.00",27/03/2013,C,FM CONWAY LTD                 
,,Raynes Park Pavilion                    ,CE143BA,New Construction Conversion and Renovation,,B4,Site Works - Contractor,"2,096.00",14/02/2013,C,LA BELLE ROOFING CO LTD       
,,Raynes Park Pavilion                    ,CE143BA,New Construction Conversion and Renovation,,B4,Site Works - Contractor,"34,542.00",14/03/2013,C,TAYLOR BUILDING COMPANY LTD   
,,Raynes Park Pavilion                    ,CE143BA,New Construction Conversion and Renovation,,B4,Site Works - Contractor,"1,985.00",14/03/2013,C,TAYLOR BUILDING COMPANY LTD   
,,Raynes Park Pavilion                    ,CE143BA,New Construction Conversion and Renovation,,B4,Site Works - Contractor,"1,380.00",14/03/2013,C,TAYLOR BUILDING COMPANY LTD   
,,RAPID READY MIX EQUIP,CE145EA,Vehicles Plant Equipment and Machinery,,D3,Equipment,733.31,28/02/2013,C,ALPHA BATTERIES LTD           
,,RAPID READY MIX EQUIP,CE145EA,Vehicles Plant Equipment and Machinery,,D3,Equipment,"15,000.00",07/03/2013,C,ENVIRO TECHNOLOGY SERVICES PLC
,,Civic C-Fire Alarm Panel                ,CF001AF,New Construction Conversion and Renovation,,B4,Site Works - Contractor,"1,863.96",28/03/2013,C,FIRST CHOICE FACILITIES PLC   
,,Civic C-Fire Alarm Panel                ,CF001AF,New Construction Conversion and Renovation,,B4,Site Works - Contractor,"2,265.29",28/03/2013,C,FIRST CHOICE FACILITIES PLC   
,,Civic Centre Windows                    ,CF001AK,New Construction Conversion and Renovation,,B4,Site Works - Contractor,"15,000.00",13/03/2013,C,SALTASH ENTERPRISES LTD       
,,Civic Centre Windows                    ,CF001AK,New Construction Conversion and Renovation,,B4,Site Works - Contractor,"10,491.65",07/03/2013,C,SALTASH ENTERPRISES LTD       
,,Civic Centre Windows                    ,CF001AK,New Construction Conversion and Renovation,,B4,Site Works - Contractor,"4,000.00",07/03/2013,C,SALTASH ENTERPRISES LTD       
,,Energy Utility Invest to Save           ,CF002SA,New Construction Conversion and Renovation,,B4,Site Works - Contractor,"16,465.50",07/01/2013,C,COFELY LIMITED                
,,Energy Utility Invest to Save           ,CF002SA,New Construction Conversion and Renovation,,B4,Site Works - Contractor,"1,059.04",06/02/2013,C,ENERGY SAVING LIGHTING (UK) LT
,,Invest to Save schemes-General          ,CF003SA,New Construction Conversion and Renovation,,B4,Site Works - Contractor,"5,238.73",06/02/2013,C,ENERGY SAVING LIGHTING (UK) LT
,,Invest to Save schemes-General          ,CF003SA,New Construction Conversion and Renovation,,B5,Site Works - Suppliers,"1,812.64",27/03/2013,C,THORLUX LIGHTING              
,,Replace air conditioning equip          ,CF004EA,New Construction Conversion and Renovation,,B4,Site Works - Contractor,"5,090.18",20/02/2013,C,COFELY LIMITED                
,,Replace air conditioning equip          ,CF004EA,New Construction Conversion and Renovation,,B4,Site Works - Contractor,"30,000.00",20/02/2013,C,COFELY LIMITED                
,,Replace air conditioning equip          ,CF004EA,New Construction Conversion and Renovation,,B4,Site Works - Contractor,"-3,381.86",07/03/2013,C,COFELY LIMITED                
,,Replace air conditioning equip          ,CF004EA,New Construction Conversion and Renovation,,B4,Site Works - Contractor,"20,000.00",26/03/2013,C,COFELY LIMITED                
,,IT Equip Room-Air Conditioning          ,CF004EB,New Construction Conversion and Renovation,,B4,Site Works - Contractor,"1,017.47",26/03/2013,C,COFELY LIMITED                
,,IT Equip Room-Air Conditioning          ,CF004EB,New Construction Conversion and Renovation,,B4,Site Works - Contractor,"9,000.00",26/03/2013,C,COFELY LIMITED                
,,Repair and Maintenance                  ,CF004SA,New Construction Conversion and Renovation,,B4,Site Works - Contractor,"20,000.00",13/03/2013,C,SALTASH ENTERPRISES LTD       
,,Repair and Maintenance                  ,CF004SA,New Construction Conversion and Renovation,,B4,Site Works - Contractor,"20,000.00",13/03/2013,C,SALTASH ENTERPRISES LTD       
,,Repair and Maintenance                  ,CF004SA,Vehicles Plant Equipment and Machinery,,D4,Specialist Furniture,"10,890.00",27/02/2013,C,UNIQUE OFFICE SOLUTIONS LTD   
,,St Ann's - Targeted Capital             ,CS001DA,New Construction Conversion and Renovation,,B4,Site Works - Contractor,680.34,01/03/2013,C,PORTAKABIN LIMITED            
,,St Ann's - Targeted Capital             ,CS001DA,New Construction Conversion and Renovation,,B4,Site Works - Contractor,"58,208.66",06/03/2013,C,R DURTNELL & SONS LTD         
,,St Ann's - Targeted Capital             ,CS001DA,Vehicles Plant Equipment and Machinery,,D3,Equipment,"1,044.00",07/03/2013,C,ATOMWIDE LTD                  
,,St Ann's - Targeted Capital             ,CS001DA,Vehicles Plant Equipment and Machinery,,D3,Equipment,"4,224.00",07/03/2013,C,ATOMWIDE LTD                  
,,Aragon expansion                        ,CS008AA,New Construction Conversion and Renovation,,B1,Design and Supervision - Consultants Fee,"3,750.00",22/02/2013,C,EC HARRIS LLP                 
,,St Mary's expansion                     ,CS008RA,New Construction Conversion and Renovation,,B1,Design and Supervision - Consultants Fee,"18,590.00",28/02/2013,C,NPS PROPERTY CONSULTANTS LTD  
,,St Mary's expansion                     ,CS008RA,New Construction Conversion and Renovation,,B2,Design and Supervision - Site Surveys,613.75,15/02/2013,C,JMP CONSULTANTS LTD           
,,St Mary's expansion                     ,CS008RA,New Construction Conversion and Renovation,,B2,Design and Supervision - Site Surveys,"2,580.00",28/02/2013,C,SURVEY SOLUTIONS              
,,St Mary's expansion                     ,CS008RA,New Construction Conversion and Renovation,,B2,Design and Supervision - Site Surveys,700,15/03/2013,C,JMP CONSULTANTS LTD           
,,Pupil Growth - Unallocated              ,CS008SA,New Construction Conversion and Renovation,,B4,Site Works - Contractor,"8,008.06",28/02/2013,C,THE MCAVOY GROUP              
,,Temp classroom for 5 schools            ,CS009EA,New Construction Conversion and Renovation,,B1,Design and Supervision - Consultants Fee,944.93,22/03/2013,C,ATKINS LIMITED                
,,Joseph Hood Permanent Expansn           ,CS012AA,New Construction Conversion and Renovation,,B4,Site Works - Contractor,776.14,07/03/2013,C,COFELY LIMITED                
,,Garden PCP                              ,CS013AA,New Construction Conversion and Renovation,,B4,Site Works - Contractor,"89,358.29",07/03/2013,C,R DURTNELL & SONS LTD         
,,Garden PCP                              ,CS013AA,New Construction Conversion and Renovation,,B6,Site Works - Other Costs,"1,263.33",31/12/2012,C,EDE'S (U.K.) LTD              
,,Garden PCP                              ,CS013AA,New Construction Conversion and Renovation,,B6,Site Works - Other Costs,-600,28/02/2013,C,EDE'S (U.K.) LTD              
,,Garden PCP                              ,CS013AA,Vehicles Plant Equipment and Machinery,,D3,Equipment,"7,000.00",13/03/2013,C,MM-ICT LIMITED                
,,St Marks PS-classroom lighting          ,CS015AC,New Construction Conversion and Renovation,,B4,Site Works - Contractor,801.84,11/03/2013,C,R DURTNELL & SONS LTD         
,,Gorringe Park expansion                 ,CS018AB,New Construction Conversion and Renovation,,B1,Design and Supervision - Consultants Fee,"39,126.00",07/02/2013,C,HAVERSTOCK ASSOCIATES LLP     
,,Gorringe Park expansion                 ,CS018AB,New Construction Conversion and Renovation,,B2,Design and Supervision - Site Surveys,"1,516.67",19/03/2013,C,LONDON WILDLIFE TRUST         
,,Gorringe Park expansion                 ,CS018AB,New Construction Conversion and Renovation,,B4,Site Works - Contractor,"19,000.00",13/03/2013,C,GEE CONSTRUCTION LTD          
,,Gorringe Park expansion                 ,CS018AB,New Construction Conversion and Renovation,,B4,Site Works - Contractor,"110,000.00",13/03/2013,C,GEE CONSTRUCTION LTD          
,,Hillcross School Expansion              ,CS020AC,New Construction Conversion and Renovation,,B1,Design and Supervision - Consultants Fee,"1,163.46",25/02/2013,C,EC HARRIS LLP                 
,,Hillcross School Expansion              ,CS020AC,New Construction Conversion and Renovation,,B1,Design and Supervision - Consultants Fee,"3,000.00",28/02/2013,C,STACE LLP                     
,,Hillcross School Expansion              ,CS020AC,New Construction Conversion and Renovation,,B1,Design and Supervision - Consultants Fee,"10,027.00",28/02/2013,C,CURL LA TOURELLE ARCHITECTS   
,,Hillcross School Expansion              ,CS020AC,New Construction Conversion and Renovation,,B1,Design and Supervision - Consultants Fee,"14,800.00",28/02/2013,C,CURL LA TOURELLE ARCHITECTS   
,,Hillcross School Expansion              ,CS020AC,New Construction Conversion and Renovation,,B1,Design and Supervision - Consultants Fee,"3,000.00",28/03/2013,C,STACE LLP                     
,,Hillcross School Expansion              ,CS020AC,New Construction Conversion and Renovation,,B2,Design and Supervision - Site Surveys,"1,075.00",15/02/2013,C,JMP CONSULTANTS LTD           
,,Hillcross School Expansion              ,CS020AC,New Construction Conversion and Renovation,,B2,Design and Supervision - Site Surveys,"3,480.00",13/03/2013,C,KF TECHNICAL SERVICES         
,,Hillcross School Expansion              ,CS020AC,New Construction Conversion and Renovation,,B2,Design and Supervision - Site Surveys,525,15/03/2013,C,JMP CONSULTANTS LTD           
,,Merton Abbey Temp Accomodation          ,CS022AC,New Construction Conversion and Renovation,,B2,Design and Supervision - Site Surveys,"1,808.29",28/02/2013,C,KEEGANS LIMITED               
,,Pelham School Expansion                 ,CS023AC,New Construction Conversion and Renovation,,B1,Design and Supervision - Consultants Fee,"3,000.00",28/02/2013,C,STACE LLP                     
,,Pelham School Expansion                 ,CS023AC,New Construction Conversion and Renovation,,B1,Design and Supervision - Consultants Fee,"4,000.00",28/03/2013,C,STACE LLP                     
,,Pelham School Expansion                 ,CS023AC,New Construction Conversion and Renovation,,B2,Design and Supervision - Site Surveys,"3,169.25",28/02/2013,C,RSK ENVIRONMENT LTD           
,,Pelham School Expansion                 ,CS023AC,New Construction Conversion and Renovation,,B2,Design and Supervision - Site Surveys,775,28/02/2013,C,RSK ENVIRONMENT LTD           
,,Pelham - Window Replacement             ,CS023AD,New Construction Conversion and Renovation,,B4,Site Works - Contractor,"2,888.44",11/03/2013,C,UPRISE LIMITED                
,,Cricket Gn-Imprved site access          ,CS026AB,New Construction Conversion and Renovation,,B1,Design and Supervision - Consultants Fee,"14,603.27",25/02/2013,C,EC HARRIS LLP                 
,,Cricket Grn Exp-Chapel Orchard          ,CS026AC,New Construction Conversion and Renovation,,B4,Site Works - Contractor,"28,030.04",05/03/2013,C,GEE CONSTRUCTION LTD          
,,Dundonald expansion                     ,CS031AC,New Construction Conversion and Renovation,,B1,Design and Supervision - Consultants Fee,"1,000.00",28/02/2013,C,SYNERGY CPC LLP               
,,St Ann's Primary Phase                  ,CS032AA,New Construction Conversion and Renovation,,B1,Design and Supervision - Consultants Fee,"11,792.38",25/02/2013,C,EC HARRIS LLP                 
,,Poplar Permanent Expansion              ,CS034AB,New Construction Conversion and Renovation,,B2,Design and Supervision - Site Surveys,"4,011.00",28/02/2013,C,MLM MULTIDISCIPLINARY CONSULT.
,,Poplar Permanent Expansion              ,CS034AB,New Construction Conversion and Renovation,,B2,Design and Supervision - Site Surveys,"3,035.76",15/02/2013,C,JMP CONSULTANTS LTD           
,,Poplar Permanent Expansion              ,CS034AB,New Construction Conversion and Renovation,,B2,Design and Supervision - Site Surveys,"3,689.74",28/02/2013,C,KEEGANS LIMITED               
,,Poplar Permanent Expansion              ,CS034AB,New Construction Conversion and Renovation,,B4,Site Works - Contractor,"7,386.30",28/02/2013,C,THE MCAVOY GROUP              
,,Liberty expansion                       ,CS036AB,New Construction Conversion and Renovation,,B5,Site Works - Suppliers,658.99,07/03/2013,C,BLUE CUBE CONNECTIONS LTD     
,,Singlegate expansion                    ,CS049AA,New Construction Conversion and Renovation,,B2,Design and Supervision - Site Surveys,"2,209.19",15/02/2013,C,JMP CONSULTANTS LTD           
,,Singlegate expansion                    ,CS049AA,New Construction Conversion and Renovation,,B4,Site Works - Contractor,"1,450.00",07/03/2013,C,ROMFORD INSULATION            
,,Wimbledon Park expansion                ,CS050AA,New Construction Conversion and Renovation,,B1,Design and Supervision - Consultants Fee,"2,400.00",28/02/2013,C,SYNERGY CPC LLP               
,,Wimbledon Park expansion                ,CS050AA,New Construction Conversion and Renovation,,B1,Design and Supervision - Consultants Fee,"24,815.74",12/03/2013,C,CURL LA TOURELLE ARCHITECTS   
,,Wimbledon Park expansion                ,CS050AA,New Construction Conversion and Renovation,,B1,Design and Supervision - Consultants Fee,550,15/03/2013,C,DF20 LTD                      
,,Wimbledon Park expansion                ,CS050AA,New Construction Conversion and Renovation,,B4,Site Works - Contractor,"157,396.02",07/03/2013,C,GEE CONSTRUCTION LTD          
,,Merton Pk- Entrance adaptation          ,CS052AB,New Construction Conversion and Renovation,,B2,Design and Supervision - Site Surveys,650,28/02/2013,C,REDHILLS ENVIRONMENTAL CONSUL.
,,Breaks-disabled children grant          ,CS085RA,New Construction Conversion and Renovation,,B4,Site Works - Contractor,"1,260.39",08/03/2013,C,COFELY LIMITED                
,,Breaks-disabled children grant          ,CS085RA,Vehicles Plant Equipment and Machinery,,D4,Specialist Furniture,968,31/07/2012,C,SENSORY DEVELOPMENTS          
,,Connect to N3 Netwrk NHS Spine          ,CT001EA,Vehicles Plant Equipment and Machinery,,D3,Equipment,575.75,13/02/2013,C,NET-CTRL                      
,,Connect to N3 Netwrk NHS Spine          ,CT001EA,Vehicles Plant Equipment and Machinery,,D3,Equipment,"3,355.00",13/02/2013,C,NET-CTRL                      
,,Connect to N3 Netwrk NHS Spine          ,CT001EA,Vehicles Plant Equipment and Machinery,,D3,Equipment,592,27/02/2013,C,SPECIALIST COMPUTER CENT. PLC 
,,Connect to N3 Netwrk NHS Spine          ,CT001EA,Other Capital Expenditure,,E3,Miscellaneous Capital Expenditure,"2,500.00",13/02/2013,C,NET-CTRL                      
,,Connect to N3 Netwrk NHS Spine          ,CT001EA,Other Capital Expenditure,,E3,Miscellaneous Capital Expenditure,667.75,13/02/2013,C,NET-CTRL                      
,,Connect to N3 Netwrk NHS Spine          ,CT001EA,Other Capital Expenditure,,E3,Miscellaneous Capital Expenditure,667.75,13/02/2013,C,NET-CTRL                      
,,Connect to N3 Netwrk NHS Spine          ,CT001EA,Other Capital Expenditure,,E3,Miscellaneous Capital Expenditure,"2,765.00",31/01/2013,C,LONDON GRID FOR LEARNING TRUST
,,Connect to N3 Netwrk NHS Spine          ,CT001EA,Other Capital Expenditure,,E3,Miscellaneous Capital Expenditure,"7,995.00",31/01/2013,C,LONDON GRID FOR LEARNING TRUST
,,Disaster recovery                       ,CT003EA,New Construction Conversion and Renovation,,B4,Site Works - Contractor,"29,450.13",18/03/2013,C,DATA TECHNIQUES               
,,Disaster recovery                       ,CT003EA,Vehicles Plant Equipment and Machinery,,D3,Equipment,"6,883.20",26/02/2013,C,ORGANISED COMPUTER SYSTEMS LTD
,,Disaster recovery                       ,CT003EA,Vehicles Plant Equipment and Machinery,,D3,Equipment,"9,177.60",26/02/2013,C,ORGANISED COMPUTER SYSTEMS LTD
,,Disaster recovery                       ,CT003EA,Vehicles Plant Equipment and Machinery,,D3,Equipment,"6,562.40",26/02/2013,C,ORGANISED COMPUTER SYSTEMS LTD
,,Disaster recovery                       ,CT003EA,Vehicles Plant Equipment and Machinery,,D3,Equipment,"1,368.09",27/02/2013,C,CISILION LTD                  
,,Disaster recovery                       ,CT003EA,Vehicles Plant Equipment and Machinery,,D3,Equipment,"6,840.81",27/02/2013,C,CISILION LTD                  
,,Disaster recovery                       ,CT003EA,Vehicles Plant Equipment and Machinery,,D3,Equipment,"2,998.64",27/02/2013,C,UNIVERSAL NETWORKS UK         
,,Disaster recovery                       ,CT003EA,Vehicles Plant Equipment and Machinery,,D3,Equipment,"3,627.70",27/02/2013,C,CISILION LTD                  
,,Disaster recovery                       ,CT003EA,Vehicles Plant Equipment and Machinery,,D3,Equipment,"53,358.39",27/02/2013,C,CISILION LTD                  
,,Disaster recovery                       ,CT003EA,Vehicles Plant Equipment and Machinery,,D3,Equipment,"2,902.16",13/03/2013,C,CISILION LTD                  
,,Disaster recovery                       ,CT003EA,Vehicles Plant Equipment and Machinery,,D3,Equipment,"7,201.95",04/03/2013,C,CISILION LTD                  
,,Disaster recovery                       ,CT003EA,Vehicles Plant Equipment and Machinery,,D3,Equipment,"7,863.52",26/03/2013,C,DATA INTEGRATION LTD          
,,Disaster recovery                       ,CT003EA,Vehicles Plant Equipment and Machinery,,D3,Equipment,"1,380.06",26/03/2013,C,DATA INTEGRATION LTD          
,,Disaster recovery                       ,CT003EA,Vehicles Plant Equipment and Machinery,,D3,Equipment,"13,918.79",26/03/2013,C,DATA INTEGRATION LTD          
,,Disaster recovery                       ,CT003EA,Vehicles Plant Equipment and Machinery,,D3,Equipment,"9,647.14",26/03/2013,C,DATA INTEGRATION LTD          
,,Disaster recovery                       ,CT003EA,Other Capital Expenditure,,E3,Miscellaneous Capital Expenditure,"3,000.00",26/03/2013,C,DATA INTEGRATION LTD          
,,IT Equipment                            ,CT006EA,Vehicles Plant Equipment and Machinery,,D3,Equipment,"3,392.00",22/03/2013,C,FORDWAY LTD                   
,,IT Equipment                            ,CT006EA,Vehicles Plant Equipment and Machinery,,D3,Equipment,"2,368.00",27/02/2013,C,SPECIALIST COMPUTER CENT. PLC 
,,IT Equipment                            ,CT006EA,Vehicles Plant Equipment and Machinery,,D3,Equipment,"4,144.00",28/02/2013,C,SPECIALIST COMPUTER CENT. PLC 
,,IT Equipment                            ,CT006EA,Vehicles Plant Equipment and Machinery,,D3,Equipment,"1,400.10",28/02/2013,C,SPECIALIST COMPUTER CENT. PLC 
,,IT Equipment                            ,CT006EA,Vehicles Plant Equipment and Machinery,,D3,Equipment,"4,667.10",14/02/2013,C,SPECIALIST COMPUTER CENT. PLC 
,,IT Equipment                            ,CT006EA,Vehicles Plant Equipment and Machinery,,D3,Equipment,"7,000.50",15/02/2013,C,SPECIALIST COMPUTER CENT. PLC 
,,IT Equipment                            ,CT006EA,Vehicles Plant Equipment and Machinery,,D3,Equipment,882.09,13/03/2013,C,VIGLEN LIMITED                
,,IT Equipment                            ,CT006EA,Vehicles Plant Equipment and Machinery,,D3,Equipment,"8,658.00",27/03/2013,C,INCOM TELECOMMUNICATIONS      
,,Information lifecycle Mgt               ,CT007EE,Vehicles Plant Equipment and Machinery,,D3,Equipment,"27,800.07",27/02/2013,C,AXIAL SYSTEMS                 
,,Information lifecycle Mgt               ,CT007EE,Vehicles Plant Equipment and Machinery,,D3,Equipment,"36,504.00",22/01/2013,C,COMPUTERLAND                  
,,Information lifecycle Mgt               ,CT007EE,Vehicles Plant Equipment and Machinery,,D3,Equipment,"1,264.00",27/03/2013,C,SCALABLE COMMUNICATIONS PLC   
,,Information lifecycle Mgt               ,CT007EE,Vehicles Plant Equipment and Machinery,,D5,Software,"1,000.72",27/02/2013,C,AXIAL SYSTEMS                 
,,Information lifecycle Mgt               ,CT007EE,Vehicles Plant Equipment and Machinery,,D5,Software,742.38,26/03/2013,C,MARQUEST LIMITED              
,,Information lifecycle Mgt               ,CT007EE,Vehicles Plant Equipment and Machinery,,D5,Software,742.38,26/03/2013,C,MARQUEST LIMITED              
,,Information lifecycle Mgt               ,CT007EE,Other Capital Expenditure,,E3,Miscellaneous Capital Expenditure,"23,100.00",18/01/2013,C,COMPUTERLAND                  
,,IT Strategy - unallocated               ,CT007EW,New Construction Conversion and Renovation,,B4,Site Works - Contractor,"11,325.46",18/02/2013,C,DATA TECHNIQUES               
,,IT Strategy - unallocated               ,CT007EW,New Construction Conversion and Renovation,,B4,Site Works - Contractor,"35,000.00",18/02/2013,C,DATA TECHNIQUES               
,,IT Strategy - unallocated               ,CT007EW,New Construction Conversion and Renovation,,B4,Site Works - Contractor,"5,000.00",13/03/2013,C,SALTASH ENTERPRISES LTD       
,,IT Strategy - unallocated               ,CT007EW,New Construction Conversion and Renovation,,B4,Site Works - Contractor,"4,555.19",07/03/2013,C,SALTASH ENTERPRISES LTD       
,,IT Strategy - unallocated               ,CT007EW,New Construction Conversion and Renovation,,B4,Site Works - Contractor,"48,719.57",27/02/2013,C,DATA TECHNIQUES               
,,IT Strategy - unallocated               ,CT007EW,New Construction Conversion and Renovation,,B4,Site Works - Contractor,"5,015.24",18/03/2013,C,DATA TECHNIQUES               
,,IT Strategy - unallocated               ,CT007EW,New Construction Conversion and Renovation,,B4,Site Works - Contractor,"3,638.33",18/03/2013,C,DATA TECHNIQUES               
,,IT Strategy - unallocated               ,CT007EW,New Construction Conversion and Renovation,,B4,Site Works - Contractor,"5,000.00",28/03/2013,C,SALTASH ENTERPRISES LTD       
,,IT Strategy - unallocated               ,CT007EW,New Construction Conversion and Renovation,,B4,Site Works - Contractor,"1,524.40",28/03/2013,C,SALTASH ENTERPRISES LTD       
,,IT Strategy - unallocated               ,CT007EW,New Construction Conversion and Renovation,,B4,Site Works - Contractor,"10,840.23",18/03/2013,C,DATA TECHNIQUES               
,,IT Strategy - unallocated               ,CT007EW,New Construction Conversion and Renovation,,B4,Site Works - Contractor,"35,000.00",18/03/2013,C,DATA TECHNIQUES               
,,PABX                                    ,CT009EA,Vehicles Plant Equipment and Machinery,,D3,Equipment,"7,950.00",22/03/2013,C,AJP SOLUTIONS                 
,,Stability Networks                      ,CT012ED,Vehicles Plant Equipment and Machinery,,D3,Equipment,"4,397.45",28/01/2013,C,ALTODIGITAL NETWORKS LTD      
,,Stability Networks                      ,CT012ED,Vehicles Plant Equipment and Machinery,,D3,Equipment,"11,182.00",07/02/2013,C,SOFTCAT LTD                   
,,Stability Networks                      ,CT012ED,Vehicles Plant Equipment and Machinery,,D3,Equipment,"11,182.00",07/02/2013,C,SOFTCAT LTD                   
,,Stability Networks                      ,CT012ED,Vehicles Plant Equipment and Machinery,,D3,Equipment,"2,500.00",28/02/2013,C,FORDWAY LTD                   
,,Stability Networks                      ,CT012ED,Vehicles Plant Equipment and Machinery,,D3,Equipment,"6,990.00",07/02/2013,C,SOFTCAT LTD                   
,,Stability Networks                      ,CT012ED,Other Capital Expenditure,,E3,Miscellaneous Capital Expenditure,"5,833.33",14/03/2013,C,LONDON GRID FOR LEARNING TRUST
,,Stability Networks                      ,CT012ED,Other Capital Expenditure,,E3,Miscellaneous Capital Expenditure,"2,200.00",08/02/2013,C,MARQUEST LIMITED              
,,Proactis to Carefirst link              ,CT012EJ,Vehicles Plant Equipment and Machinery,,D5,Software,"1,600.00",03/02/2013,C,UNISERVE CONSULTING LIMITED   
,,Proactis to Carefirst link              ,CT012EJ,Vehicles Plant Equipment and Machinery,,D5,Software,"3,800.00",03/02/2013,C,UNISERVE CONSULTING LIMITED   
,,CTTE DECISION MAKING SYSTEM           ,CT019NA,Vehicles Plant Equipment and Machinery,,D5,Software,"6,000.00",12/03/2013,C,MODERN MINDSET                
,,CTTE DECISION MAKING SYSTEM           ,CT019NA,Vehicles Plant Equipment and Machinery,,D5,Software,"2,000.00",12/03/2013,C,MODERN MINDSET                
Central Services,Council tax collection,Local Taxation Services                 ,E02100,Supplies & Services           ,Services                      ,DF09,Miscellaneous Fees,500,22/03/2013,R,REDACTED
Central Services,Council tax collection,Local Taxation Services                 ,E02100,Supplies & Services           ,Services                      ,DF11,Counsel's fees,"1,485.55",01/03/2013,R,WELBECK LAW LLP               
Central Services,Council tax collection,Local Taxation Services                 ,E02100,Supplies & Services           ,Services                      ,DF11,Counsel's fees,920,14/03/2013,R,WELBECK LAW LLP               
Central Services,Council tax collection,Local Taxation Services                 ,E02100,Supplies & Services           ,Comms and Computing           ,DG09,Computer Purchases - Misc,725,20/03/2013,R,MAG:NET SOLUTIONS             
Central Services,Council tax collection,Local Taxation Services                 ,E02100,Supplies & Services           ,Comms and Computing           ,DG09,Computer Purchases - Misc,"12,669.05",11/03/2013,R,CIVICA UK LIMITED             
Housing Services,HB Administration,Benefits Administration                 ,E02120,Supplies & Services           ,Comms and Computing           ,DG05,Telephones - Gen-Creditors,930,21/03/2013,R,NETCALL TELECOM LIMITED       
Housing Services,HB Administration,Local Welfare Support                   ,E02123,Supplies & Services           ,Services                      ,DF09,Miscellaneous Fees,"22,000.00",12/03/2013,R,CENTRAL PROCESSING UNIT       
Central Services,SupS Payroll,Payroll                                 ,E02140,Supplies & Services           ,Comms and Computing           ,DG02,Software Licences,715,28/02/2013,R,TMP WORLDWIDE LTD             
Central Services,SupS Payroll,Payroll                                 ,E02140,Supplies & Services           ,Comms and Computing           ,DG02,Software Licences,715,25/03/2013,R,TMP WORLDWIDE LTD             
Central Services,SupS Payroll,Payroll                                 ,E02140,Supplies & Services           ,Comms and Computing           ,DG09,Computer Purchases - Misc,"7,308.18",09/01/2013,R,LONDON BOROUGH OF SUTTON      
Central Services,SupS Payroll,Payroll                                 ,E02140,Third Party Payments          ,Private Contractors           ,EH10,Contract Payments,"12,303.35",19/02/2013,R,LONDON BOROUGH OF SUTTON      
Central Services,SupS Facilities,Post Room                               ,E02220,Supplies & Services           ,Equip Furniture/Materials     ,DA01,Equipment - R & M,"3,118.40",18/03/2013,R,PITNEY BOWES LTD              
Central Services,SupS Facilities,Post Room                               ,E02220,Supplies & Services           ,Comms and Computing           ,DG04,Postage - General,"1,283.40",19/03/2013,R,NEOPOST FINANCE LIMITED       
Central Services,SupS Facilities,Security Services                       ,E02221,Employees                     ,Direct Employee Expenses      ,AA17,Agency Staff & Casual Paymts,"1,507.00",01/03/2013,R,REDACTED
Central Services,SupS Facilities,Civic Centre                            ,E02222,Premises Related Expenditure  ,RepairsAlterations&MtceOfBldgs,BA29,Build Maint Mgt Fees,"1,395.00",15/02/2013,R,KH FLOORING LTD               
Central Services,SupS Facilities,Civic Centre                            ,E02222,Premises Related Expenditure  ,RepairsAlterations&MtceOfBldgs,BA29,Build Maint Mgt Fees,"2,091.00",15/02/2013,R,KH FLOORING LTD               
Central Services,SupS Facilities,Civic Centre                            ,E02222,Premises Related Expenditure  ,RepairsAlterations&MtceOfBldgs,BA29,Build Maint Mgt Fees,"5,042.52",19/03/2013,R,UNIQUE OFFICE SOLUTIONS LTD   
Central Services,SupS Facilities,Civic Centre                            ,E02222,Premises Related Expenditure  ,RepairsAlterations&MtceOfBldgs,BA29,Build Maint Mgt Fees,"3,841.60",19/03/2013,R,UNIQUE OFFICE SOLUTIONS LTD   
Central Services,SupS Facilities,Civic Centre                            ,E02222,Premises Related Expenditure  ,RepairsAlterations&MtceOfBldgs,BA29,Build Maint Mgt Fees,"3,500.00",19/03/2013,R,UNIQUE OFFICE SOLUTIONS LTD   
Central Services,SupS Facilities,Civic Centre                            ,E02222,Premises Related Expenditure  ,Cleaning and Domestic Supplies,BH01,Cleaning Materials,510.6,12/02/2013,R,GREENHAM TRADING LTD          
Central Services,SupS Facilities,Civic Centre                            ,E02222,Premises Related Expenditure  ,Cleaning and Domestic Supplies,BH01,Cleaning Materials,510.6,05/03/2013,R,GREENHAM                      
Central Services,SupS Facilities,Civic Centre                            ,E02222,Premises Related Expenditure  ,Cleaning and Domestic Supplies,BH01,Cleaning Materials,595.7,15/03/2013,R,GREENHAM                      
Central Services,SupS Facilities,Civic Centre                            ,E02222,Premises Related Expenditure  ,Cleaning and Domestic Supplies,BH03,Cleaning Services,"3,035.93",28/02/2013,R,BIRKIN CLEANING SERVICES LTD  
Central Services,SupS Facilities,Civic Centre                            ,E02222,Premises Related Expenditure  ,Cleaning and Domestic Supplies,BH03,Cleaning Services,819.47,28/02/2013,R,BIRKIN CLEANING SERVICES LTD  
Central Services,SupS Facilities,Civic Centre                            ,E02222,Premises Related Expenditure  ,Cleaning and Domestic Supplies,BH03,Cleaning Services,"1,464.69",28/02/2013,R,BIRKIN CLEANING SERVICES LTD  
Central Services,SupS Facilities,Civic Centre                            ,E02222,Premises Related Expenditure  ,Cleaning and Domestic Supplies,BH03,Cleaning Services,"1,511.31",28/02/2013,R,BIRKIN CLEANING SERVICES LTD  
Central Services,SupS Facilities,Civic Centre                            ,E02222,Premises Related Expenditure  ,Cleaning and Domestic Supplies,BH03,Cleaning Services,"6,473.18",28/02/2013,R,BIRKIN CLEANING SERVICES LTD  
Central Services,SupS Facilities,Civic Centre                            ,E02222,Premises Related Expenditure  ,Cleaning and Domestic Supplies,BH03,Cleaning Services,"1,395.29",28/02/2013,R,BIRKIN CLEANING SERVICES LTD  
Central Services,SupS Facilities,Civic Centre                            ,E02222,Premises Related Expenditure  ,Cleaning and Domestic Supplies,BH03,Cleaning Services,"1,642.40",28/02/2013,R,BIRKIN CLEANING SERVICES LTD  
Central Services,SupS Facilities,Civic Centre                            ,E02222,Premises Related Expenditure  ,Cleaning and Domestic Supplies,BH03,Cleaning Services,"1,199.41",28/02/2013,R,BIRKIN CLEANING SERVICES LTD  
Central Services,SupS Facilities,Civic Centre                            ,E02222,Premises Related Expenditure  ,Cleaning and Domestic Supplies,BH03,Cleaning Services,"1,215.98",28/02/2013,R,BIRKIN CLEANING SERVICES LTD  
Central Services,SupS Facilities,Civic Centre                            ,E02222,Premises Related Expenditure  ,Cleaning and Domestic Supplies,BH03,Cleaning Services,"3,035.93",15/03/2013,R,BIRKIN CLEANING SERVICES LTD  
Central Services,SupS Facilities,Civic Centre                            ,E02222,Premises Related Expenditure  ,Cleaning and Domestic Supplies,BH03,Cleaning Services,819.47,15/03/2013,R,BIRKIN CLEANING SERVICES LTD  
Central Services,SupS Facilities,Civic Centre                            ,E02222,Premises Related Expenditure  ,Cleaning and Domestic Supplies,BH03,Cleaning Services,"1,464.69",15/03/2013,R,BIRKIN CLEANING SERVICES LTD  
Central Services,SupS Facilities,Civic Centre                            ,E02222,Premises Related Expenditure  ,Cleaning and Domestic Supplies,BH03,Cleaning Services,"1,511.31",15/03/2013,R,BIRKIN CLEANING SERVICES LTD  
Central Services,SupS Facilities,Civic Centre                            ,E02222,Premises Related Expenditure  ,Cleaning and Domestic Supplies,BH03,Cleaning Services,"6,473.18",15/03/2013,R,BIRKIN CLEANING SERVICES LTD  
Central Services,SupS Facilities,Civic Centre                            ,E02222,Premises Related Expenditure  ,Cleaning and Domestic Supplies,BH03,Cleaning Services,"1,395.29",15/03/2013,R,BIRKIN CLEANING SERVICES LTD  
Central Services,SupS Facilities,Civic Centre                            ,E02222,Premises Related Expenditure  ,Cleaning and Domestic Supplies,BH03,Cleaning Services,"1,642.40",15/03/2013,R,BIRKIN CLEANING SERVICES LTD  
Central Services,SupS Facilities,Civic Centre                            ,E02222,Premises Related Expenditure  ,Cleaning and Domestic Supplies,BH03,Cleaning Services,"1,199.41",15/03/2013,R,BIRKIN CLEANING SERVICES LTD  
Central Services,SupS Facilities,Civic Centre                            ,E02222,Premises Related Expenditure  ,Cleaning and Domestic Supplies,BH03,Cleaning Services,"1,215.98",15/03/2013,R,BIRKIN CLEANING SERVICES LTD  
Central Services,SupS Facilities,Civic Centre                            ,E02222,Third Party Payments          ,Private Contractors           ,EH10,Contract Payments,"3,051.36",25/01/2013,R,ISS COLLECTIONS LTD           
Central Services,SupS Facilities,Civic Centre                            ,E02222,Third Party Payments          ,Private Contractors           ,EH10,Contract Payments,"4,534.64",24/02/2013,R,ISS COLLECTIONS LTD           
Central Services,SupS Facilities,Civic Centre                            ,E02222,Third Party Payments          ,Private Contractors           ,EH10,Contract Payments,"3,652.39",19/03/2013,R,ISS COLLECTIONS LTD           
Central Services,SupS Facilities,Facilities                              ,E02231,Employees                     ,Indirect Employee Expenses    ,AB02,Recruitment Adverts,"4,000.00",08/02/2013,R,HAYS RECRUITING EXPERTS       
Central Services,SupS Facilities,Facilities                              ,E02231,Premises Related Expenditure  ,RepairsAlterations&MtceOfBldgs,BA05,DDM - Electrical,"8,866.00",27/03/2013,R,COFELY LIMITED                
Central Services,SupS Facilities,Facilities                              ,E02231,Premises Related Expenditure  ,RepairsAlterations&MtceOfBldgs,BA06,Repairs & Maintenance General,"7,048.68",27/02/2013,R,THORLUX LIGHTING              
Central Services,SupS Facilities,Facilities                              ,E02231,Premises Related Expenditure  ,RepairsAlterations&MtceOfBldgs,BA06,Repairs & Maintenance General,"4,992.00",06/03/2013,R,FORBO FLOORING UK LTD         
Central Services,SupS Facilities,Facilities                              ,E02231,Premises Related Expenditure  ,RepairsAlterations&MtceOfBldgs,BA06,Repairs & Maintenance General,930,06/03/2013,R,FORBO FLOORING UK LTD         
Central Services,SupS Facilities,Facilities                              ,E02231,Premises Related Expenditure  ,RepairsAlterations&MtceOfBldgs,BA06,Repairs & Maintenance General,"5,965.00",20/03/2013,R,THORLUX LIGHTING              
Central Services,SupS Facilities,Facilities                              ,E02231,Premises Related Expenditure  ,RepairsAlterations&MtceOfBldgs,BA29,Build Maint Mgt Fees,"6,750.00",05/03/2013,R,FRONTLINE DATA LIMITED        
Central Services,SupS Facilities,Facilities                              ,E02231,Premises Related Expenditure  ,RepairsAlterations&MtceOfBldgs,BA29,Build Maint Mgt Fees,"1,250.00",20/03/2013,R,FRONTLINE DATA LIMITED        
Central Services,SupS Facilities,Facilities                              ,E02231,Premises Related Expenditure  ,RepairsAlterations&MtceOfBldgs,BA89,Fire Safety Risk Assessment,"6,414.00",30/11/2012,R,FIRST CHOICE FACILITIES PLC   
Central Services,SupS Facilities,Facilities                              ,E02231,Premises Related Expenditure  ,RepairsAlterations&MtceOfBldgs,BA89,Fire Safety Risk Assessment,725.45,27/02/2013,R,CHUBB FIRE & SECURITY LTD     
Central Services,SupS Facilities,Facilities                              ,E02231,Premises Related Expenditure  ,RepairsAlterations&MtceOfBldgs,BA89,Fire Safety Risk Assessment,"1,000.00",20/02/2013,R,COFELY LIMITED                
Central Services,SupS Facilities,Facilities                              ,E02231,Premises Related Expenditure  ,RepairsAlterations&MtceOfBldgs,BA89,Fire Safety Risk Assessment,"1,591.99",20/02/2013,R,COFELY LIMITED                
Central Services,SupS Facilities,Facilities                              ,E02231,Premises Related Expenditure  ,RepairsAlterations&MtceOfBldgs,BA89,Fire Safety Risk Assessment,"2,437.42",28/02/2013,R,FIRST CHOICE FACILITIES PLC   
Central Services,SupS Facilities,Facilities                              ,E02231,Premises Related Expenditure  ,RepairsAlterations&MtceOfBldgs,BA89,Fire Safety Risk Assessment,"6,625.00",27/03/2013,R,SALTASH ENTERPRISES LTD       
Central Services,SupS Facilities,Facilities                              ,E02231,Premises Related Expenditure  ,RepairsAlterations&MtceOfBldgs,BA89,Fire Safety Risk Assessment,891.54,27/03/2013,R,SALTASH ENTERPRISES LTD       
Central Services,SupS Facilities,Facilities                              ,E02231,Premises Related Expenditure  ,RepairsAlterations&MtceOfBldgs,BA89,Fire Safety Risk Assessment,"50,000.00",21/03/2013,R,SALTASH ENTERPRISES LTD       
Central Services,SupS Facilities,Facilities                              ,E02231,Premises Related Expenditure  ,RepairsAlterations&MtceOfBldgs,BA90,Water Hygiene,500,05/02/2013,R,SALTASH ENTERPRISES LTD       
Central Services,SupS Facilities,Facilities                              ,E02231,Premises Related Expenditure  ,RepairsAlterations&MtceOfBldgs,BA90,Water Hygiene,"11,092.21",27/03/2013,R,COFELY LIMITED                
Central Services,SupS Facilities,Facilities                              ,E02231,Premises Related Expenditure  ,RepairsAlterations&MtceOfBldgs,BA90,Water Hygiene,"25,000.00",27/03/2013,R,COFELY LIMITED                
Central Services,SupS Facilities,Facilities                              ,E02231,Supplies & Services           ,Comms and Computing           ,DG07,Computer Software,"1,040.00",22/03/2013,R,CADLINE LTD                   
Central Services,SupS Facilities,Facilities                              ,E02231,Supplies & Services           ,Comms and Computing           ,DG09,Computer Purchases - Misc,670,19/03/2013,R,SPECIALIST COMPUTER CENT. PLC 
Central Services,SupS Facilities,FM External Fees                        ,E02239,Premises Related Expenditure  ,RepairsAlterations&MtceOfBldgs,BA01,DDM - General Building,"3,228.00",14/03/2013,R,SALTASH ENTERPRISES LTD       
Central Services,SupS Facilities,FM External Fees                        ,E02239,Premises Related Expenditure  ,RepairsAlterations&MtceOfBldgs,BA01,DDM - General Building,"5,795.00",18/03/2013,R,SALTASH ENTERPRISES LTD       
Central Services,SupS Facilities,FM External Fees                        ,E02239,Premises Related Expenditure  ,RepairsAlterations&MtceOfBldgs,BA01,DDM - General Building,972.68,01/03/2013,R,M&S CONTRACTING SERVICES LTD  
Central Services,SupS Facilities,Corporate Services Buildings            ,E02240,Premises Related Expenditure  ,RepairsAlterations&MtceOfBldgs,BA01,DDM - General Building,"3,731.76",28/03/2013,R,SALTASH ENTERPRISES LTD       
Central Services,SupS Facilities,Corporate Services Buildings            ,E02240,Premises Related Expenditure  ,RepairsAlterations&MtceOfBldgs,BA01,DDM - General Building,681.76,28/03/2013,R,SALTASH ENTERPRISES LTD       
Central Services,SupS Facilities,Corporate Services Buildings            ,E02240,Premises Related Expenditure  ,RepairsAlterations&MtceOfBldgs,BA01,DDM - General Building,"1,758.24",28/03/2013,R,SALTASH ENTERPRISES LTD       
Central Services,SupS Facilities,Corporate Services Buildings            ,E02240,Premises Related Expenditure  ,RepairsAlterations&MtceOfBldgs,BA01,DDM - General Building,"1,471.18",28/03/2013,R,SALTASH ENTERPRISES LTD       
Central Services,SupS Facilities,Corporate Services Buildings            ,E02240,Premises Related Expenditure  ,RepairsAlterations&MtceOfBldgs,BA01,DDM - General Building,"1,471.18",28/03/2013,R,SALTASH ENTERPRISES LTD       
Central Services,SupS Facilities,Corporate Services Buildings            ,E02240,Premises Related Expenditure  ,RepairsAlterations&MtceOfBldgs,BA03,DDM - Mechanical,"2,413.56",14/01/2013,R,CHUBB FIRE & SECURITY LTD     
Central Services,SupS Facilities,Corporate Services Buildings            ,E02240,Premises Related Expenditure  ,RepairsAlterations&MtceOfBldgs,BA03,DDM - Mechanical,"4,098.21",27/02/2013,R,COFELY LIMITED                
Central Services,SupS Facilities,Corporate Services Buildings            ,E02240,Premises Related Expenditure  ,RepairsAlterations&MtceOfBldgs,BA03,DDM - Mechanical,"1,538.23",22/03/2013,R,COFELY LIMITED                
Central Services,SupS Facilities,Corporate Services Buildings            ,E02240,Premises Related Expenditure  ,RepairsAlterations&MtceOfBldgs,BA03,DDM - Mechanical,"2,850.76",22/03/2013,R,COFELY LIMITED                
Central Services,SupS Facilities,Corporate Services Buildings            ,E02240,Premises Related Expenditure  ,RepairsAlterations&MtceOfBldgs,BA05,DDM - Electrical,"3,459.97",14/02/2013,R,AXIS ELEVATORS LTD            
Central Services,SupS Facilities,Corporate Services Buildings            ,E02240,Premises Related Expenditure  ,RepairsAlterations&MtceOfBldgs,BA05,DDM - Electrical,"3,459.97",15/02/2013,R,AXIS ELEVATORS LTD            
Central Services,SupS Facilities,Corporate Services Buildings            ,E02240,Premises Related Expenditure  ,RepairsAlterations&MtceOfBldgs,BA05,DDM - Electrical,829.55,15/02/2013,R,COFELY LIMITED                
Central Services,SupS Facilities,Corporate Services Buildings            ,E02240,Premises Related Expenditure  ,RepairsAlterations&MtceOfBldgs,BA05,DDM - Electrical,"1,500.00",31/01/2013,R,COFELY LIMITED                
Central Services,SupS Facilities,Corporate Services Buildings            ,E02240,Premises Related Expenditure  ,RepairsAlterations&MtceOfBldgs,BA05,DDM - Electrical,"1,720.96",31/12/2012,R,AXIS ELEVATORS LTD            
Central Services,SupS Facilities,Corporate Services Buildings            ,E02240,Premises Related Expenditure  ,RepairsAlterations&MtceOfBldgs,BA05,DDM - Electrical,586,08/03/2013,R,SSD LIMITED                   
Central Services,SupS Facilities,Corporate Services Buildings            ,E02240,Premises Related Expenditure  ,RepairsAlterations&MtceOfBldgs,BA05,DDM - Electrical,"2,744.28",06/03/2013,R,THORLUX LIGHTING              
Central Services,SupS Facilities,Corporate Services Buildings            ,E02240,Premises Related Expenditure  ,RepairsAlterations&MtceOfBldgs,BA05,DDM - Electrical,"1,122.66",20/03/2013,R,THORLUX LIGHTING              
Central Services,SupS Facilities,Corporate Services Buildings            ,E02240,Premises Related Expenditure  ,RepairsAlterations&MtceOfBldgs,BA05,DDM - Electrical,"1,720.95",14/03/2013,R,AXIS ELEVATORS LTD            
Central Services,SupS Facilities,Corporate Services Buildings            ,E02240,Premises Related Expenditure  ,Energy Costs                  ,BB02,Electricity,"1,133.71",19/02/2013,R,EDF ENERGY 1 LIMITED          
Central Services,SupS Facilities,Corporate Services Buildings            ,E02240,Premises Related Expenditure  ,Energy Costs                  ,BB02,Electricity,"14,334.76",07/03/2013,R,KENT COUNTY COUNCIL           
Central Services,SupS Facilities,Corporate Services Buildings            ,E02240,Premises Related Expenditure  ,Energy Costs                  ,BB02,Electricity,"1,903.51",15/03/2013,R,EDF ENERGY 1 LIMITED          
Central Services,SupS Facilities,Corporate Services Buildings            ,E02240,Premises Related Expenditure  ,Water Services                ,BE01,Use of Water (Metered),"1,190.61",25/02/2013,R,SUTTON AND EAST SURREY WATER  
Central Services,SupS Facilities,Corporate Services Buildings            ,E02240,Premises Related Expenditure  ,Ground Maintenance Costs      ,BL03,Maintenance of Grounds,"2,081.18",28/03/2013,R,SALTASH ENTERPRISES LTD       
Central Services,SupS Facilities,Corporate Services Buildings            ,E02240,Premises Related Expenditure  ,Ground Maintenance Costs      ,BL03,Maintenance of Grounds,"3,444.71",28/03/2013,R,SALTASH ENTERPRISES LTD       
Childrens & Education Services,Strategic Management,CSF Buildings                           ,E02256,Premises Related Expenditure  ,RepairsAlterations&MtceOfBldgs,BA05,DDM - Electrical,627.08,14/02/2013,R,AXIS ELEVATORS LTD            
Cultural Env Reg&Plan Services,Parks & Open Spaces,E & R Buildings                         ,E02344,Premises Related Expenditure  ,RepairsAlterations&MtceOfBldgs,BA01,DDM - General Building,656.65,25/02/2013,R,COFELY LIMITED                
Cultural Env Reg&Plan Services,Parks & Open Spaces,E & R Buildings                         ,E02344,Premises Related Expenditure  ,RepairsAlterations&MtceOfBldgs,BA03,DDM - Mechanical,569.45,27/02/2013,R,COFELY LIMITED                
Cultural Env Reg&Plan Services,Parks & Open Spaces,E & R Buildings                         ,E02344,Premises Related Expenditure  ,RepairsAlterations&MtceOfBldgs,BA03,DDM - Mechanical,569.45,22/03/2013,R,COFELY LIMITED                
Adult Social Care,PS u65 Day Care,C & H Buildings                         ,E02345,Premises Related Expenditure  ,RepairsAlterations&MtceOfBldgs,BA01,DDM - General Building,793.8,11/03/2013,R,HIGGINS CONSTRUCTION PLC      
Adult Social Care,PS u65 Day Care,C & H Buildings                         ,E02345,Premises Related Expenditure  ,RepairsAlterations&MtceOfBldgs,BA01,DDM - General Building,756.61,14/03/2013,R,COFELY LIMITED                
Adult Social Care,PS u65 Day Care,C & H Buildings                         ,E02345,Premises Related Expenditure  ,RepairsAlterations&MtceOfBldgs,BA01,DDM - General Building,540,25/03/2013,R,SALTASH ENTERPRISES LTD       
Adult Social Care,PS u65 Day Care,C & H Buildings                         ,E02345,Premises Related Expenditure  ,RepairsAlterations&MtceOfBldgs,BA01,DDM - General Building,660.08,28/03/2013,R,SALTASH ENTERPRISES LTD       
Adult Social Care,PS u65 Day Care,C & H Buildings                         ,E02345,Premises Related Expenditure  ,RepairsAlterations&MtceOfBldgs,BA01,DDM - General Building,505.48,20/03/2013,R,SALTASH ENTERPRISES LTD       
Adult Social Care,PS u65 Day Care,C & H Buildings                         ,E02345,Premises Related Expenditure  ,RepairsAlterations&MtceOfBldgs,BA01,DDM - General Building,950,28/03/2013,R,SALTASH ENTERPRISES LTD       
Adult Social Care,PS u65 Day Care,C & H Buildings                         ,E02345,Premises Related Expenditure  ,RepairsAlterations&MtceOfBldgs,BA03,DDM - Mechanical,694.4,27/02/2013,R,COFELY LIMITED                
Adult Social Care,PS u65 Day Care,C & H Buildings                         ,E02345,Premises Related Expenditure  ,RepairsAlterations&MtceOfBldgs,BA03,DDM - Mechanical,694.37,22/03/2013,R,COFELY LIMITED                
Cultural Env Reg&Plan Services,Parks & Open Spaces,Leisure Buildings                       ,E02350,Premises Related Expenditure  ,RepairsAlterations&MtceOfBldgs,BA01,DDM - General Building,599.05,05/02/2013,R,SALTASH ENTERPRISES LTD       
Cultural Env Reg&Plan Services,Parks & Open Spaces,Leisure Buildings                       ,E02350,Premises Related Expenditure  ,RepairsAlterations&MtceOfBldgs,BA01,DDM - General Building,"1,008.92",05/02/2013,R,SALTASH ENTERPRISES LTD       
Cultural Env Reg&Plan Services,Parks & Open Spaces,Leisure Buildings                       ,E02350,Premises Related Expenditure  ,RepairsAlterations&MtceOfBldgs,BA01,DDM - General Building,"1,040.85",27/03/2013,R,SALTASH ENTERPRISES LTD       
Cultural Env Reg&Plan Services,Parks & Open Spaces,Leisure Buildings                       ,E02350,Premises Related Expenditure  ,RepairsAlterations&MtceOfBldgs,BA01,DDM - General Building,616.65,27/03/2013,R,SALTASH ENTERPRISES LTD       
Cultural Env Reg&Plan Services,Parks & Open Spaces,Leisure Buildings                       ,E02350,Premises Related Expenditure  ,RepairsAlterations&MtceOfBldgs,BA03,DDM - Mechanical,668.48,27/02/2013,R,COFELY LIMITED                
Cultural Env Reg&Plan Services,Parks & Open Spaces,Leisure Buildings                       ,E02350,Premises Related Expenditure  ,RepairsAlterations&MtceOfBldgs,BA03,DDM - Mechanical,668.51,22/03/2013,R,COFELY LIMITED                
Cultural Env Reg&Plan Services,Parks & Open Spaces,Leisure Buildings                       ,E02350,Premises Related Expenditure  ,RepairsAlterations&MtceOfBldgs,BA05,DDM - Electrical,573,14/02/2013,R,AXIS ELEVATORS LTD            
Cultural Env Reg&Plan Services,Parks & Open Spaces,Leisure Buildings                       ,E02350,Premises Related Expenditure  ,RepairsAlterations&MtceOfBldgs,BA05,DDM - Electrical,573,15/02/2013,R,AXIS ELEVATORS LTD            
Cultural Env Reg&Plan Services,Parks & Open Spaces,Leisure Buildings                       ,E02350,Premises Related Expenditure  ,RepairsAlterations&MtceOfBldgs,BA05,DDM - Electrical,734,07/03/2013,R,COFELY LIMITED                
Cultural Env Reg&Plan Services,Parks & Open Spaces,Leisure Buildings                       ,E02350,Premises Related Expenditure  ,RepairsAlterations&MtceOfBldgs,BA05,DDM - Electrical,815.5,28/02/2013,R,CHARTER SPECIALIST SECURITY   
Central Services,SupS DOF,BUSINESS PARTNERS                       ,E04059,Employees                     ,Direct Employee Expenses      ,AA17,Agency Staff & Casual Paymts,"4,550.00",03/03/2013,R,REDACTED
Central Services,SupS DOF,BUSINESS PARTNERS                       ,E04059,Employees                     ,Direct Employee Expenses      ,AA17,Agency Staff & Casual Paymts,"6,500.00",28/03/2013,R,REDACTED
Central Services,SupS DOF,Director of Corporate Services          ,E04060,Employees                     ,Indirect Employee Expenses    ,AB57,External Training Costs,"2,335.00",13/03/2013,R,CIPFA                         
Central Services,SupS DOF,Director of Corporate Services          ,E04060,Employees                     ,Indirect Employee Expenses    ,AB57,External Training Costs,"1,715.00",13/03/2013,R,CIPFA                         
Central Services,SupS DOF,Director of Corporate Services          ,E04060,Employees                     ,Indirect Employee Expenses    ,AB57,External Training Costs,745,13/03/2013,R,CIPFA                         
Central Services,SupS DOF,AD RESOURCES                            ,E04061,Employees                     ,Direct Employee Expenses      ,AA17,Agency Staff & Casual Paymts,"13,500.00",06/03/2013,R,REDACTED
Central Services,SupS DOF,AD RESOURCES                            ,E04061,Supplies & Services           ,Services                      ,DF03,Consultants,"6,900.00",01/02/2013,R,PUBLIC SECTOR CONSULTANTS     
Central Services,SupS DOF,AD RESOURCES                            ,E04061,Supplies & Services           ,Services                      ,DF03,Consultants,"7,643.55",03/02/2013,R,UNISERVE CONSULTING LIMITED   
Central Services,SupS DOF,AD RESOURCES                            ,E04061,Supplies & Services           ,Services                      ,DF03,Consultants,"8,740.00",02/03/2013,R,PUBLIC SECTOR CONSULTANTS     
Central Services,SupS DOF,AD RESOURCES                            ,E04061,Supplies & Services           ,Services                      ,DF03,Consultants,800,02/12/2012,R,UNISERVE CONSULTING LIMITED   
Central Services,SupS DOF,AD RESOURCES                            ,E04061,Supplies & Services           ,Comms and Computing           ,DG50,Other IT Expenditure,"2,220.40",22/02/2013,R,REAL ASSET MANAGEMENT PLC     
Central Services,SupS DOF,AD RESOURCES                            ,E04061,Supplies & Services           ,Comms and Computing           ,DG50,Other IT Expenditure,"7,000.00",21/03/2013,R,REAL ASSET MANAGEMENT PLC     
Central Services,SupS DOF,AD RESOURCES                            ,E04061,Supplies & Services           ,Comms and Computing           ,DG50,Other IT Expenditure,"27,000.00",31/01/2013,R,REAL ASSET MANAGEMENT PLC     
Central Services,SupS DOF,AD RESOURCES                            ,E04061,Supplies & Services           ,Grants and Subscriptions      ,DJ04,Subscriptions,"1,900.00",14/09/2012,R,CIPFA                         
Central Services,Officer support time,Corporately Funded Items                ,E04065,Supplies & Services           ,Services                      ,DF03,Consultants,"37,100.00",01/03/2013,R,APPERCEPTION                  
Central Services,SupS Audit and Fraud,Internal Audit&Service Review           ,E05101,Supplies & Services           ,Services                      ,DF58,Audit Fee,"2,450.00",08/02/2013,R,GRANT THORNTON UK LLP         
Central Services,SupS Corporate Finance,Corporate Accountancy                   ,E06209,Employees                     ,Indirect Employee Expenses    ,AB57,External Training Costs,735,12/03/2013,R,CIPFA                         
Central Services,SupS Corporate Finance,Corporate Accountancy                   ,E06209,Supplies & Services           ,Services                      ,DF58,Audit Fee,"57,795.00",13/03/2013,R,ERNST & YOUNG LLP             
Central Services,SupS Corporate Finance,Accounts Payable                        ,E06212,Supplies & Services           ,Services                      ,DF03,Consultants,950,25/01/2013,R,ASH INFORMATION SYSTEMS LTD   
Central Services,SupS Strategic Finance,Business Planning                       ,E06221,Supplies & Services           ,Comms and Computing           ,DG02,Software Licences,"16,000.00",07/03/2013,R,COVALENT SOFTWARE             
Central Services,SupS Strategic Finance,Treasury & Insurance                    ,E06222,Employees                     ,Direct Employee Expenses      ,AA17,Agency Staff & Casual Paymts,"2,820.00",08/03/2013,R,REDACTED
Central Services,SupS Strategic Finance,Treasury & Insurance                    ,E06222,Employees                     ,Direct Employee Expenses      ,AA17,Agency Staff & Casual Paymts,"2,350.00",15/01/2013,R,REDACTED
Central Services,GENERATED ACCOUNT,Parking Cash Collect'n Contrct          ,E06225,Third Party Payments          ,Private Contractors           ,EH02,Miscellaneous Hired Services,"10,133.25",31/12/2012,R,BANKING AUTOMATION LTD        
Central Services,GENERATED ACCOUNT,Parking Cash Collect'n Contrct          ,E06225,Third Party Payments          ,Private Contractors           ,EH02,Miscellaneous Hired Services,"11,507.45",31/01/2013,R,BANKING AUTOMATION LTD        
Central Services,GENERATED ACCOUNT,Parking Cash Collect'n Contrct          ,E06225,Third Party Payments          ,Private Contractors           ,EH02,Miscellaneous Hired Services,"9,543.80",28/02/2013,R,BANKING AUTOMATION LTD        
Central Services,GENERATED ACCOUNT,Parking Cash Collect'n Contrct          ,E06225,Third Party Payments          ,Private Contractors           ,EH02,Miscellaneous Hired Services,990,28/02/2013,R,BANKING AUTOMATION LTD        
Central Services,GENERATED ACCOUNT,Establishments' Cash Collect'n          ,E06226,Third Party Payments          ,Private Contractors           ,EH02,Miscellaneous Hired Services,641.6,28/02/2013,R,LOOMIS UK LTD                 
Central Services,SupS DOF,Service Accountancy                     ,E06227,Employees                     ,Direct Employee Expenses      ,AA17,Agency Staff & Casual Paymts,"2,300.00",08/03/2013,R,REDACTED
Central Services,SupS DOF,Service Accountancy                     ,E06227,Employees                     ,Direct Employee Expenses      ,AA17,Agency Staff & Casual Paymts,"2,300.00",15/01/2013,R,REDACTED
Central Services,SupS DOF,Service Accountancy                     ,E06227,Employees                     ,Indirect Employee Expenses    ,AB57,External Training Costs,"7,000.00",19/02/2013,R,ARLINGCLOSE LTD               
Central Services,SupS DOF,Service Accountancy                     ,E06227,Employees                     ,Indirect Employee Expenses    ,AB57,External Training Costs,"2,316.68",22/02/2013,R,BPP PROFESSIONAL EDUCATION    
Central Services,SupS DOF,Service Accountancy                     ,E06227,Supplies & Services           ,Grants and Subscriptions      ,DJ04,Subscriptions,"8,000.00",19/02/2013,R,ARLINGCLOSE LTD               
Central Services,SupS Legal,AD CORPORATE GOVERNANCE               ,E10279,Employees                     ,Indirect Employee Expenses    ,AB57,External Training Costs,"1,240.00",08/03/2013,R,AUDITWARE SYSTEMS LTD         
Central Services,SupS Legal,AD CORPORATE GOVERNANCE               ,E10279,Supplies & Services           ,Services                      ,DF08,Affiliation Fees,"1,370.00",01/04/2013,R,TAMESIDE MBC                  
Central Services,SupS Legal,AD CORPORATE GOVERNANCE               ,E10279,Supplies & Services           ,Grants and Subscriptions      ,DJ04,Subscriptions,616.8,13/03/2013,R,PUBLIC CONCERN AT WORK        
Central Services,SupS Legal,AD CORPORATE GOVERNANCE               ,E10279,Supplies & Services           ,Grants and Subscriptions      ,DJ04,Subscriptions,"3,895.00",20/02/2013,R,CIPFA BUSINESS LTD            
Central Services,SupS Legal,Legal Services                          ,E10282,Supplies & Services           ,Services                      ,DF11,Counsel's fees,"2,200.00",25/03/2013,R,REDACTED
Central Services,SupS Legal,Legal Services                          ,E10282,Supplies & Services           ,Services                      ,DF28,Court Fees,"2,970.00",11/03/2013,R,REDACTED
Central Services,SupS Legal,Legal Services                          ,E10282,Supplies & Services           ,Services                      ,DF28,Court Fees,"7,795.00",28/03/2013,R,REDACTED
Central Services,SupS Legal,Legal Services                          ,E10282,Supplies & Services           ,Services                      ,DF28,Court Fees,"6,675.00",28/03/2013,R,REDACTED
Central Services,Conducting elections,Election Expenses                       ,E10284,Supplies & Services           ,Prntng Stnry Gen Off Exp      ,DE30,General Office Expense        ,"6,980.01",05/03/2013,R,MERTON RETURNING OFFICERS     
Central Services,Registration of electors,Electoral Registration                  ,E10285,Supplies & Services           ,Comms and Computing           ,DG02,Software Licences,"19,084.26",05/03/2013,R,HALAROSE LIMITED              
Central Services,Registration of electors,Electoral Registration                  ,E10285,Supplies & Services           ,Comms and Computing           ,DG04,Postage - General,654.18,11/03/2013,R,ROYAL MAIL GROUP LTD          
Central Services,SupS Legal,Shared Legal Service                    ,E10288,Employees                     ,Indirect Employee Expenses    ,AB02,Recruitment Adverts,"4,624.30",28/02/2013,R,PENNA COMMUNICATIONS (NO 2 A/C
Central Services,SupS Legal,Shared Legal Service                    ,E10288,Employees                     ,Indirect Employee Expenses    ,AB57,External Training Costs,805,18/02/2013,R,CENTRAL LAW TRAINING LTD      
Central Services,SupS Legal,Shared Legal Service                    ,E10288,Supplies & Services           ,Services                      ,DF09,Miscellaneous Fees,802.9,28/02/2013,R,WINCANTON RECORDS MANAGEMENT  
Central Services,SupS Legal,Shared Legal Service                    ,E10288,Supplies & Services           ,Services                      ,DF95,Services from Provider,694,19/02/2013,R,KENT COUNTY COUNCIL           
Central Services,SupS Legal,Shared Legal Service                    ,E10288,Supplies & Services           ,Services                      ,DF95,Services from Provider,"1,326.10",06/03/2013,R,KENT COUNTY COUNCIL           
Central Services,SupS Legal,Shared Legal Service                    ,E10288,Supplies & Services           ,Services                      ,DF95,Services from Provider,"1,966.90",15/02/2013,R,KENT COUNTY COUNCIL           
Central Services,SupS Legal,Shared Legal Service                    ,E10288,Supplies & Services           ,Services                      ,DF95,Services from Provider,"2,012.10",13/03/2013,R,KENT COUNTY COUNCIL           
Central Services,SupS Legal,Shared Legal Service                    ,E10288,Supplies & Services           ,Comms and Computing           ,DG04,Postage - General,500,28/02/2013,R,NEOPOST FINANCE LIMITED       
Central Services,SupS Legal,Shared Legal Service                    ,E10288,Supplies & Services           ,Comms and Computing           ,DG50,Other IT Expenditure,"15,500.00",21/03/2013,R,TWOFOLD LTD                   
Central Services,SupS Legal,Richmond Legal                          ,E10289,Supplies & Services           ,Services                      ,DF09,Miscellaneous Fees,529.73,12/11/2012,R,JORDANS LTD                   
Central Services,SupS Legal,Richmond Legal                          ,E10289,Supplies & Services           ,Services                      ,DF09,Miscellaneous Fees,529.73,12/02/2013,R,JORDANS LTD                   
Central Services,SupS Legal,Richmond Legal                          ,E10289,Supplies & Services           ,Services                      ,DF11,Counsel's fees,660,30/01/2013,R,REDACTED
Central Services,SupS Legal,Richmond Legal                          ,E10289,Supplies & Services           ,Services                      ,DF11,Counsel's fees,"1,215.00",07/03/2013,R,LONDON BOROUGH OF HILLINGDON  
Central Services,SupS Legal,Richmond Legal                          ,E10289,Supplies & Services           ,Services                      ,DF11,Counsel's fees,525,19/02/2013,R,REDACTED
Central Services,SupS Legal,Richmond Legal                          ,E10289,Supplies & Services           ,Services                      ,DF11,Counsel's fees,525,15/02/2013,R,REDACTED
Central Services,SupS Legal,Richmond Legal                          ,E10289,Supplies & Services           ,Services                      ,DF11,Counsel's fees,"2,745.83",11/03/2013,R,REDACTED
Central Services,SupS Legal,Richmond Legal                          ,E10289,Supplies & Services           ,Services                      ,DF11,Counsel's fees,"10,850.00",29/01/2013,R,REDACTED
Central Services,SupS Legal,Richmond Legal                          ,E10289,Supplies & Services           ,Services                      ,DF11,Counsel's fees,975,11/03/2013,R,REDACTED
Central Services,SupS Legal,Richmond Legal                          ,E10289,Supplies & Services           ,Services                      ,DF11,Counsel's fees,520,28/02/2013,R,REDACTED
Central Services,SupS Legal,Richmond Legal                          ,E10289,Supplies & Services           ,Services                      ,DF11,Counsel's fees,525,20/02/2013,R,REDACTED
Central Services,SupS Legal,Richmond Legal                          ,E10289,Supplies & Services           ,Services                      ,DF11,Counsel's fees,500,25/03/2013,R,REDACTED
Central Services,SupS Legal,Richmond Legal                          ,E10289,Supplies & Services           ,Services                      ,DF11,Counsel's fees,765,28/02/2013,R,REDACTED
Central Services,SupS Legal,Richmond Legal                          ,E10289,Supplies & Services           ,Services                      ,DF11,Counsel's fees,"11,083.25",06/03/2013,R,REDACTED
Central Services,SupS Legal,Richmond Legal                          ,E10289,Supplies & Services           ,Services                      ,DF11,Counsel's fees,"3,100.00",08/03/2013,R,REDACTED
Central Services,SupS Legal,Richmond Legal                          ,E10289,Supplies & Services           ,Services                      ,DF11,Counsel's fees,"1,100.00",11/03/2013,R,REDACTED
Central Services,SupS Legal,Richmond Legal                          ,E10289,Supplies & Services           ,Services                      ,DF11,Counsel's fees,"2,110.00",20/03/2013,R,REDACTED
Central Services,SupS Legal,Richmond Legal                          ,E10289,Supplies & Services           ,Services                      ,DF11,Counsel's fees,600,22/03/2013,R,REDACTED
Central Services,SupS Legal,Richmond Legal                          ,E10289,Supplies & Services           ,Services                      ,DF11,Counsel's fees,"1,500.00",25/03/2013,R,REDACTED
Central Services,SupS Legal,Richmond Legal                          ,E10289,Supplies & Services           ,Services                      ,DF14,Doctors and other fees,679.24,04/02/2012,R,REDACTED
Central Services,SupS Legal,Richmond Legal                          ,E10289,Supplies & Services           ,Services                      ,DF14,Doctors and other fees,679.24,04/02/2012,R,REDACTED
Central Services,SupS Legal,Richmond Legal                          ,E10289,Supplies & Services           ,Services                      ,DF14,Doctors and other fees,650,14/03/2013,R,SECECETRA EXPERT SERVICES     
Central Services,SupS Legal,Richmond Legal                          ,E10289,Supplies & Services           ,Services                      ,DF28,Court Fees,"16,500.00",21/03/2013,R,REDACTED
Central Services,SupS Legal,Richmond Legal                          ,E10289,Supplies & Services           ,Services                      ,DF95,Services from Provider,"2,730.00",21/01/2013,R,CORAL COMMUNITY ASSESSMENTS   
Central Services,SupS Legal,Richmond Legal                          ,E10289,Supplies & Services           ,Services                      ,DF95,Services from Provider,"1,695.50",26/02/2013,R,JAMMA UMOJA LTD               
Central Services,SupS Legal,Richmond Legal                          ,E10289,Supplies & Services           ,Services                      ,DF95,Services from Provider,"5,733.00",01/03/2013,R,JAMMA UMOJA LTD               
Central Services,SupS Legal,Richmond Legal                          ,E10289,Supplies & Services           ,Services                      ,DF95,Services from Provider,"6,615.00",14/02/2013,R,JAMMA UMOJA LTD               
Central Services,SupS Legal,Richmond Legal                          ,E10289,Supplies & Services           ,Services                      ,DF95,Services from Provider,"3,969.00",28/01/2013,R,JAMMA UMOJA LTD               
Central Services,SupS Legal,Richmond Legal                          ,E10289,Supplies & Services           ,Services                      ,DF95,Services from Provider,"1,453.10",25/03/2013,R,REDACTED
Central Services,SupS Legal,Richmond Legal                          ,E10289,Supplies & Services           ,Services                      ,DF95,Services from Provider,-690,12/01/2012,R,REDACTED
Central Services,SupS Legal,Richmond Legal                          ,E10289,Supplies & Services           ,Services                      ,DF95,Services from Provider,792,11/03/2013,R,GOODWIN MALATESTA LEGAL SERVS 
Central Services,SupS Legal,Richmond Legal                          ,E10289,Supplies & Services           ,Services                      ,DF95,Services from Provider,"1,022.50",03/11/2012,R,PHILCOX GRAY & CO             
Central Services,SupS Payroll,Coroners Courts                         ,E11300,Third Party Payments          ,Joint Authorities             ,EC11,SW Inner London Coroners Crt C,"61,816.00",09/01/2013,R,CITY OF WESTMINSTER           
Central Services,SupS IT,AD Business Improvement                 ,E14358,Employees                     ,Indirect Employee Expenses    ,AB57,External Training Costs,"1,750.00",15/03/2013,R,OUTPERFORM UK                 
Central Services,SupS IT,AD Business Improvement                 ,E14358,Supplies & Services           ,Equip Furniture/Materials     ,DA09,Equip-Purchases,828,22/02/2013,R,VIGLEN LIMITED                
Central Services,SupS IT,AD Business Improvement                 ,E14358,Supplies & Services           ,Equip Furniture/Materials     ,DA09,Equip-Purchases,"1,728.00",28/02/2013,R,VIGLEN LIMITED                
Central Services,SupS IT,AD Business Improvement                 ,E14358,Supplies & Services           ,Prntng Stnry Gen Off Exp      ,DE03,Stationery,595.26,19/03/2013,R,OFFICE DEPOT UK LTD           
Central Services,SupS IT,AD Business Improvement                 ,E14358,Supplies & Services           ,Comms and Computing           ,DG09,Computer Purchases - Misc,582.48,12/03/2013,R,MISCO                         
Central Services,SupS IT,AD Business Improvement                 ,E14358,Supplies & Services           ,Expenses                      ,DH02,Conferences,"1,770.00",28/02/2013,R,FGI LIMITED                   
Central Services,SupS IT,Corp Saving-Print Strategy              ,E14359,Supplies & Services           ,Equip Furniture/Materials     ,DA77,Photocopier Rental,"29,750.00",28/02/2013,R,ALTODIGITAL NETWORKS LTD      
Central Services,SupS IT,Corp Saving-Print Strategy              ,E14359,Supplies & Services           ,Equip Furniture/Materials     ,DA77,Photocopier Rental,"5,115.66",28/02/2013,R,ALTODIGITAL NETWORKS LTD      
Central Services,SupS IT,Corp Saving-Print Strategy              ,E14359,Supplies & Services           ,Prntng Stnry Gen Off Exp      ,DE06,Multi-Functional Printers     ,"40,001.01",28/02/2013,R,ALTODIGITAL NETWORKS LTD      
Central Services,SupS IT,BI IT Projects                          ,E14360,Employees                     ,Direct Employee Expenses      ,AA17,Agency Staff & Casual Paymts,"1,601.84",08/03/2013,R,NUMBER 10 INTERIM LTD         
Central Services,SupS IT,BI IT Projects                          ,E14360,Employees                     ,Direct Employee Expenses      ,AA17,Agency Staff & Casual Paymts,"1,625.05",08/03/2013,R,NUMBER 10 INTERIM LTD         
Central Services,SupS IT,BI IT Projects                          ,E14360,Employees                     ,Direct Employee Expenses      ,AA17,Agency Staff & Casual Paymts,"2,298.29",25/02/2013,R,NUMBER 10 INTERIM LTD         
Central Services,SupS IT,BI IT Projects                          ,E14360,Employees                     ,Direct Employee Expenses      ,AA17,Agency Staff & Casual Paymts,"1,625.05",18/03/2013,R,NUMBER 10 INTERIM LTD         
Central Services,SupS IT,BI IT Projects                          ,E14360,Employees                     ,Direct Employee Expenses      ,AA17,Agency Staff & Casual Paymts,"1,625.05",18/03/2013,R,NUMBER 10 INTERIM LTD         
Central Services,SupS IT,BI IT Projects                          ,E14360,Employees                     ,Direct Employee Expenses      ,AA17,Agency Staff & Casual Paymts,"1,625.05",05/03/2013,R,NUMBER 10 INTERIM LTD         
Central Services,SupS IT,BI IT Projects                          ,E14360,Employees                     ,Direct Employee Expenses      ,AA17,Agency Staff & Casual Paymts,"1,625.05",22/03/2013,R,NUMBER 10 INTERIM LTD         
Central Services,SupS IT,BI IT Projects                          ,E14360,Employees                     ,Direct Employee Expenses      ,AA17,Agency Staff & Casual Paymts,"1,625.05",25/03/2013,R,NUMBER 10 INTERIM LTD         
Central Services,SupS IT,AD I&T                                  ,E14363,Employees                     ,Indirect Employee Expenses    ,AB56,Internal Training Costs,"1,350.00",17/08/2012,R,NEC (UK) LTD                  
Central Services,SupS IT,Systems & Projects                      ,E14366,Supplies & Services           ,Services                      ,DF03,Consultants,650,01/03/2013,R,REDACTED
Central Services,SupS IT,Systems & Projects                      ,E14366,Supplies & Services           ,Comms and Computing           ,DG15,Network Maintenance,"1,852.20",27/12/2012,R,CIVICA UK LIMITED             
Central Services,SupS IT,Operations & Telecomms                  ,E14367,Premises Related Expenditure  ,RepairsAlterations&MtceOfBldgs,BA05,DDM - Electrical,"1,000.00",18/02/2013,R,DATA TECHNIQUES               
Central Services,SupS IT,Operations & Telecomms                  ,E14367,Premises Related Expenditure  ,RepairsAlterations&MtceOfBldgs,BA05,DDM - Electrical,872.09,18/03/2013,R,DATA TECHNIQUES               
Central Services,SupS IT,Operations & Telecomms                  ,E14367,Premises Related Expenditure  ,RepairsAlterations&MtceOfBldgs,BA05,DDM - Electrical,592.48,18/03/2013,R,DATA TECHNIQUES               
Central Services,SupS IT,Operations & Telecomms                  ,E14367,Premises Related Expenditure  ,RepairsAlterations&MtceOfBldgs,BA05,DDM - Electrical,"1,222.90",18/03/2013,R,DATA TECHNIQUES               
Central Services,SupS IT,Operations & Telecomms                  ,E14367,Premises Related Expenditure  ,RepairsAlterations&MtceOfBldgs,BA05,DDM - Electrical,"1,500.00",18/03/2013,R,DATA TECHNIQUES               
Central Services,SupS IT,Operations & Telecomms                  ,E14367,Premises Related Expenditure  ,RepairsAlterations&MtceOfBldgs,BA05,DDM - Electrical,"1,897.00",27/03/2013,R,SCALABLE COMMUNICATIONS PLC   
Central Services,SupS IT,Operations & Telecomms                  ,E14367,Premises Related Expenditure  ,RepairsAlterations&MtceOfBldgs,BA05,DDM - Electrical,632,27/03/2013,R,SCALABLE COMMUNICATIONS PLC   
Central Services,SupS IT,Operations & Telecomms                  ,E14367,Premises Related Expenditure  ,RepairsAlterations&MtceOfBldgs,BA05,DDM - Electrical,782,27/03/2013,R,SCALABLE COMMUNICATIONS PLC   
Central Services,SupS IT,Operations & Telecomms                  ,E14367,Premises Related Expenditure  ,RepairsAlterations&MtceOfBldgs,BA05,DDM - Electrical,"1,071.00",27/03/2013,R,SCALABLE COMMUNICATIONS PLC   
Central Services,SupS IT,Operations & Telecomms                  ,E14367,Premises Related Expenditure  ,RepairsAlterations&MtceOfBldgs,BA05,DDM - Electrical,"1,855.00",27/03/2013,R,SCALABLE COMMUNICATIONS PLC   
Central Services,SupS IT,Operations & Telecomms                  ,E14367,Premises Related Expenditure  ,RepairsAlterations&MtceOfBldgs,BA05,DDM - Electrical,"1,355.84",26/03/2013,R,DATA TECHNIQUES               
Central Services,SupS IT,Operations & Telecomms                  ,E14367,Supplies & Services           ,Comms and Computing           ,DG15,Network Maintenance,"4,291.55",27/02/2013,R,AXIAL SYSTEMS                 
Central Services,SupS IT,Operations & Telecomms                  ,E14367,Supplies & Services           ,Comms and Computing           ,DG15,Network Maintenance,"12,585.00",31/01/2013,R,LONDON GRID FOR LEARNING TRUST
Central Services,SupS IT,Operations & Telecomms                  ,E14367,Supplies & Services           ,Comms and Computing           ,DG15,Network Maintenance,"4,500.00",31/01/2013,R,LONDON GRID FOR LEARNING TRUST
Central Services,SupS IT,Operations & Telecomms                  ,E14367,Supplies & Services           ,Comms and Computing           ,DG15,Network Maintenance,"1,802.62",27/02/2013,R,AXIAL SYSTEMS                 
Central Services,SupS IT,Operations & Telecomms                  ,E14367,Supplies & Services           ,Comms and Computing           ,DG15,Network Maintenance,"4,965.00",07/03/2013,R,NETFORT TECHNOLOGIES LTD      
Central Services,SupS IT,Operations & Telecomms                  ,E14367,Supplies & Services           ,Comms and Computing           ,DG15,Network Maintenance,"2,233.00",07/03/2013,R,NETFORT TECHNOLOGIES LTD      
Central Services,SupS IT,Operations & Telecomms                  ,E14367,Supplies & Services           ,Comms and Computing           ,DG15,Network Maintenance,"27,745.00",31/01/2013,R,NITRO                         
Central Services,SupS IT,Operations & Telecomms                  ,E14367,Supplies & Services           ,Comms and Computing           ,DG15,Network Maintenance,"6,936.25",31/01/2013,R,NITRO                         
Central Services,SupS IT,Operations & Telecomms                  ,E14367,Supplies & Services           ,Comms and Computing           ,DG15,Network Maintenance,"2,028.07",07/03/2013,R,CISILION LTD                  
Central Services,SupS IT,Operations & Telecomms                  ,E14367,Supplies & Services           ,Comms and Computing           ,DG15,Network Maintenance,"6,147.32",26/03/2013,R,DATA INTEGRATION LTD          
Central Services,SupS IT,Operations & Telecomms                  ,E14367,Supplies & Services           ,Comms and Computing           ,DG15,Network Maintenance,868.42,26/03/2013,R,MARQUEST LIMITED              
Central Services,SupS IT,Operations & Telecomms                  ,E14367,Supplies & Services           ,Comms and Computing           ,DG15,Network Maintenance,"3,071.00",21/01/2013,R,BTS                           
Central Services,SupS IT,Operations & Telecomms                  ,E14367,Supplies & Services           ,Comms and Computing           ,DG15,Network Maintenance,"9,900.00",18/01/2013,R,COMPUTERLAND                  
Central Services,SupS IT,Operations & Telecomms                  ,E14367,Supplies & Services           ,Comms and Computing           ,DG54,Corporate Telephones,"40,176.00",16/01/2013,R,TT MOBILES LTD                
Central Services,SupS IT,Operations & Telecomms                  ,E14367,Supplies & Services           ,Comms and Computing           ,DG54,Corporate Telephones,"4,852.39",02/03/2013,R,BRITISH TELECOMMUNICATIONS PLC
Central Services,SupS IT,Operations & Telecomms                  ,E14367,Supplies & Services           ,Comms and Computing           ,DG54,Corporate Telephones,"8,800.00",01/02/2013,R,VIRGIN MEDIA PAYMENTS LTD     
Central Services,SupS IT,Operations & Telecomms                  ,E14367,Supplies & Services           ,Comms and Computing           ,DG54,Corporate Telephones,984.97,25/02/2013,R,VIRGIN MEDIA PAYMENTS LTD     
Central Services,SupS IT,Operations & Telecomms                  ,E14367,Supplies & Services           ,Comms and Computing           ,DG54,Corporate Telephones,"9,379.37",25/02/2013,R,VIRGIN MEDIA PAYMENTS LTD     
Central Services,SupS IT,Operations & Telecomms                  ,E14367,Supplies & Services           ,Comms and Computing           ,DG54,Corporate Telephones,"24,521.34",27/02/2013,R,BRITISH TELECOMMUNICATIONS PLC
Central Services,SupS IT,Operations & Telecomms                  ,E14367,Supplies & Services           ,Comms and Computing           ,DG54,Corporate Telephones,"1,035.00",28/02/2013,R,O2 (UK) LIMITED               
Central Services,SupS IT,Operations & Telecomms                  ,E14367,Supplies & Services           ,Comms and Computing           ,DG54,Corporate Telephones,"2,216.93",25/02/2013,R,VIRGIN MEDIA PAYMENTS LTD     
Central Services,SupS IT,Operations & Telecomms                  ,E14367,Supplies & Services           ,Comms and Computing           ,DG54,Corporate Telephones,"3,732.13",02/03/2013,R,COLT TELECOMMUNICATIONS       
Central Services,SupS IT,Operations & Telecomms                  ,E14367,Supplies & Services           ,Comms and Computing           ,DG54,Corporate Telephones,"9,764.32",04/03/2013,R,T MOBILE (UK)                 
Central Services,SupS IT,Distributed Services                    ,E14368,Supplies & Services           ,Equip Furniture/Materials     ,DA65,Application Licenses,"11,000.00",20/12/2012,R,COMPUTERLAND                  
Central Services,SupS IT,Distributed Services                    ,E14368,Supplies & Services           ,Comms and Computing           ,DG63,Software Licences - Data,"10,225.00",06/02/2013,R,ME LEARNING                   
Central Services,SupS IT,Distributed Services                    ,E14368,Supplies & Services           ,Comms and Computing           ,DG63,Software Licences - Data,748.77,24/01/2013,R,CIVICA UK LIMITED             
Central Services,SupS IT,Distributed Services                    ,E14368,Supplies & Services           ,Comms and Computing           ,DG63,Software Licences - Data,950,22/11/2012,R,BARRON MCCANN PAYMENTS LTD    
Central Services,SupS IT,Distributed Services                    ,E14368,Supplies & Services           ,Comms and Computing           ,DG63,Software Licences - Data,950,18/02/2013,R,BARRON MCCANN PAYMENTS LTD    
Central Services,SupS IT,Distributed Services                    ,E14368,Supplies & Services           ,Comms and Computing           ,DG63,Software Licences - Data,"7,992.00",03/02/2013,R,NETWORLD UK                   
Central Services,SupS IT,Distributed Services                    ,E14368,Supplies & Services           ,Comms and Computing           ,DG63,Software Licences - Data,"1,909.00",12/02/2013,R,NU NETWORK PRODUCTS LTD       
Central Services,SupS IT,Distributed Services                    ,E14368,Supplies & Services           ,Comms and Computing           ,DG63,Software Licences - Data,527,12/02/2013,R,NU NETWORK PRODUCTS LTD       
Central Services,SupS IT,Distributed Services                    ,E14368,Supplies & Services           ,Comms and Computing           ,DG63,Software Licences - Data,"1,760.00",20/02/2013,R,NETWORLD UK                   
Central Services,SupS IT,Distributed Services                    ,E14368,Supplies & Services           ,Comms and Computing           ,DG63,Software Licences - Data,589,18/03/2013,R,V-SUB SOLUTIONS               
Central Services,SupS IT,Distributed Services                    ,E14368,Supplies & Services           ,Comms and Computing           ,DG63,Software Licences - Data,"2,670.00",11/03/2013,R,TIMEWATCH PLC                 
Central Services,SupS IT,Distributed Services                    ,E14368,Supplies & Services           ,Comms and Computing           ,DG63,Software Licences - Data,"2,717.00",19/03/2013,R,HOMETRACK DATA SYSTEMS LTD    
Central Services,SupS IT,Distributed Services                    ,E14368,Supplies & Services           ,Comms and Computing           ,DG63,Software Licences - Data,"19,530.11",26/03/2013,R,ORGANISED COMPUTER SYSTEMS LTD
Central Services,SupS IT,Distributed Services                    ,E14368,Supplies & Services           ,Comms and Computing           ,DG64,Software Licences - Distrib   ,"2,072.00",28/02/2013,R,NORTHGATE  INFORMATION SOLUT. 
Central Services,SupS IT,Facilities Magt Cptal Works             ,E14370,Premises Related Expenditure  ,RepairsAlterations&MtceOfBldgs,BA01,DDM - General Building,"18,000.00",13/03/2013,R,SALTASH ENTERPRISES LTD       
Central Services,SupS IT,Facilities Magt Cptal Works             ,E14370,Premises Related Expenditure  ,RepairsAlterations&MtceOfBldgs,BA01,DDM - General Building,"8,000.00",08/03/2013,R,SALTASH ENTERPRISES LTD       
Central Services,SupS IT,Facilities Magt Cptal Works             ,E14370,Premises Related Expenditure  ,RepairsAlterations&MtceOfBldgs,BA01,DDM - General Building,"7,344.44",22/03/2012,R,WANDSWORTH OPERATIONAL SERV.  
Central Services,SupS IT,Facilities Magt Cptal Works             ,E14370,Premises Related Expenditure  ,RepairsAlterations&MtceOfBldgs,BA01,DDM - General Building,"2,736.25",26/03/2013,R,COFELY LIMITED                
Central Services,SupS IT,Facilities Magt Cptal Works             ,E14370,Premises Related Expenditure  ,RepairsAlterations&MtceOfBldgs,BA05,DDM - Electrical,864,31/08/2011,R,COFELY LIMITED                
Central Services,SupS IT,Facilities Magt Cptal Works             ,E14370,Premises Related Expenditure  ,RepairsAlterations&MtceOfBldgs,BA05,DDM - Electrical,"2,749.74",31/08/2012,R,COFELY LIMITED                
Central Services,SupS IT,Facilities Magt Cptal Works             ,E14370,Premises Related Expenditure  ,RepairsAlterations&MtceOfBldgs,BA29,Build Maint Mgt Fees,"1,694.31",25/01/2013,R,NETWORK BLINDS LIMITED        
Central Services,SupS IT,Facilities Magt Cptal Works             ,E14370,Premises Related Expenditure  ,RepairsAlterations&MtceOfBldgs,BA29,Build Maint Mgt Fees,"1,836.39",21/02/2013,R,NETWORK BLINDS LIMITED        
Central Services,SupS IT,Facilities Magt Cptal Works             ,E14370,Premises Related Expenditure  ,RepairsAlterations&MtceOfBldgs,BA29,Build Maint Mgt Fees,532,31/01/2013,R,EDE'S (U.K.) LTD              
Central Services,SupS IT,Facilities Magt Cptal Works             ,E14370,Premises Related Expenditure  ,RepairsAlterations&MtceOfBldgs,BA29,Build Maint Mgt Fees,798,31/01/2013,R,EDE'S (U.K.) LTD              
Central Services,SupS IT,Facilities Magt Cptal Works             ,E14370,Premises Related Expenditure  ,RepairsAlterations&MtceOfBldgs,BA29,Build Maint Mgt Fees,883.5,31/01/2013,R,EDE'S (U.K.) LTD              
Central Services,SupS IT,Facilities Magt Cptal Works             ,E14370,Premises Related Expenditure  ,RepairsAlterations&MtceOfBldgs,BA29,Build Maint Mgt Fees,798,31/01/2013,R,EDE'S (U.K.) LTD              
Central Services,SupS IT,Facilities Magt Cptal Works             ,E14370,Premises Related Expenditure  ,RepairsAlterations&MtceOfBldgs,BA29,Build Maint Mgt Fees,703,31/01/2013,R,EDE'S (U.K.) LTD              
Central Services,SupS IT,Facilities Magt Cptal Works             ,E14370,Premises Related Expenditure  ,RepairsAlterations&MtceOfBldgs,BA29,Build Maint Mgt Fees,600,31/01/2013,R,EDE'S (U.K.) LTD              
Central Services,SupS IT,Facilities Magt Cptal Works             ,E14370,Premises Related Expenditure  ,RepairsAlterations&MtceOfBldgs,BA29,Build Maint Mgt Fees,"20,000.00",13/03/2013,R,SALTASH ENTERPRISES LTD       
Central Services,SupS IT,Facilities Magt Cptal Works             ,E14370,Premises Related Expenditure  ,RepairsAlterations&MtceOfBldgs,BA29,Build Maint Mgt Fees,"6,106.86",18/02/2013,R,DATA TECHNIQUES               
Central Services,SupS IT,Facilities Magt Cptal Works             ,E14370,Premises Related Expenditure  ,RepairsAlterations&MtceOfBldgs,BA29,Build Maint Mgt Fees,"1,600.00",25/02/2013,R,UNIQUE OFFICE SOLUTIONS LTD   
Central Services,SupS IT,Facilities Magt Cptal Works             ,E14370,Premises Related Expenditure  ,RepairsAlterations&MtceOfBldgs,BA29,Build Maint Mgt Fees,"20,000.00",13/03/2013,R,SALTASH ENTERPRISES LTD       
Central Services,SupS IT,Facilities Magt Cptal Works             ,E14370,Premises Related Expenditure  ,RepairsAlterations&MtceOfBldgs,BA29,Build Maint Mgt Fees,"3,450.00",01/03/2013,R,KH FLOORING LTD               
Central Services,SupS IT,Facilities Magt Cptal Works             ,E14370,Premises Related Expenditure  ,RepairsAlterations&MtceOfBldgs,BA29,Build Maint Mgt Fees,"2,200.00",15/03/2013,R,KH FLOORING LTD               
Central Services,SupS IT,Facilities Magt Cptal Works             ,E14370,Premises Related Expenditure  ,RepairsAlterations&MtceOfBldgs,BA29,Build Maint Mgt Fees,"1,050.00",19/03/2013,R,UNIQUE OFFICE SOLUTIONS LTD   
Central Services,SupS IT,Facilities Magt Cptal Works             ,E14370,Premises Related Expenditure  ,RepairsAlterations&MtceOfBldgs,BA29,Build Maint Mgt Fees,"2,310.00",19/03/2013,R,UNIQUE OFFICE SOLUTIONS LTD   
Central Services,SupS IT,Facilities Magt Cptal Works             ,E14370,Premises Related Expenditure  ,RepairsAlterations&MtceOfBldgs,BA29,Build Maint Mgt Fees,"2,535.68",19/03/2013,R,UNIQUE OFFICE SOLUTIONS LTD   
Central Services,SupS IT,Facilities Magt Cptal Works             ,E14370,Premises Related Expenditure  ,RepairsAlterations&MtceOfBldgs,BA29,Build Maint Mgt Fees,"10,410.60",19/03/2013,R,UNIQUE OFFICE SOLUTIONS LTD   
Central Services,SupS IT,Facilities Magt Cptal Works             ,E14370,Premises Related Expenditure  ,RepairsAlterations&MtceOfBldgs,BA29,Build Maint Mgt Fees,"1,275.00",22/03/2013,R,PHS TEACRATE RENTALS LTD      
Central Services,SupS IT,Facilities Magt Cptal Works             ,E14370,Premises Related Expenditure  ,RepairsAlterations&MtceOfBldgs,BA29,Build Maint Mgt Fees,"1,275.00",22/03/2013,R,PHS TEACRATE RENTALS LTD      
Central Services,SupS IT,Facilities Magt Cptal Works             ,E14370,Premises Related Expenditure  ,RepairsAlterations&MtceOfBldgs,BA29,Build Maint Mgt Fees,"1,817.09",21/03/2013,R,NETWORK BLINDS LIMITED        
Central Services,SupS IT,Facilities Magt Cptal Works             ,E14370,Premises Related Expenditure  ,RepairsAlterations&MtceOfBldgs,BA29,Build Maint Mgt Fees,750.5,28/02/2013,R,EDE'S (U.K.) LTD              
Central Services,SupS IT,Facilities Magt Cptal Works             ,E14370,Premises Related Expenditure  ,RepairsAlterations&MtceOfBldgs,BA29,Build Maint Mgt Fees,750.5,25/03/2013,R,EDE'S (U.K.) LTD              
Central Services,SupS IT,Facilities Magt Cptal Works             ,E14370,Premises Related Expenditure  ,RepairsAlterations&MtceOfBldgs,BA29,Build Maint Mgt Fees,636.5,28/02/2013,R,EDE'S (U.K.) LTD              
Central Services,SupS IT,Facilities Magt Cptal Works             ,E14370,Premises Related Expenditure  ,RepairsAlterations&MtceOfBldgs,BA29,Build Maint Mgt Fees,"1,083.00",28/02/2013,R,EDE'S (U.K.) LTD              
Central Services,SupS IT,Facilities Magt Cptal Works             ,E14370,Premises Related Expenditure  ,RepairsAlterations&MtceOfBldgs,BA29,Build Maint Mgt Fees,"1,339.50",28/02/2013,R,EDE'S (U.K.) LTD              
Central Services,SupS IT,Facilities Magt Cptal Works             ,E14370,Premises Related Expenditure  ,RepairsAlterations&MtceOfBldgs,BA29,Build Maint Mgt Fees,872.81,25/03/2013,R,EDE'S (U.K.) LTD              
Central Services,SupS IT,Facilities Magt Cptal Works             ,E14370,Premises Related Expenditure  ,RepairsAlterations&MtceOfBldgs,BA29,Build Maint Mgt Fees,731.5,25/03/2013,R,EDE'S (U.K.) LTD              
Central Services,SupS IT,Facilities Magt Cptal Works             ,E14370,Premises Related Expenditure  ,RepairsAlterations&MtceOfBldgs,BA29,Build Maint Mgt Fees,978.5,28/02/2013,R,EDE'S (U.K.) LTD              
Central Services,SupS IT,Facilities Magt Cptal Works             ,E14370,Premises Related Expenditure  ,RepairsAlterations&MtceOfBldgs,BA29,Build Maint Mgt Fees,750.5,25/03/2013,R,EDE'S (U.K.) LTD              
Central Services,SupS IT,Facilities Magt Cptal Works             ,E14370,Premises Related Expenditure  ,RepairsAlterations&MtceOfBldgs,BA29,Build Maint Mgt Fees,"1,116.50",28/02/2013,R,EDE'S (U.K.) LTD              
Central Services,SupS IT,Facilities Magt Cptal Works             ,E14370,Premises Related Expenditure  ,RepairsAlterations&MtceOfBldgs,BA29,Build Maint Mgt Fees,636.5,25/03/2013,R,EDE'S (U.K.) LTD              
Central Services,SupS IT,Facilities Magt Cptal Works             ,E14370,Premises Related Expenditure  ,RepairsAlterations&MtceOfBldgs,BA29,Build Maint Mgt Fees,"27,500.00",26/03/2013,R,UNIQUE OFFICE SOLUTIONS LTD   
Central Services,SupS IT,Facilities Magt Cptal Works             ,E14370,Premises Related Expenditure  ,RepairsAlterations&MtceOfBldgs,BA29,Build Maint Mgt Fees,"18,009.00",26/03/2013,R,UNIQUE OFFICE SOLUTIONS LTD   
Central Services,SupS IT,Facilities Magt Cptal Works             ,E14370,Premises Related Expenditure  ,RepairsAlterations&MtceOfBldgs,BA29,Build Maint Mgt Fees,"15,500.00",26/03/2013,R,UNIQUE OFFICE SOLUTIONS LTD   
Central Services,SupS IT,Facilities Magt Cptal Works             ,E14370,Premises Related Expenditure  ,RepairsAlterations&MtceOfBldgs,BA29,Build Maint Mgt Fees,"21,952.00",26/03/2013,R,UNIQUE OFFICE SOLUTIONS LTD   
Central Services,SupS IT,Facilities Magt Cptal Works             ,E14370,Premises Related Expenditure  ,RepairsAlterations&MtceOfBldgs,BA29,Build Maint Mgt Fees,"4,350.00",27/03/2013,R,KH FLOORING LTD               
Central Services,SupS IT,Facilities Magt Cptal Works             ,E14370,Premises Related Expenditure  ,RepairsAlterations&MtceOfBldgs,BA29,Build Maint Mgt Fees,"1,330.00",27/03/2013,R,KH FLOORING LTD               
Central Services,SupS IT,Facilities Magt Cptal Works             ,E14370,Premises Related Expenditure  ,RepairsAlterations&MtceOfBldgs,BA29,Build Maint Mgt Fees,"5,500.00",22/03/2013,R,UNIQUE OFFICE SOLUTIONS LTD   
Central Services,SupS IT,Facilities Magt Cptal Works             ,E14370,Premises Related Expenditure  ,RepairsAlterations&MtceOfBldgs,BA29,Build Maint Mgt Fees,720,27/03/2013,R,KH FLOORING LTD               
Central Services,SupS IT,Facilities Magt Cptal Works             ,E14370,Premises Related Expenditure  ,RepairsAlterations&MtceOfBldgs,BA29,Build Maint Mgt Fees,"4,613.64",27/03/2013,R,THE SAVILLE GROUP LIMITED     
Central Services,SupS IT,Customer Contact Programme              ,E14371,Employees                     ,Direct Employee Expenses      ,AA17,Agency Staff & Casual Paymts,"4,690.00",28/02/2013,R,REDACTED
Central Services,SupS IT,Customer Contact Programme              ,E14371,Employees                     ,Direct Employee Expenses      ,AA17,Agency Staff & Casual Paymts,"6,700.00",12/03/2013,R,ODGERS RAY & BERNDTSON INTERIM
Central Services,SupS IT,I&T -Revenuisation Projects             ,E14377,Supplies & Services           ,Comms and Computing           ,DG15,Network Maintenance,720,13/03/2013,R,NETWORK SOLUTIONS INC         
Central Services,SupS IT,I&T -Revenuisation Projects             ,E14377,Supplies & Services           ,Comms and Computing           ,DG15,Network Maintenance,880,13/03/2013,R,NETWORK SOLUTIONS INC         
Central Services,SupS IT,I&T -Revenuisation Projects             ,E14377,Supplies & Services           ,Comms and Computing           ,DG15,Network Maintenance,"1,800.00",12/03/2013,R,SYNETRIX LIMITED              
Central Services,SupS IT,I&T -Revenuisation Projects             ,E14377,Supplies & Services           ,Comms and Computing           ,DG15,Network Maintenance,"4,247.00",12/02/2013,R,WANDSWORTH BOROUGH COUNCIL    
Central Services,SupS IT,I&T -Revenuisation Projects             ,E14377,Supplies & Services           ,Comms and Computing           ,DG15,Network Maintenance,"3,502.00",22/03/2013,R,AXIAL SYSTEMS                 
Central Services,SupS IT,I&T -Revenuisation Projects             ,E14377,Supplies & Services           ,Comms and Computing           ,DG50,Other IT Expenditure,"18,900.00",27/03/2013,R,NETCALL TELECOM LIMITED       
Cultural Env Reg&Plan Services,Mgt & Support (Env),ES Support & Development                ,G00070,Supplies & Services           ,Expenses                      ,DH02,Conferences,670,19/02/2013,R,UNIVERSITY OF WESTMINSTER     
Cultural Env Reg&Plan Services,Mgt & Support (Env),Senior Mgt. - E.S.C.                    ,G00100,Supplies & Services           ,Services                      ,DF11,Counsel's fees,500,28/01/2013,R,REDACTED
Highways & Transport Services,Hwys/Rds (struct) not split,C'way & F'way Mtce                      ,G00121,Supplies & Services           ,Grants and Subscriptions      ,DJ04,Subscriptions,"1,302.00",01/11/2012,R,LONDON BRIDGES ENG. GROUP     
Highways & Transport Services,Hwys/Rds (struct) not split,C'way & F'way Mtce                      ,G00121,Third Party Payments          ,Private Contractors           ,EH02,Miscellaneous Hired Services,730,01/08/2012,R,MERTON AND SUTTON MEDIATION   
Highways & Transport Services,Hwys/Rds (struct) not split,Surf Water Drainage                     ,G00123,Third Party Payments          ,Private Contractors           ,EH56,Carriageway/Fway Maint,551.95,21/03/2013,R,FM CONWAY LTD                 
Highways & Transport Services,Hwys/Rds (struct) not split,Surf Water Drainage                     ,G00123,Third Party Payments          ,Private Contractors           ,EH56,Carriageway/Fway Maint,827.96,22/03/2013,R,FM CONWAY LTD                 
Highways & Transport Services,Repair prin/oth rds not split,Walk Sheets                             ,G00127,Third Party Payments          ,Private Contractors           ,EH56,Carriageway/Fway Maint,"10,000.00",28/02/2013,R,FM CONWAY LTD                 
Highways & Transport Services,Repair prin/oth rds not split,Walk Sheets                             ,G00127,Third Party Payments          ,Private Contractors           ,EH56,Carriageway/Fway Maint,"10,000.00",28/02/2013,R,FM CONWAY LTD                 
Highways & Transport Services,Repair prin/oth rds not split,Walk Sheets                             ,G00127,Third Party Payments          ,Private Contractors           ,EH56,Carriageway/Fway Maint,"16,432.44",28/02/2013,R,FM CONWAY LTD                 
Highways & Transport Services,Repair prin/oth rds not split,Walk Sheets                             ,G00127,Third Party Payments          ,Private Contractors           ,EH56,Carriageway/Fway Maint,"10,000.00",28/02/2013,R,FM CONWAY LTD                 
Highways & Transport Services,Repair prin/oth rds not split,Walk Sheets                             ,G00127,Third Party Payments          ,Private Contractors           ,EH56,Carriageway/Fway Maint,"1,432.00",28/02/2013,R,FM CONWAY LTD                 
Highways & Transport Services,Repair prin/oth rds not split,Walk Sheets                             ,G00127,Third Party Payments          ,Private Contractors           ,EH56,Carriageway/Fway Maint,"1,683.05",28/02/2013,R,FM CONWAY LTD                 
Highways & Transport Services,Repair prin/oth rds not split,Walk Sheets                             ,G00127,Third Party Payments          ,Private Contractors           ,EH56,Carriageway/Fway Maint,500.5,21/03/2013,R,FM CONWAY LTD                 
Highways & Transport Services,Repair prin/oth rds not split,Walk Sheets                             ,G00127,Third Party Payments          ,Private Contractors           ,EH56,Carriageway/Fway Maint,"7,610.20",21/03/2013,R,FM CONWAY LTD                 
Highways & Transport Services,Repair prin/oth rds not split,Walk Sheets                             ,G00127,Third Party Payments          ,Private Contractors           ,EH56,Carriageway/Fway Maint,"9,054.20",20/03/2013,R,FM CONWAY LTD                 
Highways & Transport Services,Repair prin/oth rds not split,Walk Sheets                             ,G00127,Third Party Payments          ,Private Contractors           ,EH56,Carriageway/Fway Maint,"2,204.82",22/03/2013,R,FM CONWAY LTD                 
Highways & Transport Services,Repair prin/oth rds not split,Walk Sheets                             ,G00127,Third Party Payments          ,Private Contractors           ,EH56,Carriageway/Fway Maint,"7,875.86",21/03/2013,R,FM CONWAY LTD                 
Highways & Transport Services,Repair prin/oth rds not split,Walk Sheets                             ,G00127,Third Party Payments          ,Private Contractors           ,EH56,Carriageway/Fway Maint,"1,220.69",27/03/2013,R,FM CONWAY LTD                 
Highways & Transport Services,Repair prin/oth rds not split,Walk Sheets                             ,G00127,Third Party Payments          ,Private Contractors           ,EH56,Carriageway/Fway Maint,"4,802.76",27/03/2013,R,FM CONWAY LTD                 
Highways & Transport Services,Hwys/Rds (struct) not split,"Br., H'ways & Struct                    ",G00128,Premises Related Expenditure  ,RepairsAlterations&MtceOfBldgs,BA59,Periodic Inspections,"2,800.00",18/03/2013,R,AECOM LIMITED                 
Highways & Transport Services,Hwys/Rds (struct) not split,"Br., H'ways & Struct                    ",G00128,Premises Related Expenditure  ,RepairsAlterations&MtceOfBldgs,BA59,Periodic Inspections,"4,000.00",18/03/2013,R,AECOM LIMITED                 
Highways & Transport Services,Hwys/Rds (struct) not split,"Br., H'ways & Struct                    ",G00128,Premises Related Expenditure  ,RepairsAlterations&MtceOfBldgs,BA59,Periodic Inspections,"9,784.70",18/03/2013,R,AECOM LIMITED                 
Highways & Transport Services,Hwys/Rds (struct) not split,"Br., H'ways & Struct                    ",G00128,Premises Related Expenditure  ,RepairsAlterations&MtceOfBldgs,BA59,Periodic Inspections,"2,800.00",18/03/2013,R,AECOM LIMITED                 
Highways & Transport Services,Hwys/Rds (struct) not split,"Br., H'ways & Struct                    ",G00128,Premises Related Expenditure  ,RepairsAlterations&MtceOfBldgs,BA59,Periodic Inspections,"16,419.25",18/03/2013,R,HYDER CONSULTING (UK) LTD     
Highways & Transport Services,Hwys/Rds (struct) not split,"Br., H'ways & Struct                    ",G00128,Premises Related Expenditure  ,RepairsAlterations&MtceOfBldgs,BA59,Periodic Inspections,900,25/03/2013,R,AECOM LIMITED                 
Highways & Transport Services,Hwys/Rds (struct) not split,"Br., H'ways & Struct                    ",G00128,Third Party Payments          ,Private Contractors           ,EH56,Carriageway/Fway Maint,"5,084.18",21/03/2013,R,FM CONWAY LTD                 
Highways & Transport Services,Hwys/Rds (struct) not split,"Br., H'ways & Struct                    ",G00128,Third Party Payments          ,Private Contractors           ,EH56,Carriageway/Fway Maint,"5,620.00",19/03/2013,R,HENDERSON THOMAS ASSOC LTD    
Highways & Transport Services,Hwys/Rds (struct) not split,"Br., H'ways & Struct                    ",G00128,Third Party Payments          ,Private Contractors           ,EH56,Carriageway/Fway Maint,520,21/03/2013,R,WILLOW PUMPS LTD              
Highways & Transport Services,Hwys/Rds (struct) not split,"Br., H'ways & Struct                    ",G00128,Third Party Payments          ,Private Contractors           ,EH56,Carriageway/Fway Maint,"8,318.78",25/03/2013,R,FM CONWAY LTD                 
Highways & Transport Services,Hwys/Rds (struct) not split,"Br., H'ways & Struct                    ",G00128,Third Party Payments          ,Private Contractors           ,EH56,Carriageway/Fway Maint,"1,529.88",25/03/2013,R,FM CONWAY LTD                 
Highways & Transport Services,Saf mtc prin/oth rds not split,Traffic Signs.                          ,G00160,Premises Related Expenditure  ,Energy Costs                  ,BB02,Electricity,"50,000.00",07/03/2013,R,KENT COUNTY COUNCIL           
Highways & Transport Services,Saf mtc prin/oth rds not split,Traffic Signs.                          ,G00160,Third Party Payments          ,Private Contractors           ,EH02,Miscellaneous Hired Services,506.77,06/03/2013,R,FM CONWAY LTD                 
Highways & Transport Services,Transport Plg/Policy/Strategy,CPZ implementation & Consultat          ,G00211,Third Party Payments          ,Private Contractors           ,EH56,Carriageway/Fway Maint,"5,607.97",26/02/2013,R,FM CONWAY LTD                 
Highways & Transport Services,Transport Plg/Policy/Strategy,CPZ implementation & Consultat          ,G00211,Third Party Payments          ,Private Contractors           ,EH56,Carriageway/Fway Maint,975.1,26/02/2013,R,FM CONWAY LTD                 
Highways & Transport Services,Transport Plg/Policy/Strategy,CPZ implementation & Consultat          ,G00211,Third Party Payments          ,Private Contractors           ,EH56,Carriageway/Fway Maint,686.16,25/02/2013,R,FM CONWAY LTD                 
Highways & Transport Services,Transport Plg/Policy/Strategy,CPZ implementation & Consultat          ,G00211,Third Party Payments          ,Private Contractors           ,EH56,Carriageway/Fway Maint,"1,084.97",26/02/2013,R,FM CONWAY LTD                 
Highways & Transport Services,Transport Plg/Policy/Strategy,CPZ implementation & Consultat          ,G00211,Third Party Payments          ,Private Contractors           ,EH56,Carriageway/Fway Maint,"1,308.41",21/03/2013,R,FM CONWAY LTD                 
Highways & Transport Services,Transport Plg/Policy/Strategy,CPZ implementation & Consultat          ,G00211,Third Party Payments          ,Private Contractors           ,EH56,Carriageway/Fway Maint,"2,890.11",21/03/2013,R,FM CONWAY LTD                 
Highways & Transport Services,Transport Plg/Policy/Strategy,CPZ implementation & Consultat          ,G00211,Third Party Payments          ,Private Contractors           ,EH56,Carriageway/Fway Maint,"6,978.56",21/03/2013,R,FM CONWAY LTD                 
Highways & Transport Services,Traffic Management,Tr Man & Accid Sch                      ,G00220,Supplies & Services           ,Services                      ,DF02,Misc Advertising/Publicity,762.3,23/02/2013,R,NEWSQUEST (LONDON)LTD         
Highways & Transport Services,Street Lighting.,Street Lighting .                       ,G00260,Premises Related Expenditure  ,Energy Costs                  ,BB02,Electricity,"63,389.66",20/02/2013,R,KENT COUNTY COUNCIL           
Highways & Transport Services,Street Lighting.,Street Lighting .                       ,G00260,Premises Related Expenditure  ,Energy Costs                  ,BB02,Electricity,"7,260.77",07/03/2013,R,KENT COUNTY COUNCIL           
Highways & Transport Services,Street Lighting.,Street Lighting .                       ,G00260,Third Party Payments          ,Private Contractors           ,EH01,Miscellaneous Contrct Services,"30,000.00",22/02/2013,R,MAY GURNEY LTD T/A CARTLEDGE  
Highways & Transport Services,Street Lighting.,Street Lighting .                       ,G00260,Third Party Payments          ,Private Contractors           ,EH01,Miscellaneous Contrct Services,644,23/10/2012,R,UK POWER NETWORKS (OPERATIONS)
Highways & Transport Services,Street Lighting.,Street Lighting .                       ,G00260,Third Party Payments          ,Private Contractors           ,EH01,Miscellaneous Contrct Services,"1,500.00",08/03/2013,R,UK POWER NETWORKS (OPERATIONS)
Highways & Transport Services,Street Lighting.,Street Lighting .                       ,G00260,Third Party Payments          ,Private Contractors           ,EH01,Miscellaneous Contrct Services,"1,500.00",08/03/2013,R,UK POWER NETWORKS (OPERATIONS)
Highways & Transport Services,Street Lighting.,Street Lighting .                       ,G00260,Third Party Payments          ,Private Contractors           ,EH01,Miscellaneous Contrct Services,"1,500.00",08/03/2013,R,UK POWER NETWORKS (OPERATIONS)
Highways & Transport Services,Street Lighting.,Street Lighting .                       ,G00260,Third Party Payments          ,Private Contractors           ,EH01,Miscellaneous Contrct Services,"1,500.00",08/03/2013,R,UK POWER NETWORKS (OPERATIONS)
Highways & Transport Services,Street Lighting.,Street Lighting .                       ,G00260,Third Party Payments          ,Private Contractors           ,EH01,Miscellaneous Contrct Services,"1,500.00",11/03/2013,R,UK POWER NETWORKS (OPERATIONS)
Highways & Transport Services,Street Lighting.,Street Lighting .                       ,G00260,Third Party Payments          ,Private Contractors           ,EH01,Miscellaneous Contrct Services,"1,500.00",11/03/2013,R,UK POWER NETWORKS (OPERATIONS)
Highways & Transport Services,Street Lighting.,Street Lighting .                       ,G00260,Third Party Payments          ,Private Contractors           ,EH01,Miscellaneous Contrct Services,"15,000.00",15/03/2013,R,MAY GURNEY LTD T/A CARTLEDGE  
Highways & Transport Services,Street Lighting.,Street Lighting .                       ,G00260,Third Party Payments          ,Private Contractors           ,EH01,Miscellaneous Contrct Services,"13,947.98",14/03/2013,R,MAY GURNEY LTD T/A CARTLEDGE  
Highways & Transport Services,Street Lighting.,Street Lighting .                       ,G00260,Third Party Payments          ,Private Contractors           ,EH01,Miscellaneous Contrct Services,"10,000.00",15/03/2013,R,MAY GURNEY LTD T/A CARTLEDGE  
Highways & Transport Services,Street Lighting.,Street Lighting .                       ,G00260,Third Party Payments          ,Private Contractors           ,EH01,Miscellaneous Contrct Services,"8,966.10",15/03/2013,R,MAY GURNEY LTD T/A CARTLEDGE  
Highways & Transport Services,Street Lighting.,Street Lighting .                       ,G00260,Third Party Payments          ,Private Contractors           ,EH01,Miscellaneous Contrct Services,586.59,15/03/2013,R,MAY GURNEY LTD T/A CARTLEDGE  
Highways & Transport Services,Street Lighting.,Street Lighting .                       ,G00260,Third Party Payments          ,Private Contractors           ,EH01,Miscellaneous Contrct Services,"2,215.78",21/03/2013,R,MAY GURNEY LTD T/A CARTLEDGE  
Highways & Transport Services,Street Lighting.,Street Lighting .                       ,G00260,Third Party Payments          ,Private Contractors           ,EH01,Miscellaneous Contrct Services,"1,764.11",15/03/2013,R,MAY GURNEY LTD T/A CARTLEDGE  
Highways & Transport Services,Street Lighting.,Street Lighting .                       ,G00260,Third Party Payments          ,Private Contractors           ,EH01,Miscellaneous Contrct Services,"5,000.00",25/03/2013,R,MAY GURNEY LTD T/A CARTLEDGE  
Highways & Transport Services,Street Lighting.,Street Lighting .                       ,G00260,Third Party Payments          ,Private Contractors           ,EH01,Miscellaneous Contrct Services,"10,000.00",25/03/2013,R,MAY GURNEY LTD T/A CARTLEDGE  
Highways & Transport Services,Off-street parking,York Close CP                           ,G00298,Premises Related Expenditure  ,Rents                         ,BC01,Miscellaneous Rents,"30,460.50",27/02/2013,R,TRANSPORT TRADING LTD PROP A/C
Highways & Transport Services,Off-street parking,St. Georges Car Park EAST               ,G00300,Premises Related Expenditure  ,Rents                         ,BC01,Miscellaneous Rents,525.75,25/02/2013,R,LLOYDS BANK SF NOMINEES LTD   
Highways & Transport Services,Off-street parking,St. Georges Car Park WEST M/S           ,G00302,Premises Related Expenditure  ,RepairsAlterations&MtceOfBldgs,BA06,Repairs & Maintenance General,517.29,18/02/2013,R,MAY GURNEY LTD T/A CARTLEDGE  
Highways & Transport Services,Off-street parking,St. Georges Car Park WEST M/S           ,G00302,Premises Related Expenditure  ,RepairsAlterations&MtceOfBldgs,BA06,Repairs & Maintenance General,"5,269.13",22/02/2013,R,CARTLEDGE                     
Highways & Transport Services,Off-street parking,St. Georges Car Park WEST M/S           ,G00302,Premises Related Expenditure  ,Energy Costs                  ,BB02,Electricity,"1,191.43",19/02/2013,R,KENT COUNTY COUNCIL           
Highways & Transport Services,Off-street parking,St. Georges Car Park WEST M/S           ,G00302,Premises Related Expenditure  ,Energy Costs                  ,BB02,Electricity,854.32,04/03/2013,R,KENT COUNTY COUNCIL           
Highways & Transport Services,On-street parking,On Street Parking.                      ,G00311,Premises Related Expenditure  ,RepairsAlterations&MtceOfBldgs,BA06,Repairs & Maintenance General,"1,035.00",25/03/2013,R,TEASDALE GROUP LTD            
Highways & Transport Services,On-street parking,On Street Parking.                      ,G00311,Premises Related Expenditure  ,RepairsAlterations&MtceOfBldgs,BA06,Repairs & Maintenance General,"2,060.80",19/03/2013,R,TEASDALE GROUP LTD            
Highways & Transport Services,Parking Enforcement not split,Civil Enforcement Officers              ,G00330,Supplies & Services           ,Equip Furniture/Materials     ,DA09,Equip-Purchases,601.5,03/03/2013,R,QUARTIX                       
Highways & Transport Services,Parking Enforcement not split,Civil Enforcement Officers              ,G00330,Supplies & Services           ,Expenses                      ,DH02,Conferences,960,28/11/2012,R,MAYBO                         
Highways & Transport Services,Parking Enforcement not split,Operational Running Costs               ,G00331,Supplies & Services           ,Equip Furniture/Materials     ,DA09,Equip-Purchases,"1,352.00",05/03/2013,R,PARKEON LTD                   
Highways & Transport Services,Parking Enforcement not split,Operational Running Costs               ,G00331,Supplies & Services           ,Equip Furniture/Materials     ,DA09,Equip-Purchases,"5,548.00",15/03/2013,R,PARKEON LTD                   
Highways & Transport Services,Parking Enforcement not split,Operational Running Costs               ,G00331,Supplies & Services           ,Expenses                      ,DH02,Conferences,730,12/03/2013,R,MERTON AND SUTTON MEDIATION   
Highways & Transport Services,Repair prin/oth rds not split,Flood Risk Management                   ,G00350,Supplies & Services           ,Services                      ,DF03,Consultants,"14,606.20",11/03/2013,R,URS INFRASTRUCTURE & ENV UK LT
Highways & Transport Services,Repair prin/oth rds not split,Flood Risk Management                   ,G00350,Third Party Payments          ,Private Contractors           ,EH56,Carriageway/Fway Maint,"15,000.00",26/02/2013,R,FM CONWAY LTD                 
Highways & Transport Services,Repair prin/oth rds not split,Flood Risk Management                   ,G00350,Third Party Payments          ,Private Contractors           ,EH56,Carriageway/Fway Maint,"3,839.50",26/02/2013,R,FM CONWAY LTD                 
Highways & Transport Services,Repair prin/oth rds not split,Flood Risk Management                   ,G00350,Third Party Payments          ,Private Contractors           ,EH56,Carriageway/Fway Maint,"22,133.46",07/03/2013,R,FM CONWAY LTD                 
Highways & Transport Services,Repair prin/oth rds not split,Flood Risk Management                   ,G00350,Third Party Payments          ,Private Contractors           ,EH56,Carriageway/Fway Maint,"1,160.50",22/03/2013,R,FM CONWAY LTD                 
Highways & Transport Services,Repair prin/oth rds not split,Flood Risk Management                   ,G00350,Third Party Payments          ,Private Contractors           ,EH56,Carriageway/Fway Maint,567.81,21/03/2013,R,FM CONWAY LTD                 
Highways & Transport Services,Repair prin/oth rds not split,Flood Risk Management                   ,G00350,Third Party Payments          ,Private Contractors           ,EH56,Carriageway/Fway Maint,866.54,22/03/2013,R,FM CONWAY LTD                 
Highways & Transport Services,Transport Plg/Policy/Strategy,RASWA                                   ,G00382,Supplies & Services           ,Comms and Computing           ,DG14,Telephones - Mobile,800.7,05/11/2012,R,T MOBILE (UK)                 
Highways & Transport Services,Hwys/Rds (struct) not split,Footpath Crossings.                     ,G00390,Third Party Payments          ,Private Contractors           ,EH56,Carriageway/Fway Maint,"1,029.14",26/02/2013,R,FM CONWAY LTD                 
Highways & Transport Services,Hwys/Rds (struct) not split,Footpath Crossings.                     ,G00390,Third Party Payments          ,Private Contractors           ,EH56,Carriageway/Fway Maint,"3,280.03",26/02/2013,R,FM CONWAY LTD                 
Highways & Transport Services,Hwys/Rds (struct) not split,Footpath Crossings.                     ,G00390,Third Party Payments          ,Private Contractors           ,EH56,Carriageway/Fway Maint,"1,539.03",01/03/2013,R,FM CONWAY LTD                 
Highways & Transport Services,Hwys/Rds (struct) not split,Footpath Crossings.                     ,G00390,Third Party Payments          ,Private Contractors           ,EH56,Carriageway/Fway Maint,"2,527.77",12/03/2013,R,FM CONWAY LTD                 
Highways & Transport Services,Hwys/Rds (struct) not split,Footpath Crossings.                     ,G00390,Third Party Payments          ,Private Contractors           ,EH56,Carriageway/Fway Maint,"1,882.19",21/03/2013,R,FM CONWAY LTD                 
Highways & Transport Services,Hwys/Rds (struct) not split,Footpath Crossings.                     ,G00390,Third Party Payments          ,Private Contractors           ,EH56,Carriageway/Fway Maint,"1,538.55",22/03/2013,R,FM CONWAY LTD                 
Highways & Transport Services,Hwys/Rds (struct) not split,Footpath Crossings.                     ,G00390,Third Party Payments          ,Private Contractors           ,EH56,Carriageway/Fway Maint,"2,250.15",27/03/2013,R,FM CONWAY LTD                 
Cultural Env Reg&Plan Services,Street Clean - Not highways,Street Cleansing (Inc. Gully)           ,G00492,Premises Related Expenditure  ,Energy Costs                  ,BB02,Electricity,631.13,15/02/2013,R,EDF ENERGY                    
Cultural Env Reg&Plan Services,Street Clean - Not highways,Street Cleansing (Inc. Gully)           ,G00492,Supplies & Services           ,Equip Furniture/Materials     ,DA08,Tools-Purchase,512.78,27/02/2013,R,BELL BRUSH                    
Cultural Env Reg&Plan Services,Street Clean - Not highways,Street Cleansing (Inc. Gully)           ,G00492,Supplies & Services           ,Equip Furniture/Materials     ,DA08,Tools-Purchase,686.4,28/02/2013,R,BELL BRUSH                    
Cultural Env Reg&Plan Services,Street Clean - Not highways,Street Cleansing (Inc. Gully)           ,G00492,Supplies & Services           ,Equip Furniture/Materials     ,DA08,Tools-Purchase,"1,167.00",19/03/2013,R,BELL BRUSH                    
Cultural Env Reg&Plan Services,Street Clean - Not highways,Street Cleansing (Inc. Gully)           ,G00492,Supplies & Services           ,Equip Furniture/Materials     ,DA31,Waste Sacks & Bags,"1,852.20",31/01/2013,R,POLARIS PLASTICS LTD          
Cultural Env Reg&Plan Services,Street Clean - Not highways,Street Cleansing (Inc. Gully)           ,G00492,Supplies & Services           ,Equip Furniture/Materials     ,DA31,Waste Sacks & Bags,"1,852.20",27/02/2013,R,POLARIS PLASTICS LTD          
Cultural Env Reg&Plan Services,Street Clean - Not highways,Street Cleansing (Inc. Gully)           ,G00492,Supplies & Services           ,Equip Furniture/Materials     ,DA31,Waste Sacks & Bags,"2,778.30",19/03/2013,R,POLARIS PLASTICS LTD          
Cultural Env Reg&Plan Services,Street Clean - Not highways,Street Cleansing (Inc. Gully)           ,G00492,Supplies & Services           ,Equip Furniture/Materials     ,DA32,Wheeled Bins,"1,156.60",26/02/2013,R,ESE                           
Cultural Env Reg&Plan Services,Street Clean - Not highways,Street Cleansing (Inc. Gully)           ,G00492,Supplies & Services           ,Equip Furniture/Materials     ,DA32,Wheeled Bins,"2,080.00",18/03/2013,R,UK CONTAINER MAINTENANCE LTD  
Cultural Env Reg&Plan Services,Street Clean - Not highways,Street Cleansing (Inc. Gully)           ,G00492,Supplies & Services           ,Clothing Unfrms Laundry       ,DC02,Clothing & Uniforms,661.12,31/01/2013,R,SAFETY MANAGEMENT             
Cultural Env Reg&Plan Services,Street Clean - Not highways,Street Cleansing (Inc. Gully)           ,G00492,Supplies & Services           ,Clothing Unfrms Laundry       ,DC02,Clothing & Uniforms,"1,153.88",31/01/2013,R,SAFETY MANAGEMENT             
Cultural Env Reg&Plan Services,Street Clean - Not highways,Street Cleansing (Inc. Gully)           ,G00492,Supplies & Services           ,Clothing Unfrms Laundry       ,DC02,Clothing & Uniforms,"1,434.14",20/03/2013,R,SAFETY MANAGEMENT             
Cultural Env Reg&Plan Services,Street Clean - Not highways,Street Cleansing (Inc. Gully)           ,G00492,Supplies & Services           ,Comms and Computing           ,DG14,Telephones - Mobile,987.68,11/03/2013,R,T MOBILE (UK)                 
Cultural Env Reg&Plan Services,Waste Disposal (not separated),Waste Disposal .                        ,G00550,Third Party Payments          ,Private Contractors           ,EH04,Accommodation Based Support,"425,044.02",21/02/2013,R,KINGSTON CORPORATION          
Cultural Env Reg&Plan Services,Waste Disposal (not separated),Waste Disposal .                        ,G00550,Third Party Payments          ,Private Contractors           ,EH04,Accommodation Based Support,"395,836.92",21/02/2013,R,KINGSTON CORPORATION          
Cultural Env Reg&Plan Services,Waste Disposal (not separated),Waste Disposal .                        ,G00550,Third Party Payments          ,Private Contractors           ,EH04,Accommodation Based Support,"359,518.53",21/02/2013,R,KINGSTON CORPORATION          
Cultural Env Reg&Plan Services,Waste Disposal (not separated),Waste Disposal .                        ,G00550,Third Party Payments          ,Private Contractors           ,EH10,Contract Payments,"33,237.41",21/02/2013,R,KINGSTON CORPORATION          
Cultural Env Reg&Plan Services,Waste Disposal (not separated),Waste Disposal .                        ,G00550,Third Party Payments          ,Private Contractors           ,EH10,Contract Payments,"35,718.82",21/02/2013,R,KINGSTON CORPORATION          
Cultural Env Reg&Plan Services,Waste Disposal (not separated),Waste Disposal .                        ,G00550,Third Party Payments          ,Private Contractors           ,EH10,Contract Payments,"35,515.88",21/02/2013,R,KINGSTON CORPORATION          
Cultural Env Reg&Plan Services,Waste Disposal (not separated),Waste Disposal .                        ,G00550,Third Party Payments          ,Private Contractors           ,EH66,Clinical Waste Disposal,727.31,28/02/2013,R,S.GRUNDON (WASTE) LTD.        
Cultural Env Reg&Plan Services,Waste Disposal (not separated),Waste Disposal .                        ,G00550,Third Party Payments          ,Private Contractors           ,EH91,Disposal of Asbestos,717.06,25/02/2013,R,CITY OF LONDON CORPORATION    
Cultural Env Reg&Plan Services,Waste Disposal (not separated),Waste Disposal .                        ,G00550,Third Party Payments          ,Private Contractors           ,EH91,Disposal of Asbestos,"1,500.00",25/02/2013,R,CITY OF LONDON CORPORATION    
Cultural Env Reg&Plan Services,Waste Disposal (not separated),Waste Disposal .                        ,G00550,Third Party Payments          ,Private Contractors           ,EH96,Gen Waste - Alt.  Contractor  ,"1,131.45",28/02/2013,R,CORY ENVIRONMENTAL LIMITED    
Cultural Env Reg&Plan Services,Civic Amenity Sites,Garth Road Site                         ,G00580,Premises Related Expenditure  ,Energy Costs                  ,BB02,Electricity,"1,261.37",20/02/2013,R,EDF ENERGY 1 LIMITED          
Cultural Env Reg&Plan Services,Civic Amenity Sites,Garth Road Site                         ,G00580,Supplies & Services           ,Equip Furniture/Materials     ,DA01,Equipment - R & M,597.7,25/02/2013,R,R.J.H.WELDING                 
Cultural Env Reg&Plan Services,Civic Amenity Sites,Garth Road Site                         ,G00580,Supplies & Services           ,Equip Furniture/Materials     ,DA01,Equipment - R & M,625,25/02/2013,R,R.J.H.WELDING                 
Cultural Env Reg&Plan Services,Civic Amenity Sites,Garth Road Site                         ,G00580,Supplies & Services           ,Equip Furniture/Materials     ,DA01,Equipment - R & M,"2,010.00",25/02/2013,R,R.J.H.WELDING                 
Cultural Env Reg&Plan Services,Civic Amenity Sites,Garth Road Site                         ,G00580,Supplies & Services           ,Equip Furniture/Materials     ,DA01,Equipment - R & M,545,11/02/2013,R,R.J.H.WELDING                 
Cultural Env Reg&Plan Services,Civic Amenity Sites,Garth Road Site                         ,G00580,Third Party Payments          ,Private Contractors           ,EH63,Paper Haulage,"15,963.80",22/02/2013,R,KINGSTON CORPORATION          
Highways & Transport Services,Hwys/Rds (struct) not split,Grass Cut/Tr Mtce                       ,G00600,Employees                     ,Direct Employee Expenses      ,AA17,Agency Staff & Casual Paymts,"1,064.00",01/03/2013,R,RIDGEWAY CONSULTING LTD.      
Highways & Transport Services,Hwys/Rds (struct) not split,Grass Cut/Tr Mtce                       ,G00600,Premises Related Expenditure  ,Ground Maintenance Costs      ,BL03,Maintenance of Grounds,974.08,22/02/2013,R,VEOLIA ES (UK) LIMITED        
Highways & Transport Services,Hwys/Rds (struct) not split,Grass Cut/Tr Mtce                       ,G00600,Premises Related Expenditure  ,Ground Maintenance Costs      ,BL03,Maintenance of Grounds,909.4,22/02/2013,R,VEOLIA ES (UK) LIMITED        
Highways & Transport Services,Hwys/Rds (struct) not split,Grass Cut/Tr Mtce                       ,G00600,Premises Related Expenditure  ,Ground Maintenance Costs      ,BL03,Maintenance of Grounds,557.22,22/02/2013,R,VEOLIA ES (UK) LIMITED        
Highways & Transport Services,Hwys/Rds (struct) not split,Grass Cut/Tr Mtce                       ,G00600,Premises Related Expenditure  ,Ground Maintenance Costs      ,BL03,Maintenance of Grounds,844.2,22/02/2013,R,VEOLIA ES (UK) LIMITED        
Highways & Transport Services,Hwys/Rds (struct) not split,Grass Cut/Tr Mtce                       ,G00600,Premises Related Expenditure  ,Ground Maintenance Costs      ,BL03,Maintenance of Grounds,510.43,22/02/2013,R,VEOLIA ES (UK) LIMITED        
Highways & Transport Services,Hwys/Rds (struct) not split,Grass Cut/Tr Mtce                       ,G00600,Premises Related Expenditure  ,Ground Maintenance Costs      ,BL03,Maintenance of Grounds,"2,621.25",22/02/2013,R,VEOLIA ES (UK) LIMITED        
Highways & Transport Services,Hwys/Rds (struct) not split,Grass Cut/Tr Mtce                       ,G00600,Premises Related Expenditure  ,Ground Maintenance Costs      ,BL03,Maintenance of Grounds,833.24,22/02/2013,R,VEOLIA ES (UK) LIMITED        
Highways & Transport Services,Hwys/Rds (struct) not split,Grass Cut/Tr Mtce                       ,G00600,Premises Related Expenditure  ,Ground Maintenance Costs      ,BL03,Maintenance of Grounds,834.46,22/02/2013,R,VEOLIA ES (UK) LIMITED        
Highways & Transport Services,Hwys/Rds (struct) not split,Grass Cut/Tr Mtce                       ,G00600,Premises Related Expenditure  ,Ground Maintenance Costs      ,BL03,Maintenance of Grounds,"1,562.13",22/02/2013,R,VEOLIA ES (UK) LIMITED        
Highways & Transport Services,Hwys/Rds (struct) not split,Grass Cut/Tr Mtce                       ,G00600,Premises Related Expenditure  ,Ground Maintenance Costs      ,BL03,Maintenance of Grounds,984.11,22/02/2013,R,VEOLIA ES (UK) LIMITED        
Highways & Transport Services,Hwys/Rds (struct) not split,Grass Cut/Tr Mtce                       ,G00600,Premises Related Expenditure  ,Ground Maintenance Costs      ,BL03,Maintenance of Grounds,"1,214.79",22/02/2013,R,VEOLIA ES (UK) LIMITED        
Highways & Transport Services,Hwys/Rds (struct) not split,Grass Cut/Tr Mtce                       ,G00600,Third Party Payments          ,Private Contractors           ,EH56,Carriageway/Fway Maint,"2,422.40",21/03/2013,R,FM CONWAY LTD                 
Cultural Env Reg&Plan Services,Public Health,Dog Control.                            ,G00620,Third Party Payments          ,Private Contractors           ,EH02,Miscellaneous Hired Services,"4,171.00",04/03/2013,R,NOAH'S ARK ENVIRONMENTAL SERV.
